date,department/service,beneficiary,amount,summary of purpose,category,transaction number,SAP vendor number
01.09.2021,CHILDREN AND FAMILIES,FIRST CHOICE DAY NURSERY,"1,473.33",TEAM B,OTHER PAYMENTS FOR CLIENTS,5902484553,1000075368
01.09.2021,ENVIRONMENT DIRECTORATE,DAWSON RENTALS BUS & COACH LTD,"1,455.65",COMMERCIAL VEH CTRL A/C,HIRED VEHICLES,5902484351,1000042174
01.09.2021,ENVIRONMENT DIRECTORATE,TYCO INTEGRATED FIRE & SECURITY,-900,TOWN CENTRE CCTV,EQUIPMENT PURCHASE & REPAIR,5902484597,1000077948
01.09.2021,ENVIRONMENT DIRECTORATE,TYCO INTEGRATED FIRE & SECURITY,"10,752.25",TOWN CENTRE CCTV,EQUIPMENT PURCHASE & REPAIR,5902484595,1000077948
01.09.2021,F & C S EXCLUDING CORPORATE BUDGETS,REDACTED PERSONAL DATA,500,SESS,OTHER PAYMENTS FOR CLIENTS,REDACTED,REDACTED
01.09.2021,F & C S EXCLUDING CORPORATE BUDGETS,REDACTED PERSONAL DATA,500,SESS,OTHER PAYMENTS FOR CLIENTS,REDACTED,REDACTED
01.09.2021,F & C S EXCLUDING CORPORATE BUDGETS,REDACTED PERSONAL DATA,500,SESS,OTHER PAYMENTS FOR CLIENTS,REDACTED,REDACTED
01.09.2021,F & C S EXCLUDING CORPORATE BUDGETS,REDACTED PERSONAL DATA,500,SESS,OTHER PAYMENTS FOR CLIENTS,REDACTED,REDACTED
01.09.2021,F & C S EXCLUDING CORPORATE BUDGETS,REDACTED PERSONAL DATA,500,SESS,OTHER PAYMENTS FOR CLIENTS,REDACTED,REDACTED
01.09.2021,F & C S EXCLUDING CORPORATE BUDGETS,REDACTED PERSONAL DATA,500,SESS,OTHER PAYMENTS FOR CLIENTS,REDACTED,REDACTED
01.09.2021,F & C S EXCLUDING CORPORATE BUDGETS,REDACTED PERSONAL DATA,500,SESS,OTHER PAYMENTS FOR CLIENTS,REDACTED,REDACTED
01.09.2021,F & C S EXCLUDING CORPORATE BUDGETS,REDACTED PERSONAL DATA,500,SESS,OTHER PAYMENTS FOR CLIENTS,REDACTED,REDACTED
01.09.2021,F & C S EXCLUDING CORPORATE BUDGETS,REDACTED PERSONAL DATA,500,SESS,OTHER PAYMENTS FOR CLIENTS,REDACTED,REDACTED
01.09.2021,F & C S EXCLUDING CORPORATE BUDGETS,REDACTED PERSONAL DATA,500,SESS,OTHER PAYMENTS FOR CLIENTS,REDACTED,REDACTED
01.09.2021,F & C S EXCLUDING CORPORATE BUDGETS,REDACTED PERSONAL DATA,500,SESS,OTHER PAYMENTS FOR CLIENTS,REDACTED,REDACTED
01.09.2021,F & C S EXCLUDING CORPORATE BUDGETS,REDACTED PERSONAL DATA,500,SESS,OTHER PAYMENTS FOR CLIENTS,REDACTED,REDACTED
01.09.2021,HOUSING GENERAL FUND,UK POWER NETWORKS (OPERATIONS) LTD,"7,404.63",CAPITAL PS (REGEN),CONSTRUCTION MAIN CONTRACT,2103313046,3000000340
01.09.2021,HOUSING GENERAL FUND,UK POWER NETWORKS (OPERATIONS) LTD,"10,000.00",CAPITAL PS (REGEN),CONSTRUCTION MAIN CONTRACT,2103313046,3000000340
01.09.2021,PUBLIC HEALTH,REDACTED PERSONAL DATA,500,COVID-19 CONTROL OUTBREAK MGMNT.FUND,OTHER PAYMENTS FOR CLIENTS,REDACTED,REDACTED
01.09.2021,PUBLIC HEALTH,REDACTED PERSONAL DATA,500,COVID-19 CONTROL OUTBREAK MGMNT.FUND,OTHER PAYMENTS FOR CLIENTS,REDACTED,REDACTED
01.09.2021,PUBLIC HEALTH,TIFFIN SANDWICHES LTD,265.5,PLACE & HEALTH IMPROVEMENT,EXTERNAL AGENCIES AND BODIES,5902484490,1000087093
01.09.2021,PUBLIC HEALTH,TIFFIN SANDWICHES LTD,295,PLACE & HEALTH IMPROVEMENT,EXTERNAL AGENCIES AND BODIES,5902484488,1000087093
01.09.2021,PUBLIC HEALTH,TIFFIN SANDWICHES LTD,368.75,PLACE & HEALTH IMPROVEMENT,EXTERNAL AGENCIES AND BODIES,5902484501,1000087093
01.09.2021,PUBLIC HEALTH,TIFFIN SANDWICHES LTD,601.8,PLACE & HEALTH IMPROVEMENT,EXTERNAL AGENCIES AND BODIES,5902484492,1000087093
01.09.2021,PUBLIC HEALTH,TIFFIN SANDWICHES LTD,637.2,PLACE & HEALTH IMPROVEMENT,EXTERNAL AGENCIES AND BODIES,5902484494,1000087093
01.09.2021,PUBLIC HEALTH,TIFFIN SANDWICHES LTD,796.5,PLACE & HEALTH IMPROVEMENT,EXTERNAL AGENCIES AND BODIES,5902484500,1000087093
01.09.2021,PUBLIC HEALTH,TIFFIN SANDWICHES LTD,958.75,PLACE & HEALTH IMPROVEMENT,EXTERNAL AGENCIES AND BODIES,5902484506,1000087093
01.09.2021,PUBLIC HEALTH,TIFFIN SANDWICHES LTD,"1,032.50",PLACE & HEALTH IMPROVEMENT,EXTERNAL AGENCIES AND BODIES,5902484502,1000087093
01.09.2021,PUBLIC HEALTH,TIFFIN SANDWICHES LTD,"1,062.00",PLACE & HEALTH IMPROVEMENT,EXTERNAL AGENCIES AND BODIES,5902484493,1000087093
01.09.2021,PUBLIC HEALTH,TIFFIN SANDWICHES LTD,"1,106.25",PLACE & HEALTH IMPROVEMENT,EXTERNAL AGENCIES AND BODIES,5902484504,1000087093
02.09.2021,ADULT SOCIAL CARE,LONDON CARE LTD,943.5,LD LTS 18-64,HOMECARE - C&V,2103314063,1000003398
02.09.2021,ADULT SOCIAL CARE,LONDON CARE LTD,"1,120.23",LD LTS 18-64,HOMECARE - C&V,2103314067,1000003398
02.09.2021,ADULT SOCIAL CARE,CHOICE SUPPORT,367.4,LD LTS 18-64,SUPPORTED LIVING,2103313734,1104183
02.09.2021,ADULT SOCIAL CARE,CHOICE SUPPORT,440.88,LD LTS 18-64,SUPPORTED LIVING,2103313732,1104183
02.09.2021,ADULT SOCIAL CARE,CHOICE SUPPORT,661.32,LD LTS 18-64,SUPPORTED LIVING,2103313706,1104183
02.09.2021,ADULT SOCIAL CARE,KEYRING-LIVING SUPPORT NETWORKS LTD,254.08,LD LTS 18-64,SUPPORTED LIVING,2103313710,1486496
02.09.2021,ADULT SOCIAL CARE,KEYRING-LIVING SUPPORT NETWORKS LTD,254.08,LD LTS 18-64,SUPPORTED LIVING,2103313736,1486496
02.09.2021,ADULT SOCIAL CARE,CONTACT PROFESSIONALS,465,LD LTS 18-64,SUPPORTED LIVING,2103313714,1000057263
02.09.2021,ADULT SOCIAL CARE,CONTACT PROFESSIONALS,513,LD LTS 18-64,SUPPORTED LIVING,2103313712,1000057263
02.09.2021,ADULT SOCIAL CARE,CONTACT PROFESSIONALS,684,LD LTS 18-64,SUPPORTED LIVING,2103313730,1000057263
02.09.2021,ADULT SOCIAL CARE,CONTACT PROFESSIONALS,912,LD LTS 18-64,SUPPORTED LIVING,2103313728,1000057263
02.09.2021,ADULT SOCIAL CARE,LONDON CARE LTD,680,LD LTS 65+,HOMECARE - C&V,2103313744,1000003398
02.09.2021,ADULT SOCIAL CARE,CHOICE SUPPORT,"6,935.52",LD LTS 65+,SUPPORTED LIVING,2103313720,1104183
02.09.2021,ADULT SOCIAL CARE,LONDON CARE LTD,299.65,MEM LTS 18-64,HOMECARE - C&V,2103314022,1000003398
02.09.2021,ADULT SOCIAL CARE,LONDON CARE LTD,557.81,MEM LTS 18-64,HOMECARE - C&V,2103313995,1000003398
02.09.2021,ADULT SOCIAL CARE,LONDON CARE LTD,807.65,MEM LTS 18-64,HOMECARE - C&V,2103314184,1000003398
02.09.2021,ADULT SOCIAL CARE,LONDON CARE LTD,258.16,MEM LTS 65+,HOMECARE - C&V,2103314010,1000003398
02.09.2021,ADULT SOCIAL CARE,LONDON CARE LTD,276.6,MEM LTS 65+,HOMECARE - C&V,2103313855,1000003398
02.09.2021,ADULT SOCIAL CARE,LONDON CARE LTD,387.22,MEM LTS 65+,HOMECARE - C&V,2103314088,1000003398
02.09.2021,ADULT SOCIAL CARE,LONDON CARE LTD,446.25,MEM LTS 65+,HOMECARE - C&V,2103314079,1000003398
02.09.2021,ADULT SOCIAL CARE,LONDON CARE LTD,497.88,MEM LTS 65+,HOMECARE - C&V,2103313998,1000003398
02.09.2021,ADULT SOCIAL CARE,LONDON CARE LTD,573.75,MEM LTS 65+,HOMECARE - C&V,2103313764,1000003398
02.09.2021,ADULT SOCIAL CARE,LONDON CARE LTD,608.52,MEM LTS 65+,HOMECARE - C&V,2103313911,1000003398
02.09.2021,ADULT SOCIAL CARE,LONDON CARE LTD,677.67,MEM LTS 65+,HOMECARE - C&V,2103313968,1000003398
02.09.2021,ADULT SOCIAL CARE,LONDON CARE LTD,830.72,MEM LTS 65+,HOMECARE - C&V,2103313891,1000003398
02.09.2021,ADULT SOCIAL CARE,LONDON CARE LTD,957.8,MEM LTS 65+,HOMECARE - C&V,2103314136,1000003398
02.09.2021,ADULT SOCIAL CARE,LONDON CARE LTD,"1,028.03",MEM LTS 65+,HOMECARE - C&V,2103313851,1000003398
02.09.2021,ADULT SOCIAL CARE,LONDON CARE LTD,"1,618.11",MEM LTS 65+,HOMECARE - C&V,2103314109,1000003398
02.09.2021,ADULT SOCIAL CARE,LONDON CARE LTD,"2,549.33",MEM LTS 65+,HOMECARE - C&V,2103314032,1000003398
02.09.2021,ADULT SOCIAL CARE,LONDON CARE LTD,"2,758.25",MEM LTS 65+,HOMECARE - C&V,2103314213,1000003398
02.09.2021,ADULT SOCIAL CARE,LONDON CARE LTD,272,MH LTS 18-64,HOMECARE - C&V,2103314125,1000003398
02.09.2021,ADULT SOCIAL CARE,LONDON CARE LTD,272,MH LTS 18-64,HOMECARE - C&V,2103314129,1000003398
02.09.2021,ADULT SOCIAL CARE,LONDON CARE LTD,290.43,MH LTS 18-64,HOMECARE - C&V,2103313955,1000003398
02.09.2021,ADULT SOCIAL CARE,LONDON CARE LTD,295.04,MH LTS 18-64,HOMECARE - C&V,2103313903,1000003398
02.09.2021,ADULT SOCIAL CARE,LONDON CARE LTD,387.24,MH LTS 18-64,HOMECARE - C&V,2103313839,1000003398
02.09.2021,ADULT SOCIAL CARE,LONDON CARE LTD,442.56,MH LTS 18-64,HOMECARE - C&V,2103313776,1000003398
02.09.2021,ADULT SOCIAL CARE,LONDON CARE LTD,456.39,MH LTS 18-64,HOMECARE - C&V,2103314014,1000003398
02.09.2021,ADULT SOCIAL CARE,LONDON CARE LTD,507.1,MH LTS 18-64,HOMECARE - C&V,2103314105,1000003398
02.09.2021,ADULT SOCIAL CARE,LONDON CARE LTD,525.54,MH LTS 18-64,HOMECARE - C&V,2103313906,1000003398
02.09.2021,ADULT SOCIAL CARE,LONDON CARE LTD,552.5,MH LTS 18-64,HOMECARE - C&V,2103314151,1000003398
02.09.2021,ADULT SOCIAL CARE,LONDON CARE LTD,922.25,MH LTS 18-64,HOMECARE - C&V,2103314093,1000003398
02.09.2021,ADULT SOCIAL CARE,LONDON CARE LTD,"1,719.53",MH LTS 18-64,HOMECARE - C&V,2103314159,1000003398
02.09.2021,ADULT SOCIAL CARE,LONDON CARE LTD,"2,069.89",MH LTS 18-64,HOMECARE - C&V,2103313930,1000003398
02.09.2021,ADULT SOCIAL CARE,LONDON CARE LTD,295.04,MH LTS 65+,HOMECARE - C&V,2103313922,1000003398
02.09.2021,ADULT SOCIAL CARE,LONDON CARE LTD,447.17,MH LTS 65+,HOMECARE - C&V,2103313936,1000003398
02.09.2021,ADULT SOCIAL CARE,LONDON CARE LTD,520.93,MH LTS 65+,HOMECARE - C&V,2103313962,1000003398
02.09.2021,ADULT SOCIAL CARE,LONDON CARE LTD,590.75,MH LTS 65+,HOMECARE - C&V,2103314087,1000003398
02.09.2021,ADULT SOCIAL CARE,LONDON CARE LTD,603.91,MH LTS 65+,HOMECARE - C&V,2103314175,1000003398
02.09.2021,ADULT SOCIAL CARE,LONDON CARE LTD,624.5,MH LTS 65+,HOMECARE - C&V,2103313884,1000003398
02.09.2021,ADULT SOCIAL CARE,LONDON CARE LTD,"1,018.81",MH LTS 65+,HOMECARE - C&V,2103313860,1000003398
02.09.2021,ADULT SOCIAL CARE,LONDON CARE LTD,"1,083.35",MH LTS 65+,HOMECARE - C&V,2103314083,1000003398
02.09.2021,ADULT SOCIAL CARE,LONDON CARE LTD,"2,499.00",MH LTS 65+,HOMECARE - C&V,2103314183,1000003398
02.09.2021,ADULT SOCIAL CARE,CHOICE SUPPORT,293.92,MH LTS 65+,SUPPORTED LIVING,2103313722,1104183
02.09.2021,ADULT SOCIAL CARE,LONDON CARE LTD,267.38,PHY LTS 18-64,HOMECARE - C&V,2103313956,1000003398
02.09.2021,ADULT SOCIAL CARE,LONDON CARE LTD,271.99,PHY LTS 18-64,HOMECARE - C&V,2103314160,1000003398
02.09.2021,ADULT SOCIAL CARE,LONDON CARE LTD,310.25,PHY LTS 18-64,HOMECARE - C&V,2103314121,1000003398
02.09.2021,ADULT SOCIAL CARE,LONDON CARE LTD,331.5,PHY LTS 18-64,HOMECARE - C&V,2103314096,1000003398
02.09.2021,ADULT SOCIAL CARE,LONDON CARE LTD,336.53,PHY LTS 18-64,HOMECARE - C&V,2103313832,1000003398
02.09.2021,ADULT SOCIAL CARE,LONDON CARE LTD,340,PHY LTS 18-64,HOMECARE - C&V,2103314094,1000003398
02.09.2021,ADULT SOCIAL CARE,LONDON CARE LTD,345.6,PHY LTS 18-64,HOMECARE - C&V,2103314074,1000003398
02.09.2021,ADULT SOCIAL CARE,LONDON CARE LTD,348.5,PHY LTS 18-64,HOMECARE - C&V,2103314131,1000003398
02.09.2021,ADULT SOCIAL CARE,LONDON CARE LTD,350.36,PHY LTS 18-64,HOMECARE - C&V,2103313885,1000003398
02.09.2021,ADULT SOCIAL CARE,LONDON CARE LTD,365.11,PHY LTS 18-64,HOMECARE - C&V,2103314041,1000003398
02.09.2021,ADULT SOCIAL CARE,LONDON CARE LTD,365.91,PHY LTS 18-64,HOMECARE - C&V,2103314111,1000003398
02.09.2021,ADULT SOCIAL CARE,LONDON CARE LTD,396.46,PHY LTS 18-64,HOMECARE - C&V,2103314055,1000003398
02.09.2021,ADULT SOCIAL CARE,LONDON CARE LTD,401.07,PHY LTS 18-64,HOMECARE - C&V,2103313942,1000003398
02.09.2021,ADULT SOCIAL CARE,LONDON CARE LTD,401.07,PHY LTS 18-64,HOMECARE - C&V,2103314135,1000003398
02.09.2021,ADULT SOCIAL CARE,LONDON CARE LTD,419.51,PHY LTS 18-64,HOMECARE - C&V,2103314095,1000003398
02.09.2021,ADULT SOCIAL CARE,LONDON CARE LTD,420.56,PHY LTS 18-64,HOMECARE - C&V,2103314201,1000003398
02.09.2021,ADULT SOCIAL CARE,LONDON CARE LTD,445.39,PHY LTS 18-64,HOMECARE - C&V,2103314210,1000003398
02.09.2021,ADULT SOCIAL CARE,LONDON CARE LTD,466.28,PHY LTS 18-64,HOMECARE - C&V,2103314140,1000003398
02.09.2021,ADULT SOCIAL CARE,LONDON CARE LTD,470.36,PHY LTS 18-64,HOMECARE - C&V,2103313754,1000003398
02.09.2021,ADULT SOCIAL CARE,LONDON CARE LTD,484.05,PHY LTS 18-64,HOMECARE - C&V,2103313804,1000003398
02.09.2021,ADULT SOCIAL CARE,LONDON CARE LTD,488.66,PHY LTS 18-64,HOMECARE - C&V,2103313933,1000003398
02.09.2021,ADULT SOCIAL CARE,LONDON CARE LTD,507.1,PHY LTS 18-64,HOMECARE - C&V,2103314042,1000003398
02.09.2021,ADULT SOCIAL CARE,LONDON CARE LTD,516.18,PHY LTS 18-64,HOMECARE - C&V,2103314192,1000003398
02.09.2021,ADULT SOCIAL CARE,LONDON CARE LTD,522.75,PHY LTS 18-64,HOMECARE - C&V,2103313813,1000003398
02.09.2021,ADULT SOCIAL CARE,LONDON CARE LTD,525.54,PHY LTS 18-64,HOMECARE - C&V,2103314019,1000003398
02.09.2021,ADULT SOCIAL CARE,LONDON CARE LTD,533.08,PHY LTS 18-64,HOMECARE - C&V,2103314117,1000003398
02.09.2021,ADULT SOCIAL CARE,LONDON CARE LTD,534.76,PHY LTS 18-64,HOMECARE - C&V,2103313916,1000003398
02.09.2021,ADULT SOCIAL CARE,LONDON CARE LTD,549.72,PHY LTS 18-64,HOMECARE - C&V,2103313762,1000003398
02.09.2021,ADULT SOCIAL CARE,LONDON CARE LTD,562.42,PHY LTS 18-64,HOMECARE - C&V,2103313992,1000003398
02.09.2021,ADULT SOCIAL CARE,LONDON CARE LTD,567.03,PHY LTS 18-64,HOMECARE - C&V,2103313784,1000003398
02.09.2021,ADULT SOCIAL CARE,LONDON CARE LTD,585.47,PHY LTS 18-64,HOMECARE - C&V,2103314090,1000003398
02.09.2021,ADULT SOCIAL CARE,LONDON CARE LTD,590.08,PHY LTS 18-64,HOMECARE - C&V,2103313966,1000003398
02.09.2021,ADULT SOCIAL CARE,LONDON CARE LTD,594.69,PHY LTS 18-64,HOMECARE - C&V,2103313740,1000003398
02.09.2021,ADULT SOCIAL CARE,LONDON CARE LTD,595,PHY LTS 18-64,HOMECARE - C&V,2103313815,1000003398
02.09.2021,ADULT SOCIAL CARE,LONDON CARE LTD,603.5,PHY LTS 18-64,HOMECARE - C&V,2103314132,1000003398
02.09.2021,ADULT SOCIAL CARE,LONDON CARE LTD,622.35,PHY LTS 18-64,HOMECARE - C&V,2103313822,1000003398
02.09.2021,ADULT SOCIAL CARE,LONDON CARE LTD,626.96,PHY LTS 18-64,HOMECARE - C&V,2103313935,1000003398
02.09.2021,ADULT SOCIAL CARE,LONDON CARE LTD,637.16,PHY LTS 18-64,HOMECARE - C&V,2103314126,1000003398
02.09.2021,ADULT SOCIAL CARE,LONDON CARE LTD,640.79,PHY LTS 18-64,HOMECARE - C&V,2103313859,1000003398
02.09.2021,ADULT SOCIAL CARE,LONDON CARE LTD,640.79,PHY LTS 18-64,HOMECARE - C&V,2103313871,1000003398
02.09.2021,ADULT SOCIAL CARE,LONDON CARE LTD,650.01,PHY LTS 18-64,HOMECARE - C&V,2103313929,1000003398
02.09.2021,ADULT SOCIAL CARE,LONDON CARE LTD,659.23,PHY LTS 18-64,HOMECARE - C&V,2103314082,1000003398
02.09.2021,ADULT SOCIAL CARE,LONDON CARE LTD,700.72,PHY LTS 18-64,HOMECARE - C&V,2103314174,1000003398
02.09.2021,ADULT SOCIAL CARE,LONDON CARE LTD,723.77,PHY LTS 18-64,HOMECARE - C&V,2103313893,1000003398
02.09.2021,ADULT SOCIAL CARE,LONDON CARE LTD,723.77,PHY LTS 18-64,HOMECARE - C&V,2103313898,1000003398
02.09.2021,ADULT SOCIAL CARE,LONDON CARE LTD,726.75,PHY LTS 18-64,HOMECARE - C&V,2103314075,1000003398
02.09.2021,ADULT SOCIAL CARE,LONDON CARE LTD,737.6,PHY LTS 18-64,HOMECARE - C&V,2103313900,1000003398
02.09.2021,ADULT SOCIAL CARE,LONDON CARE LTD,737.6,PHY LTS 18-64,HOMECARE - C&V,2103314144,1000003398
02.09.2021,ADULT SOCIAL CARE,LONDON CARE LTD,742.21,PHY LTS 18-64,HOMECARE - C&V,2103314116,1000003398
02.09.2021,ADULT SOCIAL CARE,LONDON CARE LTD,752.66,PHY LTS 18-64,HOMECARE - C&V,2103314004,1000003398
02.09.2021,ADULT SOCIAL CARE,LONDON CARE LTD,777.75,PHY LTS 18-64,HOMECARE - C&V,2103314194,1000003398
02.09.2021,ADULT SOCIAL CARE,LONDON CARE LTD,829.18,PHY LTS 18-64,HOMECARE - C&V,2103314148,1000003398
02.09.2021,ADULT SOCIAL CARE,LONDON CARE LTD,839.02,PHY LTS 18-64,HOMECARE - C&V,2103313949,1000003398
02.09.2021,ADULT SOCIAL CARE,LONDON CARE LTD,848.24,PHY LTS 18-64,HOMECARE - C&V,2103313988,1000003398
02.09.2021,ADULT SOCIAL CARE,LONDON CARE LTD,908.17,PHY LTS 18-64,HOMECARE - C&V,2103314037,1000003398
02.09.2021,ADULT SOCIAL CARE,LONDON CARE LTD,928.23,PHY LTS 18-64,HOMECARE - C&V,2103314143,1000003398
02.09.2021,ADULT SOCIAL CARE,LONDON CARE LTD,931.22,PHY LTS 18-64,HOMECARE - C&V,2103313899,1000003398
02.09.2021,ADULT SOCIAL CARE,LONDON CARE LTD,962.57,PHY LTS 18-64,HOMECARE - C&V,2103314034,1000003398
02.09.2021,ADULT SOCIAL CARE,LONDON CARE LTD,986.54,PHY LTS 18-64,HOMECARE - C&V,2103314015,1000003398
02.09.2021,ADULT SOCIAL CARE,LONDON CARE LTD,990.25,PHY LTS 18-64,HOMECARE - C&V,2103314084,1000003398
02.09.2021,ADULT SOCIAL CARE,LONDON CARE LTD,"1,000.37",PHY LTS 18-64,HOMECARE - C&V,2103314023,1000003398
02.09.2021,ADULT SOCIAL CARE,LONDON CARE LTD,"1,032.75",PHY LTS 18-64,HOMECARE - C&V,2103314189,1000003398
02.09.2021,ADULT SOCIAL CARE,LONDON CARE LTD,"1,037.00",PHY LTS 18-64,HOMECARE - C&V,2103314161,1000003398
02.09.2021,ADULT SOCIAL CARE,LONDON CARE LTD,"1,055.69",PHY LTS 18-64,HOMECARE - C&V,2103313946,1000003398
02.09.2021,ADULT SOCIAL CARE,LONDON CARE LTD,"1,083.75",PHY LTS 18-64,HOMECARE - C&V,2103313742,1000003398
02.09.2021,ADULT SOCIAL CARE,LONDON CARE LTD,"1,092.57",PHY LTS 18-64,HOMECARE - C&V,2103313908,1000003398
02.09.2021,ADULT SOCIAL CARE,LONDON CARE LTD,"1,092.57",PHY LTS 18-64,HOMECARE - C&V,2103314011,1000003398
02.09.2021,ADULT SOCIAL CARE,LONDON CARE LTD,"1,147.89",PHY LTS 18-64,HOMECARE - C&V,2103313887,1000003398
02.09.2021,ADULT SOCIAL CARE,LONDON CARE LTD,"1,226.26",PHY LTS 18-64,HOMECARE - C&V,2103314086,1000003398
02.09.2021,ADULT SOCIAL CARE,LONDON CARE LTD,"1,258.53",PHY LTS 18-64,HOMECARE - C&V,2103314085,1000003398
02.09.2021,ADULT SOCIAL CARE,LONDON CARE LTD,"1,263.14",PHY LTS 18-64,HOMECARE - C&V,2103313950,1000003398
02.09.2021,ADULT SOCIAL CARE,LONDON CARE LTD,"1,319.95",PHY LTS 18-64,HOMECARE - C&V,2103314091,1000003398
02.09.2021,ADULT SOCIAL CARE,LONDON CARE LTD,"1,373.85",PHY LTS 18-64,HOMECARE - C&V,2103314071,1000003398
02.09.2021,ADULT SOCIAL CARE,LONDON CARE LTD,"1,406.05",PHY LTS 18-64,HOMECARE - C&V,2103313953,1000003398
02.09.2021,ADULT SOCIAL CARE,LONDON CARE LTD,"1,562.79",PHY LTS 18-64,HOMECARE - C&V,2103313788,1000003398
02.09.2021,ADULT SOCIAL CARE,LONDON CARE LTD,"1,925.25",PHY LTS 18-64,HOMECARE - C&V,2103313766,1000003398
02.09.2021,ADULT SOCIAL CARE,LONDON CARE LTD,"2,005.35",PHY LTS 18-64,HOMECARE - C&V,2103314158,1000003398
02.09.2021,ADULT SOCIAL CARE,LONDON CARE LTD,"2,069.75",PHY LTS 18-64,HOMECARE - C&V,2103313849,1000003398
02.09.2021,ADULT SOCIAL CARE,LONDON CARE LTD,"2,323.44",PHY LTS 18-64,HOMECARE - C&V,2103314123,1000003398
02.09.2021,ADULT SOCIAL CARE,LONDON CARE LTD,"2,351.10",PHY LTS 18-64,HOMECARE - C&V,2103313829,1000003398
02.09.2021,ADULT SOCIAL CARE,LONDON CARE LTD,"3,476.50",PHY LTS 18-64,HOMECARE - C&V,2103313758,1000003398
02.09.2021,ADULT SOCIAL CARE,BLISSETT CARE LTD,881.28,PHY LTS 18-64,HOMECARE - C&V,2103313700,1000042627
02.09.2021,ADULT SOCIAL CARE,BLISSETT CARE LTD,881.28,PHY LTS 18-64,HOMECARE - C&V,2103313704,1000042627
02.09.2021,ADULT SOCIAL CARE,LONDON CARE LTD,675.75,PHY LTS 18-64,HOMECARE - SPOT,2103314062,1000003398
02.09.2021,ADULT SOCIAL CARE,LONDON CARE LTD,254.76,PHY LTS 65+,HOMECARE - C&V,2103313970,1000003398
02.09.2021,ADULT SOCIAL CARE,LONDON CARE LTD,255,PHY LTS 65+,HOMECARE - C&V,2103313843,1000003398
02.09.2021,ADULT SOCIAL CARE,LONDON CARE LTD,258.16,PHY LTS 65+,HOMECARE - C&V,2103313901,1000003398
02.09.2021,ADULT SOCIAL CARE,LONDON CARE LTD,258.16,PHY LTS 65+,HOMECARE - C&V,2103313918,1000003398
02.09.2021,ADULT SOCIAL CARE,LONDON CARE LTD,258.22,PHY LTS 65+,HOMECARE - C&V,2103314212,1000003398
02.09.2021,ADULT SOCIAL CARE,LONDON CARE LTD,262.77,PHY LTS 65+,HOMECARE - C&V,2103313905,1000003398
02.09.2021,ADULT SOCIAL CARE,LONDON CARE LTD,262.77,PHY LTS 65+,HOMECARE - C&V,2103313945,1000003398
02.09.2021,ADULT SOCIAL CARE,LONDON CARE LTD,263.5,PHY LTS 65+,HOMECARE - C&V,2103313786,1000003398
02.09.2021,ADULT SOCIAL CARE,LONDON CARE LTD,271.99,PHY LTS 65+,HOMECARE - C&V,2103313883,1000003398
02.09.2021,ADULT SOCIAL CARE,LONDON CARE LTD,284.75,PHY LTS 65+,HOMECARE - C&V,2103314198,1000003398
02.09.2021,ADULT SOCIAL CARE,LONDON CARE LTD,304.26,PHY LTS 65+,HOMECARE - C&V,2103314154,1000003398
02.09.2021,ADULT SOCIAL CARE,LONDON CARE LTD,306.1,PHY LTS 65+,HOMECARE - C&V,2103313913,1000003398
02.09.2021,ADULT SOCIAL CARE,LONDON CARE LTD,313.48,PHY LTS 65+,HOMECARE - C&V,2103313890,1000003398
02.09.2021,ADULT SOCIAL CARE,LONDON CARE LTD,331.92,PHY LTS 65+,HOMECARE - C&V,2103313866,1000003398
02.09.2021,ADULT SOCIAL CARE,LONDON CARE LTD,333.07,PHY LTS 65+,HOMECARE - C&V,2103314077,1000003398
02.09.2021,ADULT SOCIAL CARE,LONDON CARE LTD,336.53,PHY LTS 65+,HOMECARE - C&V,2103313864,1000003398
02.09.2021,ADULT SOCIAL CARE,LONDON CARE LTD,336.53,PHY LTS 65+,HOMECARE - C&V,2103313957,1000003398
02.09.2021,ADULT SOCIAL CARE,LONDON CARE LTD,341.14,PHY LTS 65+,HOMECARE - C&V,2103314043,1000003398
02.09.2021,ADULT SOCIAL CARE,LONDON CARE LTD,341.76,PHY LTS 65+,HOMECARE - C&V,2103314040,1000003398
02.09.2021,ADULT SOCIAL CARE,LONDON CARE LTD,345.63,PHY LTS 65+,HOMECARE - C&V,2103313811,1000003398
02.09.2021,ADULT SOCIAL CARE,LONDON CARE LTD,352.75,PHY LTS 65+,HOMECARE - C&V,2103313802,1000003398
02.09.2021,ADULT SOCIAL CARE,LONDON CARE LTD,354.97,PHY LTS 65+,HOMECARE - C&V,2103313895,1000003398
02.09.2021,ADULT SOCIAL CARE,LONDON CARE LTD,357.12,PHY LTS 65+,HOMECARE - C&V,2103314039,1000003398
02.09.2021,ADULT SOCIAL CARE,LONDON CARE LTD,357.74,PHY LTS 65+,HOMECARE - C&V,2103314016,1000003398
02.09.2021,ADULT SOCIAL CARE,LONDON CARE LTD,359.58,PHY LTS 65+,HOMECARE - C&V,2103313873,1000003398
02.09.2021,ADULT SOCIAL CARE,LONDON CARE LTD,378.02,PHY LTS 65+,HOMECARE - C&V,2103313850,1000003398
02.09.2021,ADULT SOCIAL CARE,LONDON CARE LTD,378.25,PHY LTS 65+,HOMECARE - C&V,2103313835,1000003398
02.09.2021,ADULT SOCIAL CARE,LONDON CARE LTD,382.5,PHY LTS 65+,HOMECARE - C&V,2103314195,1000003398
02.09.2021,ADULT SOCIAL CARE,LONDON CARE LTD,382.63,PHY LTS 65+,HOMECARE - C&V,2103313821,1000003398
02.09.2021,ADULT SOCIAL CARE,LONDON CARE LTD,387.24,PHY LTS 65+,HOMECARE - C&V,2103313875,1000003398
02.09.2021,ADULT SOCIAL CARE,LONDON CARE LTD,387.24,PHY LTS 65+,HOMECARE - C&V,2103313877,1000003398
02.09.2021,ADULT SOCIAL CARE,LONDON CARE LTD,387.24,PHY LTS 65+,HOMECARE - C&V,2103313904,1000003398
02.09.2021,ADULT SOCIAL CARE,LONDON CARE LTD,387.24,PHY LTS 65+,HOMECARE - C&V,2103314006,1000003398
02.09.2021,ADULT SOCIAL CARE,LONDON CARE LTD,387.24,PHY LTS 65+,HOMECARE - C&V,2103314072,1000003398
02.09.2021,ADULT SOCIAL CARE,LONDON CARE LTD,396.46,PHY LTS 65+,HOMECARE - C&V,2103314001,1000003398
02.09.2021,ADULT SOCIAL CARE,LONDON CARE LTD,400.76,PHY LTS 65+,HOMECARE - C&V,2103313862,1000003398
02.09.2021,ADULT SOCIAL CARE,LONDON CARE LTD,401.07,PHY LTS 65+,HOMECARE - C&V,2103314178,1000003398
02.09.2021,ADULT SOCIAL CARE,LONDON CARE LTD,405.68,PHY LTS 65+,HOMECARE - C&V,2103313792,1000003398
02.09.2021,ADULT SOCIAL CARE,LONDON CARE LTD,405.68,PHY LTS 65+,HOMECARE - C&V,2103314191,1000003398
02.09.2021,ADULT SOCIAL CARE,LONDON CARE LTD,408,PHY LTS 65+,HOMECARE - C&V,2103314187,1000003398
02.09.2021,ADULT SOCIAL CARE,LONDON CARE LTD,408.12,PHY LTS 65+,HOMECARE - C&V,2103314081,1000003398
02.09.2021,ADULT SOCIAL CARE,LONDON CARE LTD,410.29,PHY LTS 65+,HOMECARE - C&V,2103313990,1000003398
02.09.2021,ADULT SOCIAL CARE,LONDON CARE LTD,424.12,PHY LTS 65+,HOMECARE - C&V,2103313991,1000003398
02.09.2021,ADULT SOCIAL CARE,LONDON CARE LTD,433.34,PHY LTS 65+,HOMECARE - C&V,2103314122,1000003398
02.09.2021,ADULT SOCIAL CARE,LONDON CARE LTD,433.5,PHY LTS 65+,HOMECARE - C&V,2103314057,1000003398
02.09.2021,ADULT SOCIAL CARE,LONDON CARE LTD,437.95,PHY LTS 65+,HOMECARE - C&V,2103314008,1000003398
02.09.2021,ADULT SOCIAL CARE,LONDON CARE LTD,442.56,PHY LTS 65+,HOMECARE - C&V,2103313874,1000003398
02.09.2021,ADULT SOCIAL CARE,LONDON CARE LTD,442.56,PHY LTS 65+,HOMECARE - C&V,2103313878,1000003398
02.09.2021,ADULT SOCIAL CARE,LONDON CARE LTD,442.56,PHY LTS 65+,HOMECARE - C&V,2103313914,1000003398
02.09.2021,ADULT SOCIAL CARE,LONDON CARE LTD,456.39,PHY LTS 65+,HOMECARE - C&V,2103314009,1000003398
02.09.2021,ADULT SOCIAL CARE,LONDON CARE LTD,465.61,PHY LTS 65+,HOMECARE - C&V,2103313979,1000003398
02.09.2021,ADULT SOCIAL CARE,LONDON CARE LTD,484.5,PHY LTS 65+,HOMECARE - C&V,2103313808,1000003398
02.09.2021,ADULT SOCIAL CARE,LONDON CARE LTD,490.74,PHY LTS 65+,HOMECARE - C&V,2103314149,1000003398
02.09.2021,ADULT SOCIAL CARE,LONDON CARE LTD,507.82,PHY LTS 65+,HOMECARE - C&V,2103314145,1000003398
02.09.2021,ADULT SOCIAL CARE,LONDON CARE LTD,520.93,PHY LTS 65+,HOMECARE - C&V,2103314020,1000003398
02.09.2021,ADULT SOCIAL CARE,LONDON CARE LTD,524,PHY LTS 65+,HOMECARE - C&V,2103314028,1000003398
02.09.2021,ADULT SOCIAL CARE,LONDON CARE LTD,525.54,PHY LTS 65+,HOMECARE - C&V,2103313889,1000003398
02.09.2021,ADULT SOCIAL CARE,LONDON CARE LTD,539.37,PHY LTS 65+,HOMECARE - C&V,2103314024,1000003398
02.09.2021,ADULT SOCIAL CARE,LONDON CARE LTD,548.25,PHY LTS 65+,HOMECARE - C&V,2103313807,1000003398
02.09.2021,ADULT SOCIAL CARE,LONDON CARE LTD,548.59,PHY LTS 65+,HOMECARE - C&V,2103314092,1000003398
02.09.2021,ADULT SOCIAL CARE,LONDON CARE LTD,562.42,PHY LTS 65+,HOMECARE - C&V,2103313810,1000003398
02.09.2021,ADULT SOCIAL CARE,LONDON CARE LTD,575.01,PHY LTS 65+,HOMECARE - C&V,2103314112,1000003398
02.09.2021,ADULT SOCIAL CARE,LONDON CARE LTD,578.79,PHY LTS 65+,HOMECARE - C&V,2103314173,1000003398
02.09.2021,ADULT SOCIAL CARE,LONDON CARE LTD,586.5,PHY LTS 65+,HOMECARE - C&V,2103314180,1000003398
02.09.2021,ADULT SOCIAL CARE,LONDON CARE LTD,590.08,PHY LTS 65+,HOMECARE - C&V,2103313993,1000003398
02.09.2021,ADULT SOCIAL CARE,LONDON CARE LTD,590.75,PHY LTS 65+,HOMECARE - C&V,2103313798,1000003398
02.09.2021,ADULT SOCIAL CARE,LONDON CARE LTD,590.75,PHY LTS 65+,HOMECARE - C&V,2103314089,1000003398
02.09.2021,ADULT SOCIAL CARE,LONDON CARE LTD,599.4,PHY LTS 65+,HOMECARE - C&V,2103314061,1000003398
02.09.2021,ADULT SOCIAL CARE,LONDON CARE LTD,599.74,PHY LTS 65+,HOMECARE - C&V,2103313967,1000003398
02.09.2021,ADULT SOCIAL CARE,LONDON CARE LTD,603.5,PHY LTS 65+,HOMECARE - C&V,2103314211,1000003398
02.09.2021,ADULT SOCIAL CARE,LONDON CARE LTD,608.52,PHY LTS 65+,HOMECARE - C&V,2103313963,1000003398
02.09.2021,ADULT SOCIAL CARE,LONDON CARE LTD,616.25,PHY LTS 65+,HOMECARE - C&V,2103314070,1000003398
02.09.2021,ADULT SOCIAL CARE,LONDON CARE LTD,617.74,PHY LTS 65+,HOMECARE - C&V,2103313981,1000003398
02.09.2021,ADULT SOCIAL CARE,LONDON CARE LTD,617.74,PHY LTS 65+,HOMECARE - C&V,2103313996,1000003398
02.09.2021,ADULT SOCIAL CARE,LONDON CARE LTD,622.35,PHY LTS 65+,HOMECARE - C&V,2103313934,1000003398
02.09.2021,ADULT SOCIAL CARE,LONDON CARE LTD,622.35,PHY LTS 65+,HOMECARE - C&V,2103313999,1000003398
02.09.2021,ADULT SOCIAL CARE,LONDON CARE LTD,622.35,PHY LTS 65+,HOMECARE - C&V,2103314177,1000003398
02.09.2021,ADULT SOCIAL CARE,LONDON CARE LTD,626.96,PHY LTS 65+,HOMECARE - C&V,2103314027,1000003398
02.09.2021,ADULT SOCIAL CARE,LONDON CARE LTD,632.8,PHY LTS 65+,HOMECARE - C&V,2103313872,1000003398
02.09.2021,ADULT SOCIAL CARE,LONDON CARE LTD,636.18,PHY LTS 65+,HOMECARE - C&V,2103313944,1000003398
02.09.2021,ADULT SOCIAL CARE,LONDON CARE LTD,636.18,PHY LTS 65+,HOMECARE - C&V,2103313976,1000003398
02.09.2021,ADULT SOCIAL CARE,LONDON CARE LTD,639.87,PHY LTS 65+,HOMECARE - C&V,2103313910,1000003398
02.09.2021,ADULT SOCIAL CARE,LONDON CARE LTD,645.4,PHY LTS 65+,HOMECARE - C&V,2103313926,1000003398
02.09.2021,ADULT SOCIAL CARE,LONDON CARE LTD,645.4,PHY LTS 65+,HOMECARE - C&V,2103313932,1000003398
02.09.2021,ADULT SOCIAL CARE,LONDON CARE LTD,650.01,PHY LTS 65+,HOMECARE - C&V,2103313881,1000003398
02.09.2021,ADULT SOCIAL CARE,LONDON CARE LTD,650.01,PHY LTS 65+,HOMECARE - C&V,2103313925,1000003398
02.09.2021,ADULT SOCIAL CARE,LONDON CARE LTD,667.73,PHY LTS 65+,HOMECARE - C&V,2103313797,1000003398
02.09.2021,ADULT SOCIAL CARE,LONDON CARE LTD,673.06,PHY LTS 65+,HOMECARE - C&V,2103313844,1000003398
02.09.2021,ADULT SOCIAL CARE,LONDON CARE LTD,673.06,PHY LTS 65+,HOMECARE - C&V,2103314005,1000003398
02.09.2021,ADULT SOCIAL CARE,LONDON CARE LTD,686.89,PHY LTS 65+,HOMECARE - C&V,2103313971,1000003398
02.09.2021,ADULT SOCIAL CARE,LONDON CARE LTD,700.72,PHY LTS 65+,HOMECARE - C&V,2103313820,1000003398
02.09.2021,ADULT SOCIAL CARE,LONDON CARE LTD,713.63,PHY LTS 65+,HOMECARE - C&V,2103314064,1000003398
02.09.2021,ADULT SOCIAL CARE,LONDON CARE LTD,714,PHY LTS 65+,HOMECARE - C&V,2103313778,1000003398
02.09.2021,ADULT SOCIAL CARE,LONDON CARE LTD,723.77,PHY LTS 65+,HOMECARE - C&V,2103314000,1000003398
02.09.2021,ADULT SOCIAL CARE,LONDON CARE LTD,726.75,PHY LTS 65+,HOMECARE - C&V,2103313790,1000003398
02.09.2021,ADULT SOCIAL CARE,LONDON CARE LTD,728.38,PHY LTS 65+,HOMECARE - C&V,2103314196,1000003398
02.09.2021,ADULT SOCIAL CARE,LONDON CARE LTD,737.6,PHY LTS 65+,HOMECARE - C&V,2103313941,1000003398
02.09.2021,ADULT SOCIAL CARE,LONDON CARE LTD,741.03,PHY LTS 65+,HOMECARE - C&V,2103314165,1000003398
02.09.2021,ADULT SOCIAL CARE,LONDON CARE LTD,743.75,PHY LTS 65+,HOMECARE - C&V,2103313780,1000003398
02.09.2021,ADULT SOCIAL CARE,LONDON CARE LTD,745.31,PHY LTS 65+,HOMECARE - C&V,2103314176,1000003398
02.09.2021,ADULT SOCIAL CARE,LONDON CARE LTD,760.65,PHY LTS 65+,HOMECARE - C&V,2103314007,1000003398
02.09.2021,ADULT SOCIAL CARE,LONDON CARE LTD,765.26,PHY LTS 65+,HOMECARE - C&V,2103313861,1000003398
02.09.2021,ADULT SOCIAL CARE,LONDON CARE LTD,770.21,PHY LTS 65+,HOMECARE - C&V,2103314208,1000003398
02.09.2021,ADULT SOCIAL CARE,LONDON CARE LTD,772.94,PHY LTS 65+,HOMECARE - C&V,2103313892,1000003398
02.09.2021,ADULT SOCIAL CARE,LONDON CARE LTD,773.5,PHY LTS 65+,HOMECARE - C&V,2103314185,1000003398
02.09.2021,ADULT SOCIAL CARE,LONDON CARE LTD,779.09,PHY LTS 65+,HOMECARE - C&V,2103313894,1000003398
02.09.2021,ADULT SOCIAL CARE,LONDON CARE LTD,782,PHY LTS 65+,HOMECARE - C&V,2103313826,1000003398
02.09.2021,ADULT SOCIAL CARE,LONDON CARE LTD,783.7,PHY LTS 65+,HOMECARE - C&V,2103314026,1000003398
02.09.2021,ADULT SOCIAL CARE,LONDON CARE LTD,792.92,PHY LTS 65+,HOMECARE - C&V,2103313986,1000003398
02.09.2021,ADULT SOCIAL CARE,LONDON CARE LTD,795.99,PHY LTS 65+,HOMECARE - C&V,2103313989,1000003398
02.09.2021,ADULT SOCIAL CARE,LONDON CARE LTD,803.25,PHY LTS 65+,HOMECARE - C&V,2103313819,1000003398
02.09.2021,ADULT SOCIAL CARE,LONDON CARE LTD,820.58,PHY LTS 65+,HOMECARE - C&V,2103313982,1000003398
02.09.2021,ADULT SOCIAL CARE,LONDON CARE LTD,825.19,PHY LTS 65+,HOMECARE - C&V,2103313952,1000003398
02.09.2021,ADULT SOCIAL CARE,LONDON CARE LTD,825.19,PHY LTS 65+,HOMECARE - C&V,2103313994,1000003398
02.09.2021,ADULT SOCIAL CARE,LONDON CARE LTD,828.69,PHY LTS 65+,HOMECARE - C&V,2103314155,1000003398
02.09.2021,ADULT SOCIAL CARE,LONDON CARE LTD,843.63,PHY LTS 65+,HOMECARE - C&V,2103313939,1000003398
02.09.2021,ADULT SOCIAL CARE,LONDON CARE LTD,848.24,PHY LTS 65+,HOMECARE - C&V,2103313907,1000003398
02.09.2021,ADULT SOCIAL CARE,LONDON CARE LTD,857.46,PHY LTS 65+,HOMECARE - C&V,2103313828,1000003398
02.09.2021,ADULT SOCIAL CARE,LONDON CARE LTD,863.61,PHY LTS 65+,HOMECARE - C&V,2103313973,1000003398
02.09.2021,ADULT SOCIAL CARE,LONDON CARE LTD,875.9,PHY LTS 65+,HOMECARE - C&V,2103313912,1000003398
02.09.2021,ADULT SOCIAL CARE,LONDON CARE LTD,875.9,PHY LTS 65+,HOMECARE - C&V,2103314030,1000003398
02.09.2021,ADULT SOCIAL CARE,LONDON CARE LTD,875.9,PHY LTS 65+,HOMECARE - C&V,2103314170,1000003398
02.09.2021,ADULT SOCIAL CARE,LONDON CARE LTD,896.75,PHY LTS 65+,HOMECARE - C&V,2103314156,1000003398
02.09.2021,ADULT SOCIAL CARE,LONDON CARE LTD,903.56,PHY LTS 65+,HOMECARE - C&V,2103314193,1000003398
02.09.2021,ADULT SOCIAL CARE,LONDON CARE LTD,905.25,PHY LTS 65+,HOMECARE - C&V,2103313770,1000003398
02.09.2021,ADULT SOCIAL CARE,LONDON CARE LTD,908.17,PHY LTS 65+,HOMECARE - C&V,2103314110,1000003398
02.09.2021,ADULT SOCIAL CARE,LONDON CARE LTD,917.39,PHY LTS 65+,HOMECARE - C&V,2103313814,1000003398
02.09.2021,ADULT SOCIAL CARE,LONDON CARE LTD,935.83,PHY LTS 65+,HOMECARE - C&V,2103313854,1000003398
02.09.2021,ADULT SOCIAL CARE,LONDON CARE LTD,940.44,PHY LTS 65+,HOMECARE - C&V,2103314128,1000003398
02.09.2021,ADULT SOCIAL CARE,LONDON CARE LTD,943.5,PHY LTS 65+,HOMECARE - C&V,2103313848,1000003398
02.09.2021,ADULT SOCIAL CARE,LONDON CARE LTD,952,PHY LTS 65+,HOMECARE - C&V,2103314106,1000003398
02.09.2021,ADULT SOCIAL CARE,LONDON CARE LTD,958.88,PHY LTS 65+,HOMECARE - C&V,2103314078,1000003398
02.09.2021,ADULT SOCIAL CARE,LONDON CARE LTD,958.88,PHY LTS 65+,HOMECARE - C&V,2103314150,1000003398
02.09.2021,ADULT SOCIAL CARE,LONDON CARE LTD,974.27,PHY LTS 65+,HOMECARE - C&V,2103314186,1000003398
02.09.2021,ADULT SOCIAL CARE,LONDON CARE LTD,981.93,PHY LTS 65+,HOMECARE - C&V,2103314099,1000003398
02.09.2021,ADULT SOCIAL CARE,LONDON CARE LTD,991.15,PHY LTS 65+,HOMECARE - C&V,2103313876,1000003398
02.09.2021,ADULT SOCIAL CARE,LONDON CARE LTD,"1,003.00",PHY LTS 65+,HOMECARE - C&V,2103314203,1000003398
02.09.2021,ADULT SOCIAL CARE,LONDON CARE LTD,"1,004.98",PHY LTS 65+,HOMECARE - C&V,2103313940,1000003398
02.09.2021,ADULT SOCIAL CARE,LONDON CARE LTD,"1,004.98",PHY LTS 65+,HOMECARE - C&V,2103314031,1000003398
02.09.2021,ADULT SOCIAL CARE,LONDON CARE LTD,"1,014.20",PHY LTS 65+,HOMECARE - C&V,2103313870,1000003398
02.09.2021,ADULT SOCIAL CARE,LONDON CARE LTD,"1,023.42",PHY LTS 65+,HOMECARE - C&V,2103313958,1000003398
02.09.2021,ADULT SOCIAL CARE,LONDON CARE LTD,"1,028.03",PHY LTS 65+,HOMECARE - C&V,2103314033,1000003398
02.09.2021,ADULT SOCIAL CARE,LONDON CARE LTD,"1,028.03",PHY LTS 65+,HOMECARE - C&V,2103314066,1000003398
02.09.2021,ADULT SOCIAL CARE,LONDON CARE LTD,"1,032.64",PHY LTS 65+,HOMECARE - C&V,2103314068,1000003398
02.09.2021,ADULT SOCIAL CARE,LONDON CARE LTD,"1,041.86",PHY LTS 65+,HOMECARE - C&V,2103313923,1000003398
02.09.2021,ADULT SOCIAL CARE,LONDON CARE LTD,"1,041.86",PHY LTS 65+,HOMECARE - C&V,2103314013,1000003398
02.09.2021,ADULT SOCIAL CARE,LONDON CARE LTD,"1,046.47",PHY LTS 65+,HOMECARE - C&V,2103313960,1000003398
02.09.2021,ADULT SOCIAL CARE,LONDON CARE LTD,"1,060.30",PHY LTS 65+,HOMECARE - C&V,2103313853,1000003398
02.09.2021,ADULT SOCIAL CARE,LONDON CARE LTD,"1,071.00",PHY LTS 65+,HOMECARE - C&V,2103314163,1000003398
02.09.2021,ADULT SOCIAL CARE,LONDON CARE LTD,"1,074.19",PHY LTS 65+,HOMECARE - C&V,2103314182,1000003398
02.09.2021,ADULT SOCIAL CARE,LONDON CARE LTD,"1,097.18",PHY LTS 65+,HOMECARE - C&V,2103313748,1000003398
02.09.2021,ADULT SOCIAL CARE,LONDON CARE LTD,"1,097.18",PHY LTS 65+,HOMECARE - C&V,2103314069,1000003398
02.09.2021,ADULT SOCIAL CARE,LONDON CARE LTD,"1,115.62",PHY LTS 65+,HOMECARE - C&V,2103313830,1000003398
02.09.2021,ADULT SOCIAL CARE,LONDON CARE LTD,"1,115.62",PHY LTS 65+,HOMECARE - C&V,2103313974,1000003398
02.09.2021,ADULT SOCIAL CARE,LONDON CARE LTD,"1,122.00",PHY LTS 65+,HOMECARE - C&V,2103314065,1000003398
02.09.2021,ADULT SOCIAL CARE,LONDON CARE LTD,"1,130.50",PHY LTS 65+,HOMECARE - C&V,2103314060,1000003398
02.09.2021,ADULT SOCIAL CARE,LONDON CARE LTD,"1,143.28",PHY LTS 65+,HOMECARE - C&V,2103313977,1000003398
02.09.2021,ADULT SOCIAL CARE,LONDON CARE LTD,"1,147.89",PHY LTS 65+,HOMECARE - C&V,2103313938,1000003398
02.09.2021,ADULT SOCIAL CARE,LONDON CARE LTD,"1,170.94",PHY LTS 65+,HOMECARE - C&V,2103313794,1000003398
02.09.2021,ADULT SOCIAL CARE,LONDON CARE LTD,"1,170.94",PHY LTS 65+,HOMECARE - C&V,2103314056,1000003398
02.09.2021,ADULT SOCIAL CARE,LONDON CARE LTD,"1,175.55",PHY LTS 65+,HOMECARE - C&V,2103313831,1000003398
02.09.2021,ADULT SOCIAL CARE,LONDON CARE LTD,"1,177.25",PHY LTS 65+,HOMECARE - C&V,2103314164,1000003398
02.09.2021,ADULT SOCIAL CARE,LONDON CARE LTD,"1,207.00",PHY LTS 65+,HOMECARE - C&V,2103314100,1000003398
02.09.2021,ADULT SOCIAL CARE,LONDON CARE LTD,"1,226.26",PHY LTS 65+,HOMECARE - C&V,2103313756,1000003398
02.09.2021,ADULT SOCIAL CARE,LONDON CARE LTD,"1,238.11",PHY LTS 65+,HOMECARE - C&V,2103313858,1000003398
02.09.2021,ADULT SOCIAL CARE,LONDON CARE LTD,"1,267.75",PHY LTS 65+,HOMECARE - C&V,2103314181,1000003398
02.09.2021,ADULT SOCIAL CARE,LONDON CARE LTD,"1,272.36",PHY LTS 65+,HOMECARE - C&V,2103313824,1000003398
02.09.2021,ADULT SOCIAL CARE,LONDON CARE LTD,"1,276.97",PHY LTS 65+,HOMECARE - C&V,2103313750,1000003398
02.09.2021,ADULT SOCIAL CARE,LONDON CARE LTD,"1,276.97",PHY LTS 65+,HOMECARE - C&V,2103313927,1000003398
02.09.2021,ADULT SOCIAL CARE,LONDON CARE LTD,"1,281.58",PHY LTS 65+,HOMECARE - C&V,2103314035,1000003398
02.09.2021,ADULT SOCIAL CARE,LONDON CARE LTD,"1,286.19",PHY LTS 65+,HOMECARE - C&V,2103313909,1000003398
02.09.2021,ADULT SOCIAL CARE,LONDON CARE LTD,"1,286.19",PHY LTS 65+,HOMECARE - C&V,2103314003,1000003398
02.09.2021,ADULT SOCIAL CARE,LONDON CARE LTD,"1,309.24",PHY LTS 65+,HOMECARE - C&V,2103313959,1000003398
02.09.2021,ADULT SOCIAL CARE,LONDON CARE LTD,"1,326.00",PHY LTS 65+,HOMECARE - C&V,2103313799,1000003398
02.09.2021,ADULT SOCIAL CARE,LONDON CARE LTD,"1,336.90",PHY LTS 65+,HOMECARE - C&V,2103314098,1000003398
02.09.2021,ADULT SOCIAL CARE,LONDON CARE LTD,"1,346.12",PHY LTS 65+,HOMECARE - C&V,2103314168,1000003398
02.09.2021,ADULT SOCIAL CARE,LONDON CARE LTD,"1,378.10",PHY LTS 65+,HOMECARE - C&V,2103314114,1000003398
02.09.2021,ADULT SOCIAL CARE,LONDON CARE LTD,"1,406.05",PHY LTS 65+,HOMECARE - C&V,2103314021,1000003398
02.09.2021,ADULT SOCIAL CARE,LONDON CARE LTD,"1,456.76",PHY LTS 65+,HOMECARE - C&V,2103314179,1000003398
02.09.2021,ADULT SOCIAL CARE,LONDON CARE LTD,"1,465.98",PHY LTS 65+,HOMECARE - C&V,2103314134,1000003398
02.09.2021,ADULT SOCIAL CARE,LONDON CARE LTD,"1,479.81",PHY LTS 65+,HOMECARE - C&V,2103313972,1000003398
02.09.2021,ADULT SOCIAL CARE,LONDON CARE LTD,"1,613.50",PHY LTS 65+,HOMECARE - C&V,2103313931,1000003398
02.09.2021,ADULT SOCIAL CARE,LONDON CARE LTD,"1,631.94",PHY LTS 65+,HOMECARE - C&V,2103313978,1000003398
02.09.2021,ADULT SOCIAL CARE,LONDON CARE LTD,"1,696.48",PHY LTS 65+,HOMECARE - C&V,2103314167,1000003398
02.09.2021,ADULT SOCIAL CARE,LONDON CARE LTD,"1,759.50",PHY LTS 65+,HOMECARE - C&V,2103314162,1000003398
02.09.2021,ADULT SOCIAL CARE,LONDON CARE LTD,"1,820.38",PHY LTS 65+,HOMECARE - C&V,2103314142,1000003398
02.09.2021,ADULT SOCIAL CARE,LONDON CARE LTD,"1,820.95",PHY LTS 65+,HOMECARE - C&V,2103314209,1000003398
02.09.2021,ADULT SOCIAL CARE,LONDON CARE LTD,"1,870.00",PHY LTS 65+,HOMECARE - C&V,2103314130,1000003398
02.09.2021,ADULT SOCIAL CARE,LONDON CARE LTD,"1,927.96",PHY LTS 65+,HOMECARE - C&V,2103313752,1000003398
02.09.2021,ADULT SOCIAL CARE,LONDON CARE LTD,"1,948.57",PHY LTS 65+,HOMECARE - C&V,2103314199,1000003398
02.09.2021,ADULT SOCIAL CARE,LONDON CARE LTD,"2,014.50",PHY LTS 65+,HOMECARE - C&V,2103313812,1000003398
02.09.2021,ADULT SOCIAL CARE,LONDON CARE LTD,"2,023.79",PHY LTS 65+,HOMECARE - C&V,2103314200,1000003398
02.09.2021,ADULT SOCIAL CARE,LONDON CARE LTD,"2,027.25",PHY LTS 65+,HOMECARE - C&V,2103314214,1000003398
02.09.2021,ADULT SOCIAL CARE,LONDON CARE LTD,"2,048.50",PHY LTS 65+,HOMECARE - C&V,2103314172,1000003398
02.09.2021,ADULT SOCIAL CARE,LONDON CARE LTD,"2,167.50",PHY LTS 65+,HOMECARE - C&V,2103313833,1000003398
02.09.2021,ADULT SOCIAL CARE,LONDON CARE LTD,"2,188.75",PHY LTS 65+,HOMECARE - C&V,2103313827,1000003398
02.09.2021,ADULT SOCIAL CARE,LONDON CARE LTD,"2,272.73",PHY LTS 65+,HOMECARE - C&V,2103313772,1000003398
02.09.2021,ADULT SOCIAL CARE,LONDON CARE LTD,"2,318.83",PHY LTS 65+,HOMECARE - C&V,2103313902,1000003398
02.09.2021,ADULT SOCIAL CARE,LONDON CARE LTD,"2,337.27",PHY LTS 65+,HOMECARE - C&V,2103313975,1000003398
02.09.2021,ADULT SOCIAL CARE,LONDON CARE LTD,"2,365.06",PHY LTS 65+,HOMECARE - C&V,2103314157,1000003398
02.09.2021,ADULT SOCIAL CARE,LONDON CARE LTD,"2,422.50",PHY LTS 65+,HOMECARE - C&V,2103313774,1000003398
02.09.2021,ADULT SOCIAL CARE,LONDON CARE LTD,"2,427.52",PHY LTS 65+,HOMECARE - C&V,2103314113,1000003398
02.09.2021,ADULT SOCIAL CARE,LONDON CARE LTD,"2,447.91",PHY LTS 65+,HOMECARE - C&V,2103314206,1000003398
02.09.2021,ADULT SOCIAL CARE,LONDON CARE LTD,"2,456.50",PHY LTS 65+,HOMECARE - C&V,2103314190,1000003398
02.09.2021,ADULT SOCIAL CARE,LONDON CARE LTD,"2,479.26",PHY LTS 65+,HOMECARE - C&V,2103313888,1000003398
02.09.2021,ADULT SOCIAL CARE,LONDON CARE LTD,"2,612.33",PHY LTS 65+,HOMECARE - C&V,2103313879,1000003398
02.09.2021,ADULT SOCIAL CARE,LONDON CARE LTD,"2,636.92",PHY LTS 65+,HOMECARE - C&V,2103313760,1000003398
02.09.2021,ADULT SOCIAL CARE,LONDON CARE LTD,"2,655.36",PHY LTS 65+,HOMECARE - C&V,2103314137,1000003398
02.09.2021,ADULT SOCIAL CARE,LONDON CARE LTD,"2,656.25",PHY LTS 65+,HOMECARE - C&V,2103313825,1000003398
02.09.2021,ADULT SOCIAL CARE,LONDON CARE LTD,"2,876.64",PHY LTS 65+,HOMECARE - C&V,2103313746,1000003398
02.09.2021,ADULT SOCIAL CARE,LONDON CARE LTD,"2,894.25",PHY LTS 65+,HOMECARE - C&V,2103313796,1000003398
02.09.2021,ADULT SOCIAL CARE,LONDON CARE LTD,"2,918.13",PHY LTS 65+,HOMECARE - C&V,2103314076,1000003398
02.09.2021,ADULT SOCIAL CARE,LONDON CARE LTD,"2,954.09",PHY LTS 65+,HOMECARE - C&V,2103313920,1000003398
02.09.2021,ADULT SOCIAL CARE,LONDON CARE LTD,"3,047.21",PHY LTS 65+,HOMECARE - C&V,2103313943,1000003398
02.09.2021,ADULT SOCIAL CARE,LONDON CARE LTD,"3,107.14",PHY LTS 65+,HOMECARE - C&V,2103314104,1000003398
02.09.2021,ADULT SOCIAL CARE,LONDON CARE LTD,"3,608.25",PHY LTS 65+,HOMECARE - C&V,2103314138,1000003398
02.09.2021,ADULT SOCIAL CARE,BLISSETT CARE LTD,316.71,PHY LTS 65+,HOMECARE - C&V,2103313702,1000042627
02.09.2021,ADULT SOCIAL CARE,BLISSETT CARE LTD,330.48,PHY LTS 65+,HOMECARE - C&V,2103313698,1000042627
02.09.2021,ADULT SOCIAL CARE,SUPREME CARE SERVICES LTD,"1,003.96",PHY LTS 65+,HOMECARE - C&V,2103313686,1000059416
02.09.2021,ADULT SOCIAL CARE,LONDON CARE LTD,537.15,PHY LTS 65+,HOMECARE - SPOT,2103314118,1000003398
02.09.2021,ADULT SOCIAL CARE,LONDON CARE LTD,470.79,PHY STS 18-64,HOMECARE - IC,2103314141,1000003398
02.09.2021,ADULT SOCIAL CARE,LONDON CARE LTD,262.77,SEN LTS 65+,HOMECARE - C&V,2103313897,1000003398
02.09.2021,ADULT SOCIAL CARE,LONDON CARE LTD,"1,228.25",SEN LTS 65+,HOMECARE - C&V,2103314197,1000003398
02.09.2021,ADULT SOCIAL CARE,LONDON CARE LTD,442,SOCIAL ISOLATION,HOMECARE - C&V,2103314146,1000003398
02.09.2021,ADULT SOCIAL CARE,LONDON CARE LTD,673.06,SOCIAL ISOLATION,HOMECARE - C&V,2103313856,1000003398
02.09.2021,ADULT SOCIAL CARE,LONDON CARE LTD,962.15,SOCIAL ISOLATION,HOMECARE - C&V,2103314205,1000003398
02.09.2021,ADULT SOCIAL CARE,LONDON CARE LTD,"1,060.30",SOCIAL ISOLATION,HOMECARE - C&V,2103314107,1000003398
02.09.2021,ADULT SOCIAL CARE,LONDON CARE LTD,"1,270.75",SOCIAL ISOLATION,HOMECARE - C&V,2103314169,1000003398
02.09.2021,ADULT SOCIAL CARE,LONDON CARE LTD,"1,461.37",SOCIAL ISOLATION,HOMECARE - C&V,2103314133,1000003398
02.09.2021,ADULT SOCIAL CARE,LONDON CARE LTD,"1,144.62",SOCIAL ISOLATION,HOMECARE - IC,2103314204,1000003398
02.09.2021,ADULT SOCIAL CARE,CONTACT PROFESSIONALS,380,SPECIALIST CARE,OTHER PAYMENTS FOR CLIENTS,2103313602,1000057263
02.09.2021,ADULT SOCIAL CARE,CONTACT PROFESSIONALS,380,SPECIALIST CARE,OTHER PAYMENTS FOR CLIENTS,2103313604,1000057263
02.09.2021,ADULT SOCIAL CARE,NATIONAL AUTISTIC SOCIETY CARE PACK,"2,442.46",SPECIALIST CARE,SECTION 17 PAYMENTS TO AGENCIES/CARERS,2103313648,1000020538
02.09.2021,ADULT SOCIAL CARE,NATIONAL AUTISTIC SOCIETY CARE PACK,"4,369.30",SPECIALIST CARE,SECTION 17 PAYMENTS TO AGENCIES/CARERS,2103313650,1000020538
02.09.2021,ADULT SOCIAL CARE,ADVANTAGE HEALTHCARE LTD,882.6,SPECIALIST CARE,SECTION 17 PAYMENTS TO AGENCIES/CARERS,2103313546,1000049612
02.09.2021,ADULT SOCIAL CARE,CONTACT PROFESSIONALS,285,SPECIALIST CARE,SECTION 17 PAYMENTS TO AGENCIES/CARERS,2103313620,1000057263
02.09.2021,ADULT SOCIAL CARE,CONTACT PROFESSIONALS,285,SPECIALIST CARE,SECTION 17 PAYMENTS TO AGENCIES/CARERS,2103313670,1000057263
02.09.2021,ADULT SOCIAL CARE,CONTACT PROFESSIONALS,323,SPECIALIST CARE,SECTION 17 PAYMENTS TO AGENCIES/CARERS,2103313580,1000057263
02.09.2021,ADULT SOCIAL CARE,CONTACT PROFESSIONALS,342,SPECIALIST CARE,SECTION 17 PAYMENTS TO AGENCIES/CARERS,2103313622,1000057263
02.09.2021,ADULT SOCIAL CARE,CONTACT PROFESSIONALS,342,SPECIALIST CARE,SECTION 17 PAYMENTS TO AGENCIES/CARERS,2103313646,1000057263
02.09.2021,ADULT SOCIAL CARE,CONTACT PROFESSIONALS,361,SPECIALIST CARE,SECTION 17 PAYMENTS TO AGENCIES/CARERS,2103313638,1000057263
02.09.2021,ADULT SOCIAL CARE,CONTACT PROFESSIONALS,380,SPECIALIST CARE,SECTION 17 PAYMENTS TO AGENCIES/CARERS,2103313564,1000057263
02.09.2021,ADULT SOCIAL CARE,CONTACT PROFESSIONALS,380,SPECIALIST CARE,SECTION 17 PAYMENTS TO AGENCIES/CARERS,2103313658,1000057263
02.09.2021,ADULT SOCIAL CARE,CONTACT PROFESSIONALS,798,SPECIALIST CARE,SECTION 17 PAYMENTS TO AGENCIES/CARERS,2103313542,1000057263
02.09.2021,ADULT SOCIAL CARE,HCP STAFFING SERVICES LTD,263.84,SPECIALIST CARE,SECTION 17 PAYMENTS TO AGENCIES/CARERS,2103313548,1000078329
02.09.2021,ADULT SOCIAL CARE,LONDON CARE LTD,307.95,SUB LTS 18-64,HOMECARE - C&V,2103313896,1000003398
02.09.2021,ASSET MANAGEMENT,HODGE JONES & ALLEN,"4,166.67",DISREPAIR,PAYMENTS FOR LEGAL SERVICES,2103314234,11011881
02.09.2021,ASSET MANAGEMENT,HODGE JONES & ALLEN,"8,333.33",DISREPAIR,PAYMENTS FOR LEGAL SERVICES,2103314235,11011881
02.09.2021,ASSET MANAGEMENT,ASHFORDS LLP,291.67,DISREPAIR,PAYMENTS FOR LEGAL SERVICES,2103314229,1000055865
02.09.2021,ASSET MANAGEMENT,ASHFORDS LLP,416.67,DISREPAIR,PAYMENTS FOR LEGAL SERVICES,2103314227,1000055865
02.09.2021,ASSET MANAGEMENT,ASHFORDS LLP,"1,041.67",DISREPAIR,PAYMENTS FOR LEGAL SERVICES,2103314230,1000055865
02.09.2021,ASSET MANAGEMENT,ASHFORDS LLP,"1,250.00",DISREPAIR,PAYMENTS FOR LEGAL SERVICES,2103314224,1000055865
02.09.2021,ASSET MANAGEMENT,ASHFORDS LLP,"1,875.00",DISREPAIR,PAYMENTS FOR LEGAL SERVICES,2103314243,1000055865
02.09.2021,ASSET MANAGEMENT,ASHFORDS LLP,"2,000.00",DISREPAIR,PAYMENTS FOR LEGAL SERVICES,2103314228,1000055865
02.09.2021,ASSET MANAGEMENT,ASHFORDS LLP,"7,083.33",DISREPAIR,PAYMENTS FOR LEGAL SERVICES,2103314244,1000055865
02.09.2021,ASSET MANAGEMENT,CHESHIRE ESTATE AND LEGAL LTD,"3,333.33",DISREPAIR,PAYMENTS FOR LEGAL SERVICES,2103314236,1000081908
02.09.2021,ASSET MANAGEMENT,CHESHIRE ESTATE AND LEGAL LTD,"7,083.33",DISREPAIR,PAYMENTS FOR LEGAL SERVICES,2103314231,1000081908
02.09.2021,ASSET MANAGEMENT,GLP (MAPLE HOUSE) LLP,"4,375.00",DISREPAIR,PAYMENTS FOR LEGAL SERVICES,2103314238,1000086366
02.09.2021,ASSET MANAGEMENT,BRYHILL TECHNICAL SERVICES,"1,154.34",DISREPAIR,PAYMENTS FOR LEGAL SERVICES,2103314259,3000001722
02.09.2021,ASSET MANAGEMENT,BRYHILL TECHNICAL SERVICES,"1,587.36",DISREPAIR,PAYMENTS FOR LEGAL SERVICES,2103314258,3000001722
02.09.2021,ASSET MANAGEMENT,BRYHILL TECHNICAL SERVICES,"1,753.08",DISREPAIR,PAYMENTS FOR LEGAL SERVICES,2103313362,3000001722
02.09.2021,ASSET MANAGEMENT,JUDGE AND PRIESTLEY SOLICITORS,"1,100.00",DISREPAIR,PAYMENTS FOR LEGAL SERVICES,5902484392,1472217
02.09.2021,ASSET MANAGEMENT,JUDGE AND PRIESTLEY SOLICITORS,"24,750.00",DISREPAIR,PAYMENTS FOR LEGAL SERVICES,5902484392,1472217
02.09.2021,ASSET MANAGEMENT,ANTONY HODARI  SOLICITORS,"3,958.33",DISREPAIR,PAYMENTS FOR LEGAL SERVICES,2103314232,1000031040
02.09.2021,ASSET MANAGEMENT,ANTONY HODARI  SOLICITORS,"5,416.67",DISREPAIR,PAYMENTS FOR LEGAL SERVICES,2103314225,1000031040
02.09.2021,ASSET MANAGEMENT,ANTONY HODARI  SOLICITORS,"10,833.33",DISREPAIR,PAYMENTS FOR LEGAL SERVICES,2103314226,1000031040
02.09.2021,ASSET MANAGEMENT,MLA SOLICITORS,"8,333.33",DISREPAIR,PAYMENTS FOR LEGAL SERVICES,2103314233,1000079716
02.09.2021,ASSET MANAGEMENT,DRISCOLL KINGSTON SOLICITORS,"8,333.33",DISREPAIR,PAYMENTS FOR LEGAL SERVICES,2103314239,1000082357
02.09.2021,ASSET MANAGEMENT,BARNES SOLICITORS LLP,"1,916.67",DISREPAIR,PAYMENTS FOR LEGAL SERVICES,2103314221,1000083820
02.09.2021,ASSET MANAGEMENT,BARNES SOLICITORS LLP,"5,833.33",DISREPAIR,PAYMENTS FOR LEGAL SERVICES,2103314237,1000083820
02.09.2021,ASSET MANAGEMENT,MALONE & WHITE SOLICITORS LTD,"1,900.00",DISREPAIR,PAYMENTS FOR LEGAL SERVICES,2103314242,1000083893
02.09.2021,ASSET MANAGEMENT,BOND TURNER  SOLICITORS,"6,666.67",DISREPAIR,PAYMENTS FOR LEGAL SERVICES,2103314240,1000085362
02.09.2021,ASSET MANAGEMENT,IMPERIUM LAW  SOLICITORS,"3,541.67",DISREPAIR,PAYMENTS FOR LEGAL SERVICES,2103314241,1000086655
02.09.2021,ASSET MANAGEMENT,FRANKHAM CONSULTANCY GROUP LTD,"1,250.00",DISREPAIR,PROFESSIONAL FEES,5902484944,1000043952
02.09.2021,ASSET MANAGEMENT,GAS ADVISORY SERVICES LIMITED,532.47,ENG CONTRACTS (NORTH),HEATING -DISTRICT SERVICE (CONTRACT SUM),5902484888,1000064649
02.09.2021,ASSET MANAGEMENT,SCCI ALPHATRACK LTD,554.51,ENG CONTRACTS (NORTH),TV AERIALS R&M,5902483854,1000071955
02.09.2021,CENTRAL FUNCTIONS,4-5 GRAYS INN SQUARE LTD,"1,100.00",HOME OWNERSHIP,LEGAL FEES & COURT COSTS,5902484961,1000046636
02.09.2021,CHIEF EXECUTIVE,RED R DESIGN,"1,120.00",CAPITAL PS (REGEN),CONSTR'N SUB CONTRACT - NON CERTIFICATED,5902484943,1000035984
02.09.2021,CHIEF EXECUTIVE,CURRIE & BROWN UK LTD,"6,035.00",CAPITAL PS (REGEN),CONSTRUCTION,5902484273,1000033455
02.09.2021,CHIEF EXECUTIVE,TILHILL FORESTRY LTD,"161,073.75",CAPITAL PS (REGEN),CONSTRUCTION,2103314255,3000001208
02.09.2021,CHILDREN AND FAMILIES,SOUTH LONDON & MAUDSLEY HOSPITAL,"2,500.00",ADOPTION SUPP FUND,PROFESSIONAL FEES,5902484955,1000013096
02.09.2021,CHILDREN AND FAMILIES,MAXIMUM POTENTIAL,340,ADOPTION SUPP FUND,PROFESSIONAL FEES,5902484989,1000080313
02.09.2021,CHILDREN AND FAMILIES,MAXIMUM POTENTIAL,510,ADOPTION SUPP FUND,PROFESSIONAL FEES,5902484990,1000080313
02.09.2021,CHILDREN AND FAMILIES,MAXIMUM POTENTIAL,680,ADOPTION SUPP FUND,PROFESSIONAL FEES,5902484988,1000080313
02.09.2021,CHILDREN AND FAMILIES,MAXIMUM POTENTIAL,"1,072.00",ADOPTION SUPP FUND,PROFESSIONAL FEES,5902484987,1000080313
02.09.2021,CHILDREN AND FAMILIES,RICHMOND MUSIC TRUST LTD,310,ADOPTION SUPP FUND,PROFESSIONAL FEES,5902484982,1000085665
02.09.2021,CHILDREN AND FAMILIES,INDEPENDENT BIA LTD,340,ADOPTION SUPP FUND,PROFESSIONAL FEES,5902484996,1000086264
02.09.2021,CHILDREN AND FAMILIES,INDEPENDENT BIA LTD,595,ADOPTION SUPP FUND,PROFESSIONAL FEES,5902484997,1000086264
02.09.2021,CHILDREN AND FAMILIES,INDEPENDENT BIA LTD,935,ADOPTION SUPP FUND,PROFESSIONAL FEES,5902484999,1000086264
02.09.2021,CHILDREN AND FAMILIES,PYRAMID THERAPEUTIC SERVICES LTD,"4,686.60",ADOPTION SUPP FUND,PROFESSIONAL FEES,5902485003,1000087176
02.09.2021,CHILDREN AND FAMILIES,REDACTED PERSONAL DATA,317,ADOPTION SUPP FUND,PROFESSIONAL FEES,REDACTED,REDACTED
02.09.2021,CHILDREN AND FAMILIES,REDACTED PERSONAL DATA,"2,450.00",ADOPTION SUPP FUND,PROFESSIONAL FEES,REDACTED,REDACTED
02.09.2021,CHILDREN AND FAMILIES,REDACTED PERSONAL DATA,"1,080.00",ADOPTION SUPP FUND,PROFESSIONAL FEES,REDACTED,REDACTED
02.09.2021,CHILDREN AND FAMILIES,REDACTED PERSONAL DATA,"3,975.00",ADOPTION SUPP FUND,PROFESSIONAL FEES,REDACTED,REDACTED
02.09.2021,CHILDREN AND FAMILIES,STAFFORDSHIRE COUNTY COUNCIL,750,ALS INTER AGENCY,EXTERNAL AGENCIES AND BODIES,5902485001,1000072531
02.09.2021,CHILDREN AND FAMILIES,KEYS PCE LTD,"17,492.86",CHILDREN�S RESID,RESIDENTIAL CARE,2103313676,1000080090
02.09.2021,CHILDREN AND FAMILIES,WELL-BEING PLATFORM LTD,444.39,FAMILY GROUP CONF�S,PROFESSIONAL FEES,5902484967,1000084384
02.09.2021,CHILDREN AND FAMILIES,HERA SOCIAL CARE LTD,268.67,FAMILY GROUP CONF�S,PROFESSIONAL FEES,5902484971,1000084935
02.09.2021,CHILDREN AND FAMILIES,REDACTED PERSONAL DATA,270.83,FAMILY GROUP CONF�S,PROFESSIONAL FEES,REDACTED,REDACTED
02.09.2021,CHILDREN AND FAMILIES,REDACTED PERSONAL DATA,379.17,FAMILY GROUP CONF�S,PROFESSIONAL FEES,REDACTED,REDACTED
02.09.2021,CHILDREN AND FAMILIES,REDACTED PERSONAL DATA,450.67,FAMILY GROUP CONF�S,PROFESSIONAL FEES,REDACTED,REDACTED
02.09.2021,CHILDREN AND FAMILIES,FOSTERING LONDON LTD,"5,092.68",FRIENDS & FAMILY FOSTERING,EXTERNAL AGENCIES AND BODIES,2103313522,1000077541
02.09.2021,CHILDREN AND FAMILIES,FOSTERING LONDON LTD,"8,647.00",FRIENDS & FAMILY FOSTERING,EXTERNAL AGENCIES AND BODIES,2103313520,1000077541
02.09.2021,CHILDREN AND FAMILIES,ORANGE GROVE FOSTERCARE LTD,394.86,FRIENDS & FAMILY FOSTERING,EXTERNAL AGENCIES AND BODIES,2103313518,1000078716
02.09.2021,CHILDREN AND FAMILIES,OASIS AQUILA HOUSING,"3,503.74",SEMI-IND CARELEAVERS,EXTERNAL AGENCIES AND BODIES,2103313680,1000002184
02.09.2021,CHILDREN AND FAMILIES,THE SALVATION ARMY,"1,302.60",SEMI-IND CARELEAVERS,EXTERNAL AGENCIES AND BODIES,2103313510,1000016253
02.09.2021,CHILDREN AND FAMILIES,THE SALVATION ARMY,"1,346.02",SEMI-IND CARELEAVERS,EXTERNAL AGENCIES AND BODIES,2103313512,1000016253
02.09.2021,CHILDREN AND FAMILIES,HEARTWOOD OUTREACH SERVICES LTD,318.19,SEMI-IND CARELEAVERS,EXTERNAL AGENCIES AND BODIES,2103313498,1000075021
02.09.2021,CHILDREN AND FAMILIES,HEARTWOOD OUTREACH SERVICES LTD,"1,569.40",SEMI-IND CARELEAVERS,EXTERNAL AGENCIES AND BODIES,2103313496,1000075021
02.09.2021,CHILDREN AND FAMILIES,TRANSFORMING LIVES COMPANY LTD,"3,739.84",SEMI-IND CARELEAVERS,EXTERNAL AGENCIES AND BODIES,2103313678,1000083352
02.09.2021,CHILDREN AND FAMILIES,PLACE OF PROGRESS LTD,"1,664.48",SEMI-IND CARELEAVERS,EXTERNAL AGENCIES AND BODIES,2103313682,1000086889
02.09.2021,CHILDREN AND FAMILIES,THE SALVATION ARMY,"1,302.60",SEMI-IND LAC 16-17,EXTERNAL AGENCIES AND BODIES,2103313526,1000016253
02.09.2021,CHILDREN AND FAMILIES,THE SALVATION ARMY,"1,346.02",SEMI-IND LAC 16-17,EXTERNAL AGENCIES AND BODIES,2103313528,1000016253
02.09.2021,CHILDREN AND FAMILIES,ORANGE GROVE FOSTERCARE LTD,"1,992.99",STAYPUT- FOST CARERS,EXTERNAL AGENCIES AND BODIES,2103313516,1000078716
02.09.2021,CHILDREN AND FAMILIES,THE SALVATION ARMY,"1,036.54",UASC CARELEAVERS,EXTERNAL AGENCIES AND BODIES,2103313490,1000016253
02.09.2021,CHILDREN AND FAMILIES,THE SALVATION ARMY,"1,071.09",UASC CARELEAVERS,EXTERNAL AGENCIES AND BODIES,2103313480,1000016253
02.09.2021,CHILDREN AND FAMILIES,THE SALVATION ARMY,"1,302.60",UASC CARELEAVERS,EXTERNAL AGENCIES AND BODIES,2103313486,1000016253
02.09.2021,CHILDREN AND FAMILIES,THE SALVATION ARMY,"1,302.60",UASC CARELEAVERS,EXTERNAL AGENCIES AND BODIES,2103313494,1000016253
02.09.2021,CHILDREN AND FAMILIES,THE SALVATION ARMY,"1,302.60",UASC CARELEAVERS,EXTERNAL AGENCIES AND BODIES,2103313502,1000016253
02.09.2021,CHILDREN AND FAMILIES,THE SALVATION ARMY,"1,330.83",UASC CARELEAVERS,EXTERNAL AGENCIES AND BODIES,2103313506,1000016253
02.09.2021,CHILDREN AND FAMILIES,THE SALVATION ARMY,"1,346.02",UASC CARELEAVERS,EXTERNAL AGENCIES AND BODIES,2103313488,1000016253
02.09.2021,CHILDREN AND FAMILIES,THE SALVATION ARMY,"1,346.02",UASC CARELEAVERS,EXTERNAL AGENCIES AND BODIES,2103313492,1000016253
02.09.2021,CHILDREN AND FAMILIES,THE SALVATION ARMY,"1,346.02",UASC CARELEAVERS,EXTERNAL AGENCIES AND BODIES,2103313500,1000016253
02.09.2021,CHILDREN AND FAMILIES,THE SALVATION ARMY,"1,356.00",UASC CARELEAVERS,EXTERNAL AGENCIES AND BODIES,2103313482,1000016253
02.09.2021,CHILDREN AND FAMILIES,THE SALVATION ARMY,"1,356.00",UASC CARELEAVERS,EXTERNAL AGENCIES AND BODIES,2103313484,1000016253
02.09.2021,CHILDREN AND FAMILIES,THE SALVATION ARMY,"1,401.20",UASC CARELEAVERS,EXTERNAL AGENCIES AND BODIES,2103313504,1000016253
02.09.2021,CHILDREN AND FAMILIES,THE SALVATION ARMY,"1,401.20",UASC CARELEAVERS,EXTERNAL AGENCIES AND BODIES,2103313508,1000016253
02.09.2021,CHILDREN AND FAMILIES,CREATING LIFESTYLES LTD,"1,600.00",UASC CARELEAVERS,EXTERNAL AGENCIES AND BODIES,2103313684,1000075830
02.09.2021,COMMUNITIES,LONDON SENIOR SOCIAL LTD,"3,000.00",EAST CENTRAL,GRANTS,5902484904,1000076545
02.09.2021,COMMUNITIES,HIDAYA WOMEN`S ASSOCIATION,"1,795.00",WEST CENTRAL,GRANTS,5902484889,1000087212
02.09.2021,COMMUNITIES HRA,MANOR ESTATE T&RA,"1,793.00",RESIDENTS PARTICIPATION FUND,GRANTS,5902483775,1000078115
02.09.2021,COMMUNITIES HRA,GLADSMUIR LIMITED,360,TRA HALLS (REPAIRS),SUBSCRIPTIONS,5902484946,1000084140
02.09.2021,COMMUNITIES HRA,GLADSMUIR LIMITED,360,TRA HALLS (REPAIRS),SUBSCRIPTIONS,5902484947,1000084140
02.09.2021,COMMUNITIES HRA,WRAYBURN COMMUNITIES ORGANISATION LTD,"3,357.00",WRAYBURN TMO,M&M ALLOWANCE CO-OPS,5902484902,1000078477
02.09.2021,COMMUNITIES HRA,WRAYBURN COMMUNITIES ORGANISATION LTD,"18,366.50",WRAYBURN TMO,M&M ALLOWANCE CO-OPS,5902484900,1000078477
02.09.2021,CUSTOMER EXPERIENCE HGF,FORENSIC PATHOLOGY SERVICES,491.9,CORONER'S,PROFESSIONAL FEES,5902484922,1000086871
02.09.2021,CUSTOMER EXPERIENCE HGF,PARTNERS IN CREATION LTD,"7,500.00",REGISTRARS,MISCELLANEOUS EXPENSES,5902483815,1000080021
02.09.2021,DSG,ROCKINGHAM COMMUNITY NURSERY,"24,079.58",NURSERY ED GRANT 3 AND 4 YR OLDS,GRANTS,2103313447,1095826
02.09.2021,DSG,TRINITY CHILD CARE,"20,621.25",NURSERY ED GRANT 3 AND 4 YR OLDS,GRANTS,2103313464,1151305
02.09.2021,DSG,S R C COMMUNITY NURSERY,"35,899.50",NURSERY ED GRANT 3 AND 4 YR OLDS,GRANTS,2103313455,1414681
02.09.2021,DSG,PLAYSHACK PLAYGROUP,"6,392.10",NURSERY ED GRANT 3 AND 4 YR OLDS,GRANTS,2103313443,1608859
02.09.2021,DSG,PUDDLEDUCK NURSERY,"17,995.50",NURSERY ED GRANT 3 AND 4 YR OLDS,GRANTS,2103313444,11210722
02.09.2021,DSG,PLAYDAYS UK LTD,"9,054.30",NURSERY ED GRANT 3 AND 4 YR OLDS,GRANTS,2103313451,11210767
02.09.2021,DSG,THE BEECHES NURSERY GROUP LTD,"26,593.45",NURSERY ED GRANT 3 AND 4 YR OLDS,GRANTS,2103313400,11215743
02.09.2021,DSG,HALFMOON MONTESSORI NURSERY,"21,500.70",NURSERY ED GRANT 3 AND 4 YR OLDS,GRANTS,2103313411,11219161
02.09.2021,DSG,HERMAN WHYTE T/A LITTLE CLIMBERS DAYCARE PROJECT,"7,029.75",NURSERY ED GRANT 3 AND 4 YR OLDS,GRANTS,2103313422,11230367
02.09.2021,DSG,KINGS COLLEGE NHS FOUNDATION TRUST,"10,951.50",NURSERY ED GRANT 3 AND 4 YR OLDS,GRANTS,2103313417,11255665
02.09.2021,DSG,BRIGHT HORIZONS FAMILY SOLUTIONS,"21,402.29",NURSERY ED GRANT 3 AND 4 YR OLDS,GRANTS,2103313441,11294322
02.09.2021,DSG,CEDAR HOUSE DAY NURSERY,"12,203.10",NURSERY ED GRANT 3 AND 4 YR OLDS,GRANTS,2103313387,11298694
02.09.2021,DSG,ELEPHANT & CASTLE DAY NURSERY LTD,"33,344.33",NURSERY ED GRANT 3 AND 4 YR OLDS,GRANTS,2103313397,11329999
02.09.2021,DSG,MIATA EDUCATIONAL SERVICES LTD,"22,534.20",NURSERY ED GRANT 3 AND 4 YR OLDS,GRANTS,2103313395,1000003741
02.09.2021,DSG,THE VILLA SCHOOL & NURSERY LTD,"71,654.10",NURSERY ED GRANT 3 AND 4 YR OLDS,GRANTS,2103313462,1000003742
02.09.2021,DSG,HALFPINTS PRE-SCHOOL,"11,182.28",NURSERY ED GRANT 3 AND 4 YR OLDS,GRANTS,2103313410,1000012294
02.09.2021,DSG,LITTLE ACORNS DAY NURSERY,"44,204.55",NURSERY ED GRANT 3 AND 4 YR OLDS,GRANTS,2103313420,1000015844
02.09.2021,DSG,CRYSTAL NURSERY (UK),"17,656.50",NURSERY ED GRANT 3 AND 4 YR OLDS,GRANTS,2103313408,1000016621
02.09.2021,DSG,MOTHER GOOSE NURSERIES T/A MOTHER GOOSE,"16,181.40",NURSERY ED GRANT 3 AND 4 YR OLDS,GRANTS,2103313434,1000017311
02.09.2021,DSG,MOTHER GOOSE NURSERIES - GREENDALE FIELDS LTD,"23,780.40",NURSERY ED GRANT 3 AND 4 YR OLDS,GRANTS,2103313433,1000025888
02.09.2021,DSG,BASCULE LTD,"12,396.80",NURSERY ED GRANT 3 AND 4 YR OLDS,GRANTS,2103313437,1000037268
02.09.2021,DSG,BASCULE LTD,"18,651.75",NURSERY ED GRANT 3 AND 4 YR OLDS,GRANTS,2103313438,1000037268
02.09.2021,DSG,LITTLE WINNERS DAY NURSERY 1,"15,692.40",NURSERY ED GRANT 3 AND 4 YR OLDS,GRANTS,2103313428,1000041814
02.09.2021,DSG,NEW VISION DAY NURSERY,"12,231.38",NURSERY ED GRANT 3 AND 4 YR OLDS,GRANTS,2103313439,1000041971
02.09.2021,DSG,FOUNTAIN CHILDRENS CENTRE LIMITED,"12,982.13",NURSERY ED GRANT 3 AND 4 YR OLDS,GRANTS,2103313401,1000042265
02.09.2021,DSG,MAGIC ROUNDABOUT NURSERIES LTD,"24,998.62",NURSERY ED GRANT 3 AND 4 YR OLDS,GRANTS,2103313430,1000045128
02.09.2021,DSG,NICKI DAY NURSERY LTD,"22,849.50",NURSERY ED GRANT 3 AND 4 YR OLDS,GRANTS,2103313440,1000045363
02.09.2021,DSG,ARC COMMUNITY TRUSTEES,"9,878.70",NURSERY ED GRANT 3 AND 4 YR OLDS,GRANTS,2103313374,1000046206
02.09.2021,DSG,THE BOSCO CENTRE,"12,287.93",NURSERY ED GRANT 3 AND 4 YR OLDS,GRANTS,2103313380,1000046317
02.09.2021,DSG,1ST PLACE CHILDREN & PARENTS CENTRE,"33,619.73",NURSERY ED GRANT 3 AND 4 YR OLDS,GRANTS,2103313368,1000049952
02.09.2021,DSG,1ST PLACE CHILDREN & PARENTS CENTRE,"43,142.78",NURSERY ED GRANT 3 AND 4 YR OLDS,GRANTS,2103313367,1000049952
02.09.2021,DSG,1ST PLACE CHILDREN & PARENTS CENTRE,"50,784.68",NURSERY ED GRANT 3 AND 4 YR OLDS,GRANTS,2103313369,1000049952
02.09.2021,DSG,CAMBERWELL AFTER SCHOOL PROJECT,"7,029.75",NURSERY ED GRANT 3 AND 4 YR OLDS,GRANTS,2103313386,1000051625
02.09.2021,DSG,JULIE THOMPSON,"15,922.14",NURSERY ED GRANT 3 AND 4 YR OLDS,GRANTS,2103313379,1000054116
02.09.2021,DSG,OLUYEMISI EKAGHA SHALOM - DESTINY DAY NURSERY,"9,495.53",NURSERY ED GRANT 3 AND 4 YR OLDS,GRANTS,2103313450,1000054464
02.09.2021,DSG,SMART START NURSERY,"51,882.98",NURSERY ED GRANT 3 AND 4 YR OLDS,GRANTS,2103313453,1000056317
02.09.2021,DSG,GERMAN KINDERGARTEN LTD,"5,811.00",NURSERY ED GRANT 3 AND 4 YR OLDS,GRANTS,2103313403,1000058090
02.09.2021,DSG,GERMAN KINDERGARTEN LTD,"14,304.00",NURSERY ED GRANT 3 AND 4 YR OLDS,GRANTS,2103313404,1000058090
02.09.2021,DSG,VICTORY IN COMMUNITY RESOURCE CENTRE,"29,385.38",NURSERY ED GRANT 3 AND 4 YR OLDS,GRANTS,2103313466,1000058383
02.09.2021,DSG,AZARMINDOKHT AALAMANI,"15,019.20",NURSERY ED GRANT 3 AND 4 YR OLDS,GRANTS,2103313375,1000059329
02.09.2021,DSG,ARK SCHOOLS T/A GLOBE ACADEMY,"18,595.20",NURSERY ED GRANT 3 AND 4 YR OLDS,GRANTS,2103313405,1000060008
02.09.2021,DSG,SUCCESS ASSOCIATES,"22,804.28",NURSERY ED GRANT 3 AND 4 YR OLDS,GRANTS,2103313418,1000060300
02.09.2021,DSG,EXCEL CHILD CARE SERVICES LTD,"27,317.33",NURSERY ED GRANT 3 AND 4 YR OLDS,GRANTS,2103313399,1000060429
02.09.2021,DSG,MINI TREASURES NURSERY,"9,438.98",NURSERY ED GRANT 3 AND 4 YR OLDS,GRANTS,2103313432,1000062250
02.09.2021,DSG,MINI TREASURES NURSERY,"25,298.33",NURSERY ED GRANT 3 AND 4 YR OLDS,GRANTS,2103313431,1000062250
02.09.2021,DSG,CTY NURSERY LTD,"17,283.23",NURSERY ED GRANT 3 AND 4 YR OLDS,GRANTS,2103313390,1000063131
02.09.2021,DSG,K & O CHILDCARE LTD,"18,325.13",NURSERY ED GRANT 3 AND 4 YR OLDS,GRANTS,2103313416,1000065113
02.09.2021,DSG,SURE AND FIRM FOUNDATIONS,"18,595.20",NURSERY ED GRANT 3 AND 4 YR OLDS,GRANTS,2103313436,1000066223
02.09.2021,DSG,LITTLE JUNGLE NURSERY LIMITED,"33,703.80",NURSERY ED GRANT 3 AND 4 YR OLDS,GRANTS,2103313424,1000067064
02.09.2021,DSG,SANDRA LITCHMORE,"12,869.03",NURSERY ED GRANT 3 AND 4 YR OLDS,GRANTS,2103313398,1000067981
02.09.2021,DSG,GOOSE GREEN PRIMARY AND NURSERY SCHOOL,"19,757.40",NURSERY ED GRANT 3 AND 4 YR OLDS,GRANTS,2103313407,1000070613
02.09.2021,DSG,PIPLINGS NURSERY ED,"12,784.20",NURSERY ED GRANT 3 AND 4 YR OLDS,GRANTS,2103313442,1000070644
02.09.2021,DSG,UNDER THE WILLOW NURSERY,"7,166.90",NURSERY ED GRANT 3 AND 4 YR OLDS,GRANTS,2103313465,1000071830
02.09.2021,DSG,UNDER THE WILLOW NURSERY,"16,077.10",NURSERY ED GRANT 3 AND 4 YR OLDS,GRANTS,2103313449,1000071830
02.09.2021,DSG,THE FRUIT TREE DAY NURSERY,"40,238.03",NURSERY ED GRANT 3 AND 4 YR OLDS,GRANTS,2103313461,1000072492
02.09.2021,DSG,GODS GRACE DAYCARE,"2,905.50",NURSERY ED GRANT 3 AND 4 YR OLDS,GRANTS,2103313406,1000072790
02.09.2021,DSG,LITTLE FINGERS MONTESSORI 2,"19,176.30",NURSERY ED GRANT 3 AND 4 YR OLDS,GRANTS,2103313423,1000073415
02.09.2021,DSG,LOGICOUS LTD,"28,773.95",NURSERY ED GRANT 3 AND 4 YR OLDS,GRANTS,2103313376,1000073852
02.09.2021,DSG,BRIGHT EXPLORERS DAY NURSERY,"29,914.28",NURSERY ED GRANT 3 AND 4 YR OLDS,GRANTS,2103313381,1000074268
02.09.2021,DSG,SMART KIDS DAY NURSERY,"26,258.03",NURSERY ED GRANT 3 AND 4 YR OLDS,GRANTS,2103313452,1000074580
02.09.2021,DSG,PATRICIA IBIRONKE T/A JOYFUL STAR NURSERY,"10,964.10",NURSERY ED GRANT 3 AND 4 YR OLDS,GRANTS,2103313415,1000074638
02.09.2021,DSG,JOY ALLI,"9,467.25",NURSERY ED GRANT 3 AND 4 YR OLDS,GRANTS,2103313448,1000074965
02.09.2021,DSG,FIRST CHOICE DAY NURSERY,"12,542.40",NURSERY ED GRANT 3 AND 4 YR OLDS,GRANTS,2103313366,1000075368
02.09.2021,DSG,ANGEL OAK ACADEMY,"13,186.50",NURSERY ED GRANT 3 AND 4 YR OLDS,GRANTS,2103313373,1000075379
02.09.2021,DSG,HEAVENLY ANGELS LTD T/A BANANA MOON DAY NURSERY,"31,035.68",NURSERY ED GRANT 3 AND 4 YR OLDS,GRANTS,2103313377,1000076197
02.09.2021,DSG,EAST DULWICH GROVE NURSERY LTD,"30,869.75",NURSERY ED GRANT 3 AND 4 YR OLDS,GRANTS,2103313396,1000077140
02.09.2021,DSG,LONDON EARLY YEARS FOUNDATION,"23,966.48",NURSERY ED GRANT 3 AND 4 YR OLDS,GRANTS,2103313378,1000077919
02.09.2021,DSG,LONDON EARLY YEARS FOUNDATION,"26,787.15",NURSERY ED GRANT 3 AND 4 YR OLDS,GRANTS,2103313454,1000077919
02.09.2021,DSG,LONDON EARLY YEARS FOUNDATION,"28,900.04",NURSERY ED GRANT 3 AND 4 YR OLDS,GRANTS,2103313385,1000077919
02.09.2021,DSG,LONDON EARLY YEARS FOUNDATION,"35,059.70",NURSERY ED GRANT 3 AND 4 YR OLDS,GRANTS,2103313409,1000077919
02.09.2021,DSG,LONDON EARLY YEARS FOUNDATION,"42,357.83",NURSERY ED GRANT 3 AND 4 YR OLDS,GRANTS,2103313383,1000077919
02.09.2021,DSG,LILIES DAY NURSERY,"43,483.95",NURSERY ED GRANT 3 AND 4 YR OLDS,GRANTS,2103313419,1000078155
02.09.2021,DSG,EAGLES FLIGHT MONTESSORI NURSERY,"2,352.68",NURSERY ED GRANT 3 AND 4 YR OLDS,GRANTS,2103313394,1000079087
02.09.2021,DSG,LITTLEPIPS PRESCHOOL,"11,482.13",NURSERY ED GRANT 3 AND 4 YR OLDS,GRANTS,2103313426,1000079580
02.09.2021,DSG,BRIGHT SOJOURNER NURSERY LTD,"25,830.15",NURSERY ED GRANT 3 AND 4 YR OLDS,GRANTS,2103313382,1000080155
02.09.2021,DSG,BUTTERFLY LANE NURSERY LTD,"14,456.58",NURSERY ED GRANT 3 AND 4 YR OLDS,GRANTS,2103313384,1000080549
02.09.2021,DSG,SUNSHINE FRUITS NURSERY LTD,"15,108.60",NURSERY ED GRANT 3 AND 4 YR OLDS,GRANTS,2103313459,1000081059
02.09.2021,DSG,LITTLE BEARS 4 LMITED T/A LITTLE BEARS IN ELEPHANT CENTRE,"13,815.45",NURSERY ED GRANT 3 AND 4 YR OLDS,GRANTS,2103313421,1000082505
02.09.2021,DSG,LITTLE ME CANADA WATER LTD,"54,806.95",NURSERY ED GRANT 3 AND 4 YR OLDS,GRANTS,2103313425,1000083348
02.09.2021,DSG,SUNHILL DAYCARE (EUROPE) LIMITED,"20,714.25",NURSERY ED GRANT 3 AND 4 YR OLDS,GRANTS,2103313458,1000083945
02.09.2021,DSG,TIGERS CHILDCARE LTD,"25,880.18",NURSERY ED GRANT 3 AND 4 YR OLDS,GRANTS,2103313463,1000084290
02.09.2021,DSG,LITTLE RABBIT DAY NURSERY,"13,591.50",NURSERY ED GRANT 3 AND 4 YR OLDS,GRANTS,2103313427,1000084320
02.09.2021,DSG,COLOURBOX CHILDCARE NURSERY LTD,"4,067.70",NURSERY ED GRANT 3 AND 4 YR OLDS,GRANTS,2103313389,1000085180
02.09.2021,DSG,GALAXY EXPLORERS DAY NURSERY LIMITED,"15,355.48",NURSERY ED GRANT 3 AND 4 YR OLDS,GRANTS,2103313402,1000085260
02.09.2021,DSG,ABC STUDIOS CHILDCARE,"6,448.65",NURSERY ED GRANT 3 AND 4 YR OLDS,GRANTS,2103313370,1000085422
02.09.2021,DSG,ALPHA STARS EARLY YEARS LTD,"1,218.75",NURSERY ED GRANT 3 AND 4 YR OLDS,GRANTS,2103313372,1000086062
02.09.2021,DSG,PURPLE JAY EAST DULWICH LTD,"16,255.90",NURSERY ED GRANT 3 AND 4 YR OLDS,GRANTS,2103313445,1000086696
02.09.2021,DSG,DULWICH VILLAGE PRE-SCHOOL,"11,064.71",NURSERY ED GRANT 3 AND 4 YR OLDS,GRANTS,2103313393,11171932
02.09.2021,DSG,MUSTARD SEED PRE-SCHOOL,"8,063.88",NURSERY ED GRANT 3 AND 4 YR OLDS,GRANTS,2103313435,11210829
02.09.2021,DSG,ST JOHNS PRE SCHOOL,"12,097.28",NURSERY ED GRANT 3 AND 4 YR OLDS,GRANTS,2103313456,1000013380
02.09.2021,DSG,ALLEYNS JUNIOR SCHOOL,"2,950.20",NURSERY ED GRANT 3 AND 4 YR OLDS,GRANTS,2103313371,1000020848
02.09.2021,DSG,DULWICH MONTESSORI NURSERY SCHOOL,"29,720.93",NURSERY ED GRANT 3 AND 4 YR OLDS,GRANTS,2103313391,1000020859
02.09.2021,DSG,REDRIFF PRIMARY SCHOOL,"39,514.80",NURSERY ED GRANT 3 AND 4 YR OLDS,GRANTS,2103313446,1000067877
02.09.2021,DSG,HARRIS PRIMARY ACADEMY PECKHAM PARK,"19,668.00",NURSERY ED GRANT 3 AND 4 YR OLDS,GRANTS,2103313412,1000068029
02.09.2021,DSG,DULWICH OAKS MONTESSORI NURSERY SCHOOL,"65,139.75",NURSERY ED GRANT 3 AND 4 YR OLDS,GRANTS,2103313392,1000070726
02.09.2021,DSG,JOHN DONNE PRIMARY SCHOOL,"27,311.70",NURSERY ED GRANT 3 AND 4 YR OLDS,GRANTS,2103313413,1000073253
02.09.2021,DSG,ST PAULS C OF E PRIMARY SCHOOL,"12,203.10",NURSERY ED GRANT 3 AND 4 YR OLDS,GRANTS,2103313457,1000082314
02.09.2021,DSG,JOHN KEATS PRIMARY SCHOOL,"10,906.80",NURSERY ED GRANT 3 AND 4 YR OLDS,GRANTS,2103313414,1000082645
02.09.2021,DSG,SURREY SQUARE PRIMARY SCHOOL,"29,777.48",NURSERY ED GRANT 3 AND 4 YR OLDS,GRANTS,2103313460,1000082648
02.09.2021,DSG,CHARLES DICKENS PRIMARY SCHOOL,"32,626.43",NURSERY ED GRANT 3 AND 4 YR OLDS,GRANTS,2103313388,1000085158
02.09.2021,DSG,CHARTER SCHOOLS EDUCATIONAL TRUST T/A LYNDHURST PRIMARY SCHOOL,"27,311.70",NURSERY ED GRANT 3 AND 4 YR OLDS,GRANTS,2103313429,1000086766
02.09.2021,EDUCATION,EAST SUSSEX COUNTY COUNCIL,"3,772.20",SCH TRANS � TRAVEL,RECOUPMENT,5902484181,1000015148
02.09.2021,ENV & LEIS,BELL BRUSH COMPANY,349.5,MANAGEMENT TEAM,MATERIALS,5902484929,1259776
02.09.2021,ENV & LEIS,BELL BRUSH COMPANY,"1,368.75",MANAGEMENT TEAM,MATERIALS,5902484928,1259776
02.09.2021,ENVIRONMENT AND LEISURE,INTO SERVICES LONDON LTD,350,CAPITAL PS (LEISURE),CONST'N MAIN CONTRACT - NON CERTIFICATED,5902484519,1000059328
02.09.2021,ENVIRONMENT AND LEISURE,UNIFIED CONSULTANCY LTD,"2,603.50",CAPITAL PS (LEISURE),CONSTRUCTION FEES  - EXTERNAL,5902484899,1000081827
02.09.2021,ENVIRONMENT DIRECTORATE,ONSITE SUPPORT LTD,879.6,COMMERCIAL WASTE,EQUIPMENT PURCHASE & REPAIR,5902484584,1000043198
02.09.2021,ENVIRONMENT DIRECTORATE,GREENHAM TRADING LTD,950.45,ESTATE CLEANING-GENERAL,MATERIALS,5902485006,1000006610
02.09.2021,F & C S EXCLUDING CORPORATE BUDGETS,MRO PEOPLE LTD,850,ADMINISTRATIVE SUPPORT,TRAINING,5902484994,1000083017
02.09.2021,F & C S EXCLUDING CORPORATE BUDGETS,REDACTED PERSONAL DATA,500,SESS,OTHER PAYMENTS FOR CLIENTS,REDACTED,REDACTED
02.09.2021,F & C S EXCLUDING CORPORATE BUDGETS,REDACTED PERSONAL DATA,500,SESS,OTHER PAYMENTS FOR CLIENTS,REDACTED,REDACTED
02.09.2021,F & C S EXCLUDING CORPORATE BUDGETS,REDACTED PERSONAL DATA,500,SESS,OTHER PAYMENTS FOR CLIENTS,REDACTED,REDACTED
02.09.2021,F & C S EXCLUDING CORPORATE BUDGETS,REDACTED PERSONAL DATA,500,SESS,OTHER PAYMENTS FOR CLIENTS,REDACTED,REDACTED
02.09.2021,F & C S EXCLUDING CORPORATE BUDGETS,REDACTED PERSONAL DATA,500,SESS,OTHER PAYMENTS FOR CLIENTS,REDACTED,REDACTED
02.09.2021,F & C S EXCLUDING CORPORATE BUDGETS,REDACTED PERSONAL DATA,500,SESS,OTHER PAYMENTS FOR CLIENTS,REDACTED,REDACTED
02.09.2021,F & C S EXCLUDING CORPORATE BUDGETS,REDACTED PERSONAL DATA,500,SESS,OTHER PAYMENTS FOR CLIENTS,REDACTED,REDACTED
02.09.2021,F & C S EXCLUDING CORPORATE BUDGETS,REDACTED PERSONAL DATA,500,SESS,OTHER PAYMENTS FOR CLIENTS,REDACTED,REDACTED
02.09.2021,F & C S EXCLUDING CORPORATE BUDGETS,REDACTED PERSONAL DATA,500,SESS,OTHER PAYMENTS FOR CLIENTS,REDACTED,REDACTED
02.09.2021,F & C S EXCLUDING CORPORATE BUDGETS,REDACTED PERSONAL DATA,500,SESS,OTHER PAYMENTS FOR CLIENTS,REDACTED,REDACTED
02.09.2021,F & C S EXCLUDING CORPORATE BUDGETS,REDACTED PERSONAL DATA,500,SESS,OTHER PAYMENTS FOR CLIENTS,REDACTED,REDACTED
02.09.2021,F & C S EXCLUDING CORPORATE BUDGETS,REDACTED PERSONAL DATA,500,SESS,OTHER PAYMENTS FOR CLIENTS,REDACTED,REDACTED
02.09.2021,F & C S EXCLUDING CORPORATE BUDGETS,REDACTED PERSONAL DATA,500,SESS,OTHER PAYMENTS FOR CLIENTS,REDACTED,REDACTED
02.09.2021,F & C S EXCLUDING CORPORATE BUDGETS,REDACTED PERSONAL DATA,500,SESS,OTHER PAYMENTS FOR CLIENTS,REDACTED,REDACTED
02.09.2021,F & C S EXCLUDING CORPORATE BUDGETS,REDACTED PERSONAL DATA,500,SESS,OTHER PAYMENTS FOR CLIENTS,REDACTED,REDACTED
02.09.2021,F&CS,CAPITA BUSINESS SERVICES LTD,"65,846.30",INCOME MANAGEMENT,BANK CHARGES,6101994937,DIRECT DEBIT PAYMENT
02.09.2021,HOUSING,OCO LIMITED,"138,474.17",PAYMENTS CONTROL ACCOUNT - OCO,I-WORLD CONTRACTORS HOLDING ACCOUNT,5902484939,1006066
02.09.2021,HOUSING,SMITH & BYFORD LTD,"113,765.58",SMITH AND BYFORD,I-WORLD CONTRACTORS HOLDING ACCOUNT,5902484940,11212119
02.09.2021,HOUSING GENERAL FUND,LONDON BOROUGH OF BRENT,"19,489.89",CAPITAL PS (HOUSING GF),ICT ACQUISITION,5902484911,1000064734
02.09.2021,HOUSING HRA,SOCOTEC UK LTD,"3,300.00",CAPITAL PS (HRA),CONSTRUCTION FEES  - EXTERNAL,5902484852,1000012442
02.09.2021,HOUSING HRA,ARCHIO LTD,"36,400.00",CAPITAL PS (HRA),CONSTRUCTION FEES - ARCHITECT,5902484891,1000086130
02.09.2021,HOUSING HRA,FEREDAY POLLARD ARCHITECTS LIMITED,"5,500.00",CAPITAL PS (HRA),CONSTRUCTION FEES - ARCHITECT,5902484906,1000087240
02.09.2021,HOUSING HRA,BAILY  GARNER LLP,"16,099.20",CAPITAL PS (HRA),CONSTRUCTION FEES - EMPLOYERS AGENT,5902484956,1000663
02.09.2021,HOUSING HRA,SHARPE PRITCHARD LLP,611,CAPITAL PS (HRA),CONSTRUCTION FEES - LEGAL,5902484978,1790085
02.09.2021,HOUSING HRA,ENGIE REGENERATION (APOLLO) LTD,"98,836.96",CAPITAL PS (HRA),CONSTRUCTION MAIN CONTRACT -CERTIFICATED,2103313363,4000449
02.09.2021,HOUSING HRA,A & E ELKINS LTD,"19,955.69",CAPITAL PS (HRA),CONSTRUCTION MAIN CONTRACT -CERTIFICATED,2103310753,4012501
02.09.2021,HOUSING HRA,DURKAN LTD,"419,423.29",CAPITAL PS (HRA),CONSTRUCTION MAIN CONTRACT -CERTIFICATED,2103314256,3000000960
02.09.2021,HOUSING HRA,VITAL ENERGI UTILITIES LTD,"39,977.27",CAPITAL PS (HRA),CONSTRUCTION MAIN CONTRACT -CERTIFICATED,2103314260,3000001040
02.09.2021,HOUSING HRA,STANNAH LIFT SERVICES LTD,"5,054.00",CAPITAL PS (HRA),UTILITIES INSTALLATION,5902483793,1063595
02.09.2021,HOUSING HRA,CROWN CONSULTANTS LTD,900,CAPITAL PS (REGEN),CONSTRUCTION FEES  - EXTERNAL,5902484412,1000077116
02.09.2021,HRA,SILK & MACKMAN SERVICES LTD,"76,056.56",ENG CONTRACTS (NORTH),I-WORLD CONTRACTORS HOLDING ACCOUNT,5902484909,1000035282
02.09.2021,LEISURE DIRECTORATE,THE BLUE BERMONDSEY BID CO LTD,"2,500.00",ADMINISTRATION,GRANTS,5902484995,1000074877
02.09.2021,LEISURE DIRECTORATE,INSPIRE AT ST PETER'S LTD,"3,000.00",GRANTS COMMISSIONING,GRANTS,5902484949,1000041565
02.09.2021,LEISURE DIRECTORATE,WATERLOO SPORTS & FOOTBALL CLUB,"2,500.00",GRANTS COMMISSIONING,GRANTS,5902484981,1000044091
02.09.2021,NEW BUILD,SHARPE PRITCHARD LLP,"6,955.00",DEVELOPMENT DELIVERY,PROFESSIONAL FEES,5902484895,1790085
02.09.2021,PLANNING AND TRANSPORT,OUR HUT,"2,992.00",PECKHAM TOWNSCAPE HERITAGE INITIATIVE,CONSULTANTS SERVICES,5902484545,1000078640
02.09.2021,PUBLIC HEALTH,REDACTED PERSONAL DATA,500,COVID-19 CONTROL OUTBREAK MGMNT.FUND,OTHER PAYMENTS FOR CLIENTS,REDACTED,REDACTED
02.09.2021,PUBLIC HEALTH,ADAM FRESH FRUITS LIMITED,"7,441.00",PLACE & HEALTH IMPROVEMENT,EXTERNAL AGENCIES AND BODIES,5902484232,1000087126
02.09.2021,PUBLICHEALTH,ELITE GUARDING (UK) LTD,"49,400.00",COVID-19 MASS RAPID TESTING,EXTERNAL AGENCIES AND BODIES,5902484916,1000086183
02.09.2021,PUBLICHEALTH,ELITE GUARDING (UK) LTD,"49,400.00",COVID-19 MASS RAPID TESTING,EXTERNAL AGENCIES AND BODIES,5902484917,1000086183
02.09.2021,RESIDENT SERVICES,CASTLE WATER LTD,864.91,TA HOSTELS,ELECTRICITY,5902484912,1000078867
02.09.2021,RESIDENT SERVICES,CASTLE WATER LTD,941.13,TA HOSTELS,ELECTRICITY,5902484912,1000078867
02.09.2021,RESIDENT SERVICES,CHESHIRE ESTATE AND LEGAL LTD,"1,500.00",TA HOSTELS,PAYMENTS FOR LEGAL SERVICES,2103314263,1000081488
02.09.2021,RESIDENT SERVICES HGF,AM PM ESTATES LTD,"2,117.28",HOMELESS PROJECTS,GRANTS,5902484968,1000078587
02.09.2021,RESIDENT SERVICES HGF,DOCUMENT OPTIONS LIMITED,366.17,HOUSING OPTIONS,OFFICE EXPENSES,5902484932,1000051744
02.09.2021,RESIDENT SERVICES HGF,EASYMOVE EA LIMITED,"1,943.70",NIGHTLY TA (NSC),EXTERNAL AGENCIES AND BODIES,5902484936,1000066859
02.09.2021,SBS SUPPORT,E & E BUILDING SERVICES LTD,"6,966.66",SBS - HOLDING ACCOUNT,OTHER CONTRACTORS,2103314261,3000001176
02.09.2021,STRATEGIC FINANCING BUDGETS,COMENSURA LTD,"597,432.22",AGENCY RECOVERY,AGENCY STAFF,5902484975,1000051261
03.09.2021,ADULT SOCIAL CARE,REDACTED PERSONAL DATA,400,APPOINTEESHIPS,OTHER PAYMENTS FOR CLIENTS,REDACTED,REDACTED
03.09.2021,ADULT SOCIAL CARE,COMMUNITY BUILDING MANAGEMENT,"1,494.00",DISABILITIES LAC,EXTERNAL AGENCIES AND BODIES,2103314806,1000078932
03.09.2021,ADULT SOCIAL CARE,COMMUNITY BUILDING MANAGEMENT,"1,494.00",DISABILITIES LAC,EXTERNAL AGENCIES AND BODIES,2103314809,1000078932
03.09.2021,ADULT SOCIAL CARE,CHOICE SUPPORT,514.36,DISCHARGE TO ACCESS,SUPPORTED LIVING,2103314737,1104183
03.09.2021,ADULT SOCIAL CARE,THE NEW SHOOTS,300,LD LTS 18-64,DAYCARE,2103314756,1000073970
03.09.2021,ADULT SOCIAL CARE,SAGECARE LTD,266.4,LD LTS 18-64,HOMECARE - C&V,2103314617,1000080924
03.09.2021,ADULT SOCIAL CARE,SAGECARE LTD,331.92,LD LTS 18-64,HOMECARE - C&V,2103314644,1000080924
03.09.2021,ADULT SOCIAL CARE,SAGECARE LTD,952,LD LTS 18-64,HOMECARE - C&V,2103314605,1000080924
03.09.2021,ADULT SOCIAL CARE,ELEANOR NURSING AND SOCIAL CARE LTD,"1,003.40",LD LTS 18-64,HOMECARE - SPOT,2103314422,1000081695
03.09.2021,ADULT SOCIAL CARE,CHOICE SUPPORT,293.92,LD LTS 18-64,SUPPORTED LIVING,2103314727,1104183
03.09.2021,ADULT SOCIAL CARE,CHOICE SUPPORT,293.92,LD LTS 18-64,SUPPORTED LIVING,2103314734,1104183
03.09.2021,ADULT SOCIAL CARE,CHOICE SUPPORT,367.4,LD LTS 18-64,SUPPORTED LIVING,2103314735,1104183
03.09.2021,ADULT SOCIAL CARE,CHOICE SUPPORT,734.8,LD LTS 18-64,SUPPORTED LIVING,2103314762,1104183
03.09.2021,ADULT SOCIAL CARE,CHOICE SUPPORT,808.28,LD LTS 18-64,SUPPORTED LIVING,2103314726,1104183
03.09.2021,ADULT SOCIAL CARE,CONTACT PROFESSIONALS,684,LD LTS 18-64,SUPPORTED LIVING,2103314720,1000057263
03.09.2021,ADULT SOCIAL CARE,CONTACT PROFESSIONALS,684,LD LTS 18-64,SUPPORTED LIVING,2103314721,1000057263
03.09.2021,ADULT SOCIAL CARE,CONTACT PROFESSIONALS,684,LD LTS 18-64,SUPPORTED LIVING,2103314724,1000057263
03.09.2021,ADULT SOCIAL CARE,CONTACT PROFESSIONALS,684,LD LTS 18-64,SUPPORTED LIVING,2103314729,1000057263
03.09.2021,ADULT SOCIAL CARE,CONTACT PROFESSIONALS,684,LD LTS 18-64,SUPPORTED LIVING,2103314731,1000057263
03.09.2021,ADULT SOCIAL CARE,CONTACT PROFESSIONALS,684,LD LTS 18-64,SUPPORTED LIVING,2103314740,1000057263
03.09.2021,ADULT SOCIAL CARE,CONTACT PROFESSIONALS,684,LD LTS 18-64,SUPPORTED LIVING,2103314743,1000057263
03.09.2021,ADULT SOCIAL CARE,CONTACT PROFESSIONALS,684,LD LTS 18-64,SUPPORTED LIVING,2103314746,1000057263
03.09.2021,ADULT SOCIAL CARE,CONTACT PROFESSIONALS,684,LD LTS 18-64,SUPPORTED LIVING,2103314748,1000057263
03.09.2021,ADULT SOCIAL CARE,CONTACT PROFESSIONALS,684,LD LTS 18-64,SUPPORTED LIVING,2103314757,1000057263
03.09.2021,ADULT SOCIAL CARE,CONTACT PROFESSIONALS,684,LD LTS 18-64,SUPPORTED LIVING,2103314758,1000057263
03.09.2021,ADULT SOCIAL CARE,CONTACT PROFESSIONALS,684,LD LTS 18-64,SUPPORTED LIVING,2103314759,1000057263
03.09.2021,ADULT SOCIAL CARE,CONTACT PROFESSIONALS,684,LD LTS 18-64,SUPPORTED LIVING,2103314760,1000057263
03.09.2021,ADULT SOCIAL CARE,CONTACT PROFESSIONALS,684,LD LTS 18-64,SUPPORTED LIVING,2103314763,1000057263
03.09.2021,ADULT SOCIAL CARE,CONTACT PROFESSIONALS,912,LD LTS 18-64,SUPPORTED LIVING,2103314723,1000057263
03.09.2021,ADULT SOCIAL CARE,CONTACT PROFESSIONALS,912,LD LTS 18-64,SUPPORTED LIVING,2103314725,1000057263
03.09.2021,ADULT SOCIAL CARE,CONTACT PROFESSIONALS,912,LD LTS 18-64,SUPPORTED LIVING,2103314728,1000057263
03.09.2021,ADULT SOCIAL CARE,CONTACT PROFESSIONALS,912,LD LTS 18-64,SUPPORTED LIVING,2103314730,1000057263
03.09.2021,ADULT SOCIAL CARE,CONTACT PROFESSIONALS,912,LD LTS 18-64,SUPPORTED LIVING,2103314739,1000057263
03.09.2021,ADULT SOCIAL CARE,CONTACT PROFESSIONALS,912,LD LTS 18-64,SUPPORTED LIVING,2103314744,1000057263
03.09.2021,ADULT SOCIAL CARE,CONTACT PROFESSIONALS,912,LD LTS 18-64,SUPPORTED LIVING,2103314745,1000057263
03.09.2021,ADULT SOCIAL CARE,CONTACT PROFESSIONALS,912,LD LTS 18-64,SUPPORTED LIVING,2103314747,1000057263
03.09.2021,ADULT SOCIAL CARE,CONTACT PROFESSIONALS,912,LD LTS 18-64,SUPPORTED LIVING,2103314749,1000057263
03.09.2021,ADULT SOCIAL CARE,CONTACT PROFESSIONALS,912,LD LTS 18-64,SUPPORTED LIVING,2103314750,1000057263
03.09.2021,ADULT SOCIAL CARE,CONTACT PROFESSIONALS,912,LD LTS 18-64,SUPPORTED LIVING,2103314753,1000057263
03.09.2021,ADULT SOCIAL CARE,CONTACT PROFESSIONALS,912,LD LTS 18-64,SUPPORTED LIVING,2103314754,1000057263
03.09.2021,ADULT SOCIAL CARE,CONTACT PROFESSIONALS,912,LD LTS 18-64,SUPPORTED LIVING,2103314755,1000057263
03.09.2021,ADULT SOCIAL CARE,CONTACT PROFESSIONALS,912,LD LTS 18-64,SUPPORTED LIVING,2103314764,1000057263
03.09.2021,ADULT SOCIAL CARE,ELEANOR NURSING AND SOCIAL CARE LTD,"1,090.04",LD LTS 18-64,SUPPORTED LIVING,2103314426,1000081695
03.09.2021,ADULT SOCIAL CARE,BRISEN COMPANY LTD,"1,428.00",LD LTS 18-64,SUPPORTED LIVING,2103314421,1000083000
03.09.2021,ADULT SOCIAL CARE,BRISEN COMPANY LTD,"5,031.00",LD LTS 18-64,SUPPORTED LIVING,2103314420,1000083000
03.09.2021,ADULT SOCIAL CARE,SAGECARE LTD,497.88,MEM LTS 65+,HOMECARE - C&V,2103314510,1000080924
03.09.2021,ADULT SOCIAL CARE,SAGECARE LTD,640.79,MEM LTS 65+,HOMECARE - C&V,2103314453,1000080924
03.09.2021,ADULT SOCIAL CARE,SAGECARE LTD,646,MEM LTS 65+,HOMECARE - C&V,2103314598,1000080924
03.09.2021,ADULT SOCIAL CARE,SAGECARE LTD,673.06,MEM LTS 65+,HOMECARE - C&V,2103314579,1000080924
03.09.2021,ADULT SOCIAL CARE,SAGECARE LTD,693.34,MEM LTS 65+,HOMECARE - C&V,2103314502,1000080924
03.09.2021,ADULT SOCIAL CARE,SAGECARE LTD,769.87,MEM LTS 65+,HOMECARE - C&V,2103314497,1000080924
03.09.2021,ADULT SOCIAL CARE,SAGECARE LTD,"1,007.62",MEM LTS 65+,HOMECARE - C&V,2103314641,1000080924
03.09.2021,ADULT SOCIAL CARE,SAGECARE LTD,"1,032.64",MEM LTS 65+,HOMECARE - C&V,2103314587,1000080924
03.09.2021,ADULT SOCIAL CARE,SAGECARE LTD,"1,686.43",MEM LTS 65+,HOMECARE - C&V,2103314681,1000080924
03.09.2021,ADULT SOCIAL CARE,SAGECARE LTD,"3,088.70",MEM LTS 65+,HOMECARE - C&V,2103314616,1000080924
03.09.2021,ADULT SOCIAL CARE,SAGECARE LTD,253.55,MH LTS 18-64,HOMECARE - C&V,2103314511,1000080924
03.09.2021,ADULT SOCIAL CARE,SAGECARE LTD,272,MH LTS 18-64,HOMECARE - C&V,2103314450,1000080924
03.09.2021,ADULT SOCIAL CARE,SAGECARE LTD,295.04,MH LTS 18-64,HOMECARE - C&V,2103314679,1000080924
03.09.2021,ADULT SOCIAL CARE,SAGECARE LTD,318.09,MH LTS 18-64,HOMECARE - C&V,2103314456,1000080924
03.09.2021,ADULT SOCIAL CARE,SAGECARE LTD,408,MH LTS 18-64,HOMECARE - C&V,2103314576,1000080924
03.09.2021,ADULT SOCIAL CARE,SAGECARE LTD,571.64,MH LTS 18-64,HOMECARE - C&V,2103314654,1000080924
03.09.2021,ADULT SOCIAL CARE,SAGECARE LTD,691.5,MH LTS 18-64,HOMECARE - C&V,2103314528,1000080924
03.09.2021,ADULT SOCIAL CARE,SAGECARE LTD,"1,487.50",MH LTS 18-64,HOMECARE - C&V,2103314590,1000080924
03.09.2021,ADULT SOCIAL CARE,SAGECARE LTD,654.62,MH LTS 65+,HOMECARE - C&V,2103314684,1000080924
03.09.2021,ADULT SOCIAL CARE,SAGECARE LTD,671.5,MH LTS 65+,HOMECARE - C&V,2103314554,1000080924
03.09.2021,ADULT SOCIAL CARE,SAGECARE LTD,903.56,MH LTS 65+,HOMECARE - C&V,2103314563,1000080924
03.09.2021,ADULT SOCIAL CARE,SAGECARE LTD,253.55,PHY LTS 18-64,HOMECARE - C&V,2103314540,1000080924
03.09.2021,ADULT SOCIAL CARE,SAGECARE LTD,270.69,PHY LTS 18-64,HOMECARE - C&V,2103314568,1000080924
03.09.2021,ADULT SOCIAL CARE,SAGECARE LTD,313.48,PHY LTS 18-64,HOMECARE - C&V,2103314455,1000080924
03.09.2021,ADULT SOCIAL CARE,SAGECARE LTD,318.75,PHY LTS 18-64,HOMECARE - C&V,2103314477,1000080924
03.09.2021,ADULT SOCIAL CARE,SAGECARE LTD,348.5,PHY LTS 18-64,HOMECARE - C&V,2103314630,1000080924
03.09.2021,ADULT SOCIAL CARE,SAGECARE LTD,357,PHY LTS 18-64,HOMECARE - C&V,2103314447,1000080924
03.09.2021,ADULT SOCIAL CARE,SAGECARE LTD,387.24,PHY LTS 18-64,HOMECARE - C&V,2103314483,1000080924
03.09.2021,ADULT SOCIAL CARE,SAGECARE LTD,387.24,PHY LTS 18-64,HOMECARE - C&V,2103314503,1000080924
03.09.2021,ADULT SOCIAL CARE,SAGECARE LTD,387.24,PHY LTS 18-64,HOMECARE - C&V,2103314600,1000080924
03.09.2021,ADULT SOCIAL CARE,SAGECARE LTD,424.12,PHY LTS 18-64,HOMECARE - C&V,2103314549,1000080924
03.09.2021,ADULT SOCIAL CARE,SAGECARE LTD,437.95,PHY LTS 18-64,HOMECARE - C&V,2103314601,1000080924
03.09.2021,ADULT SOCIAL CARE,SAGECARE LTD,465.61,PHY LTS 18-64,HOMECARE - C&V,2103314499,1000080924
03.09.2021,ADULT SOCIAL CARE,SAGECARE LTD,501.5,PHY LTS 18-64,HOMECARE - C&V,2103314642,1000080924
03.09.2021,ADULT SOCIAL CARE,SAGECARE LTD,514.25,PHY LTS 18-64,HOMECARE - C&V,2103314664,1000080924
03.09.2021,ADULT SOCIAL CARE,SAGECARE LTD,561,PHY LTS 18-64,HOMECARE - C&V,2103314467,1000080924
03.09.2021,ADULT SOCIAL CARE,SAGECARE LTD,578.79,PHY LTS 18-64,HOMECARE - C&V,2103314665,1000080924
03.09.2021,ADULT SOCIAL CARE,SAGECARE LTD,585.47,PHY LTS 18-64,HOMECARE - C&V,2103314557,1000080924
03.09.2021,ADULT SOCIAL CARE,SAGECARE LTD,607.75,PHY LTS 18-64,HOMECARE - C&V,2103314632,1000080924
03.09.2021,ADULT SOCIAL CARE,SAGECARE LTD,608.52,PHY LTS 18-64,HOMECARE - C&V,2103314523,1000080924
03.09.2021,ADULT SOCIAL CARE,SAGECARE LTD,668.45,PHY LTS 18-64,HOMECARE - C&V,2103314591,1000080924
03.09.2021,ADULT SOCIAL CARE,SAGECARE LTD,700.72,PHY LTS 18-64,HOMECARE - C&V,2103314643,1000080924
03.09.2021,ADULT SOCIAL CARE,SAGECARE LTD,719.16,PHY LTS 18-64,HOMECARE - C&V,2103314481,1000080924
03.09.2021,ADULT SOCIAL CARE,SAGECARE LTD,751.43,PHY LTS 18-64,HOMECARE - C&V,2103314513,1000080924
03.09.2021,ADULT SOCIAL CARE,SAGECARE LTD,803.25,PHY LTS 18-64,HOMECARE - C&V,2103314580,1000080924
03.09.2021,ADULT SOCIAL CARE,SAGECARE LTD,811.75,PHY LTS 18-64,HOMECARE - C&V,2103314620,1000080924
03.09.2021,ADULT SOCIAL CARE,SAGECARE LTD,837.25,PHY LTS 18-64,HOMECARE - C&V,2103314566,1000080924
03.09.2021,ADULT SOCIAL CARE,SAGECARE LTD,954.27,PHY LTS 18-64,HOMECARE - C&V,2103314460,1000080924
03.09.2021,ADULT SOCIAL CARE,SAGECARE LTD,"1,149.11",PHY LTS 18-64,HOMECARE - C&V,2103314559,1000080924
03.09.2021,ADULT SOCIAL CARE,SAGECARE LTD,"1,219.75",PHY LTS 18-64,HOMECARE - C&V,2103314666,1000080924
03.09.2021,ADULT SOCIAL CARE,SAGECARE LTD,"1,267.75",PHY LTS 18-64,HOMECARE - C&V,2103314485,1000080924
03.09.2021,ADULT SOCIAL CARE,SAGECARE LTD,"1,300.02",PHY LTS 18-64,HOMECARE - C&V,2103314662,1000080924
03.09.2021,ADULT SOCIAL CARE,SAGECARE LTD,"1,423.75",PHY LTS 18-64,HOMECARE - C&V,2103314452,1000080924
03.09.2021,ADULT SOCIAL CARE,SAGECARE LTD,"1,496.00",PHY LTS 18-64,HOMECARE - C&V,2103314547,1000080924
03.09.2021,ADULT SOCIAL CARE,ELEANOR NURSING AND SOCIAL CARE LTD,796.08,PHY LTS 18-64,HOMECARE - C&V,2103314428,1000081695
03.09.2021,ADULT SOCIAL CARE,ELEANOR NURSING AND SOCIAL CARE LTD,865,PHY LTS 18-64,HOMECARE - SPOT,2103314424,1000081695
03.09.2021,ADULT SOCIAL CARE,ELEANOR NURSING AND SOCIAL CARE LTD,"1,747.88",PHY LTS 18-64,HOMECARE - SPOT,2103314427,1000081695
03.09.2021,ADULT SOCIAL CARE,ELEANOR NURSING AND SOCIAL CARE LTD,"3,460.00",PHY LTS 18-64,HOMECARE - SPOT,2103314429,1000081695
03.09.2021,ADULT SOCIAL CARE,SAGECARE LTD,258.16,PHY LTS 65+,HOMECARE - C&V,2103314448,1000080924
03.09.2021,ADULT SOCIAL CARE,SAGECARE LTD,258.16,PHY LTS 65+,HOMECARE - C&V,2103314461,1000080924
03.09.2021,ADULT SOCIAL CARE,SAGECARE LTD,258.16,PHY LTS 65+,HOMECARE - C&V,2103314495,1000080924
03.09.2021,ADULT SOCIAL CARE,SAGECARE LTD,285.82,PHY LTS 65+,HOMECARE - C&V,2103314657,1000080924
03.09.2021,ADULT SOCIAL CARE,SAGECARE LTD,293.25,PHY LTS 65+,HOMECARE - C&V,2103314688,1000080924
03.09.2021,ADULT SOCIAL CARE,SAGECARE LTD,299.65,PHY LTS 65+,HOMECARE - C&V,2103314506,1000080924
03.09.2021,ADULT SOCIAL CARE,SAGECARE LTD,306,PHY LTS 65+,HOMECARE - C&V,2103314571,1000080924
03.09.2021,ADULT SOCIAL CARE,SAGECARE LTD,327.31,PHY LTS 65+,HOMECARE - C&V,2103314533,1000080924
03.09.2021,ADULT SOCIAL CARE,SAGECARE LTD,349.72,PHY LTS 65+,HOMECARE - C&V,2103314577,1000080924
03.09.2021,ADULT SOCIAL CARE,SAGECARE LTD,350.36,PHY LTS 65+,HOMECARE - C&V,2103314519,1000080924
03.09.2021,ADULT SOCIAL CARE,SAGECARE LTD,350.36,PHY LTS 65+,HOMECARE - C&V,2103314532,1000080924
03.09.2021,ADULT SOCIAL CARE,SAGECARE LTD,357,PHY LTS 65+,HOMECARE - C&V,2103314676,1000080924
03.09.2021,ADULT SOCIAL CARE,SAGECARE LTD,368.8,PHY LTS 65+,HOMECARE - C&V,2103314520,1000080924
03.09.2021,ADULT SOCIAL CARE,SAGECARE LTD,368.8,PHY LTS 65+,HOMECARE - C&V,2103314552,1000080924
03.09.2021,ADULT SOCIAL CARE,SAGECARE LTD,368.8,PHY LTS 65+,HOMECARE - C&V,2103314603,1000080924
03.09.2021,ADULT SOCIAL CARE,SAGECARE LTD,373.41,PHY LTS 65+,HOMECARE - C&V,2103314516,1000080924
03.09.2021,ADULT SOCIAL CARE,SAGECARE LTD,382.63,PHY LTS 65+,HOMECARE - C&V,2103314543,1000080924
03.09.2021,ADULT SOCIAL CARE,SAGECARE LTD,382.63,PHY LTS 65+,HOMECARE - C&V,2103314639,1000080924
03.09.2021,ADULT SOCIAL CARE,SAGECARE LTD,391.85,PHY LTS 65+,HOMECARE - C&V,2103314512,1000080924
03.09.2021,ADULT SOCIAL CARE,SAGECARE LTD,395.25,PHY LTS 65+,HOMECARE - C&V,2103314480,1000080924
03.09.2021,ADULT SOCIAL CARE,SAGECARE LTD,405.68,PHY LTS 65+,HOMECARE - C&V,2103314584,1000080924
03.09.2021,ADULT SOCIAL CARE,SAGECARE LTD,408,PHY LTS 65+,HOMECARE - C&V,2103314661,1000080924
03.09.2021,ADULT SOCIAL CARE,SAGECARE LTD,410.29,PHY LTS 65+,HOMECARE - C&V,2103314622,1000080924
03.09.2021,ADULT SOCIAL CARE,SAGECARE LTD,425,PHY LTS 65+,HOMECARE - C&V,2103314572,1000080924
03.09.2021,ADULT SOCIAL CARE,SAGECARE LTD,493,PHY LTS 65+,HOMECARE - C&V,2103314551,1000080924
03.09.2021,ADULT SOCIAL CARE,SAGECARE LTD,497.88,PHY LTS 65+,HOMECARE - C&V,2103314491,1000080924
03.09.2021,ADULT SOCIAL CARE,SAGECARE LTD,507.1,PHY LTS 65+,HOMECARE - C&V,2103314524,1000080924
03.09.2021,ADULT SOCIAL CARE,SAGECARE LTD,543.98,PHY LTS 65+,HOMECARE - C&V,2103314529,1000080924
03.09.2021,ADULT SOCIAL CARE,SAGECARE LTD,548.59,PHY LTS 65+,HOMECARE - C&V,2103314501,1000080924
03.09.2021,ADULT SOCIAL CARE,SAGECARE LTD,549.48,PHY LTS 65+,HOMECARE - C&V,2103314582,1000080924
03.09.2021,ADULT SOCIAL CARE,SAGECARE LTD,553.2,PHY LTS 65+,HOMECARE - C&V,2103314500,1000080924
03.09.2021,ADULT SOCIAL CARE,SAGECARE LTD,578,PHY LTS 65+,HOMECARE - C&V,2103314476,1000080924
03.09.2021,ADULT SOCIAL CARE,SAGECARE LTD,585.78,PHY LTS 65+,HOMECARE - C&V,2103314494,1000080924
03.09.2021,ADULT SOCIAL CARE,SAGECARE LTD,595,PHY LTS 65+,HOMECARE - C&V,2103314468,1000080924
03.09.2021,ADULT SOCIAL CARE,SAGECARE LTD,599.25,PHY LTS 65+,HOMECARE - C&V,2103314558,1000080924
03.09.2021,ADULT SOCIAL CARE,SAGECARE LTD,599.3,PHY LTS 65+,HOMECARE - C&V,2103314526,1000080924
03.09.2021,ADULT SOCIAL CARE,SAGECARE LTD,625.73,PHY LTS 65+,HOMECARE - C&V,2103314464,1000080924
03.09.2021,ADULT SOCIAL CARE,SAGECARE LTD,636.18,PHY LTS 65+,HOMECARE - C&V,2103314635,1000080924
03.09.2021,ADULT SOCIAL CARE,SAGECARE LTD,657.86,PHY LTS 65+,HOMECARE - C&V,2103314611,1000080924
03.09.2021,ADULT SOCIAL CARE,SAGECARE LTD,659.23,PHY LTS 65+,HOMECARE - C&V,2103314496,1000080924
03.09.2021,ADULT SOCIAL CARE,SAGECARE LTD,668.45,PHY LTS 65+,HOMECARE - C&V,2103314673,1000080924
03.09.2021,ADULT SOCIAL CARE,SAGECARE LTD,692.75,PHY LTS 65+,HOMECARE - C&V,2103314604,1000080924
03.09.2021,ADULT SOCIAL CARE,SAGECARE LTD,705.5,PHY LTS 65+,HOMECARE - C&V,2103314678,1000080924
03.09.2021,ADULT SOCIAL CARE,SAGECARE LTD,728.82,PHY LTS 65+,HOMECARE - C&V,2103314553,1000080924
03.09.2021,ADULT SOCIAL CARE,SAGECARE LTD,731,PHY LTS 65+,HOMECARE - C&V,2103314631,1000080924
03.09.2021,ADULT SOCIAL CARE,SAGECARE LTD,739.5,PHY LTS 65+,HOMECARE - C&V,2103314473,1000080924
03.09.2021,ADULT SOCIAL CARE,SAGECARE LTD,753.54,PHY LTS 65+,HOMECARE - C&V,2103314618,1000080924
03.09.2021,ADULT SOCIAL CARE,SAGECARE LTD,756.5,PHY LTS 65+,HOMECARE - C&V,2103314680,1000080924
03.09.2021,ADULT SOCIAL CARE,SAGECARE LTD,773.5,PHY LTS 65+,HOMECARE - C&V,2103314607,1000080924
03.09.2021,ADULT SOCIAL CARE,SAGECARE LTD,778.52,PHY LTS 65+,HOMECARE - C&V,2103314636,1000080924
03.09.2021,ADULT SOCIAL CARE,SAGECARE LTD,790.25,PHY LTS 65+,HOMECARE - C&V,2103314556,1000080924
03.09.2021,ADULT SOCIAL CARE,SAGECARE LTD,803.6,PHY LTS 65+,HOMECARE - C&V,2103314637,1000080924
03.09.2021,ADULT SOCIAL CARE,SAGECARE LTD,816.18,PHY LTS 65+,HOMECARE - C&V,2103314565,1000080924
03.09.2021,ADULT SOCIAL CARE,SAGECARE LTD,820.3,PHY LTS 65+,HOMECARE - C&V,2103314608,1000080924
03.09.2021,ADULT SOCIAL CARE,SAGECARE LTD,820.32,PHY LTS 65+,HOMECARE - C&V,2103314655,1000080924
03.09.2021,ADULT SOCIAL CARE,SAGECARE LTD,824.52,PHY LTS 65+,HOMECARE - C&V,2103314544,1000080924
03.09.2021,ADULT SOCIAL CARE,SAGECARE LTD,829.8,PHY LTS 65+,HOMECARE - C&V,2103314588,1000080924
03.09.2021,ADULT SOCIAL CARE,SAGECARE LTD,853.44,PHY LTS 65+,HOMECARE - C&V,2103314668,1000080924
03.09.2021,ADULT SOCIAL CARE,SAGECARE LTD,857.46,PHY LTS 65+,HOMECARE - C&V,2103314469,1000080924
03.09.2021,ADULT SOCIAL CARE,SAGECARE LTD,889.73,PHY LTS 65+,HOMECARE - C&V,2103314521,1000080924
03.09.2021,ADULT SOCIAL CARE,SAGECARE LTD,891.1,PHY LTS 65+,HOMECARE - C&V,2103314649,1000080924
03.09.2021,ADULT SOCIAL CARE,SAGECARE LTD,898.95,PHY LTS 65+,HOMECARE - C&V,2103314457,1000080924
03.09.2021,ADULT SOCIAL CARE,SAGECARE LTD,907.56,PHY LTS 65+,HOMECARE - C&V,2103314633,1000080924
03.09.2021,ADULT SOCIAL CARE,SAGECARE LTD,911.96,PHY LTS 65+,HOMECARE - C&V,2103314683,1000080924
03.09.2021,ADULT SOCIAL CARE,SAGECARE LTD,922,PHY LTS 65+,HOMECARE - C&V,2103314585,1000080924
03.09.2021,ADULT SOCIAL CARE,SAGECARE LTD,922,PHY LTS 65+,HOMECARE - C&V,2103314648,1000080924
03.09.2021,ADULT SOCIAL CARE,SAGECARE LTD,939.25,PHY LTS 65+,HOMECARE - C&V,2103314472,1000080924
03.09.2021,ADULT SOCIAL CARE,SAGECARE LTD,940.44,PHY LTS 65+,HOMECARE - C&V,2103314574,1000080924
03.09.2021,ADULT SOCIAL CARE,SAGECARE LTD,945.05,PHY LTS 65+,HOMECARE - C&V,2103314570,1000080924
03.09.2021,ADULT SOCIAL CARE,SAGECARE LTD,954.27,PHY LTS 65+,HOMECARE - C&V,2103314675,1000080924
03.09.2021,ADULT SOCIAL CARE,SAGECARE LTD,957.72,PHY LTS 65+,HOMECARE - C&V,2103314546,1000080924
03.09.2021,ADULT SOCIAL CARE,SAGECARE LTD,960.5,PHY LTS 65+,HOMECARE - C&V,2103314470,1000080924
03.09.2021,ADULT SOCIAL CARE,SAGECARE LTD,966.03,PHY LTS 65+,HOMECARE - C&V,2103314615,1000080924
03.09.2021,ADULT SOCIAL CARE,SAGECARE LTD,968.1,PHY LTS 65+,HOMECARE - C&V,2103314518,1000080924
03.09.2021,ADULT SOCIAL CARE,SAGECARE LTD,977.32,PHY LTS 65+,HOMECARE - C&V,2103314493,1000080924
03.09.2021,ADULT SOCIAL CARE,SAGECARE LTD,"1,015.75",PHY LTS 65+,HOMECARE - C&V,2103314640,1000080924
03.09.2021,ADULT SOCIAL CARE,SAGECARE LTD,"1,018.81",PHY LTS 65+,HOMECARE - C&V,2103314466,1000080924
03.09.2021,ADULT SOCIAL CARE,SAGECARE LTD,"1,032.77",PHY LTS 65+,HOMECARE - C&V,2103314674,1000080924
03.09.2021,ADULT SOCIAL CARE,SAGECARE LTD,"1,049.21",PHY LTS 65+,HOMECARE - C&V,2103314589,1000080924
03.09.2021,ADULT SOCIAL CARE,SAGECARE LTD,"1,051.08",PHY LTS 65+,HOMECARE - C&V,2103314569,1000080924
03.09.2021,ADULT SOCIAL CARE,SAGECARE LTD,"1,060.30",PHY LTS 65+,HOMECARE - C&V,2103314505,1000080924
03.09.2021,ADULT SOCIAL CARE,SAGECARE LTD,"1,075.25",PHY LTS 65+,HOMECARE - C&V,2103314609,1000080924
03.09.2021,ADULT SOCIAL CARE,SAGECARE LTD,"1,086.68",PHY LTS 65+,HOMECARE - C&V,2103314651,1000080924
03.09.2021,ADULT SOCIAL CARE,SAGECARE LTD,"1,087.96",PHY LTS 65+,HOMECARE - C&V,2103314581,1000080924
03.09.2021,ADULT SOCIAL CARE,SAGECARE LTD,"1,092.25",PHY LTS 65+,HOMECARE - C&V,2103314629,1000080924
03.09.2021,ADULT SOCIAL CARE,SAGECARE LTD,"1,097.18",PHY LTS 65+,HOMECARE - C&V,2103314638,1000080924
03.09.2021,ADULT SOCIAL CARE,SAGECARE LTD,"1,129.45",PHY LTS 65+,HOMECARE - C&V,2103314593,1000080924
03.09.2021,ADULT SOCIAL CARE,SAGECARE LTD,"1,193.99",PHY LTS 65+,HOMECARE - C&V,2103314562,1000080924
03.09.2021,ADULT SOCIAL CARE,SAGECARE LTD,"1,198.60",PHY LTS 65+,HOMECARE - C&V,2103314498,1000080924
03.09.2021,ADULT SOCIAL CARE,SAGECARE LTD,"1,198.60",PHY LTS 65+,HOMECARE - C&V,2103314659,1000080924
03.09.2021,ADULT SOCIAL CARE,SAGECARE LTD,"1,211.25",PHY LTS 65+,HOMECARE - C&V,2103314682,1000080924
03.09.2021,ADULT SOCIAL CARE,SAGECARE LTD,"1,212.43",PHY LTS 65+,HOMECARE - C&V,2103314492,1000080924
03.09.2021,ADULT SOCIAL CARE,SAGECARE LTD,"1,212.43",PHY LTS 65+,HOMECARE - C&V,2103314653,1000080924
03.09.2021,ADULT SOCIAL CARE,SAGECARE LTD,"1,249.31",PHY LTS 65+,HOMECARE - C&V,2103314687,1000080924
03.09.2021,ADULT SOCIAL CARE,SAGECARE LTD,"1,258.53",PHY LTS 65+,HOMECARE - C&V,2103314667,1000080924
03.09.2021,ADULT SOCIAL CARE,SAGECARE LTD,"1,269.78",PHY LTS 65+,HOMECARE - C&V,2103314623,1000080924
03.09.2021,ADULT SOCIAL CARE,SAGECARE LTD,"1,309.24",PHY LTS 65+,HOMECARE - C&V,2103314656,1000080924
03.09.2021,ADULT SOCIAL CARE,SAGECARE LTD,"1,323.07",PHY LTS 65+,HOMECARE - C&V,2103314606,1000080924
03.09.2021,ADULT SOCIAL CARE,SAGECARE LTD,"1,336.90",PHY LTS 65+,HOMECARE - C&V,2103314685,1000080924
03.09.2021,ADULT SOCIAL CARE,SAGECARE LTD,"1,341.51",PHY LTS 65+,HOMECARE - C&V,2103314578,1000080924
03.09.2021,ADULT SOCIAL CARE,SAGECARE LTD,"1,345.98",PHY LTS 65+,HOMECARE - C&V,2103314489,1000080924
03.09.2021,ADULT SOCIAL CARE,SAGECARE LTD,"1,368.50",PHY LTS 65+,HOMECARE - C&V,2103314471,1000080924
03.09.2021,ADULT SOCIAL CARE,SAGECARE LTD,"1,406.05",PHY LTS 65+,HOMECARE - C&V,2103314508,1000080924
03.09.2021,ADULT SOCIAL CARE,SAGECARE LTD,"1,419.50",PHY LTS 65+,HOMECARE - C&V,2103314592,1000080924
03.09.2021,ADULT SOCIAL CARE,SAGECARE LTD,"1,453.50",PHY LTS 65+,HOMECARE - C&V,2103314645,1000080924
03.09.2021,ADULT SOCIAL CARE,SAGECARE LTD,"1,456.76",PHY LTS 65+,HOMECARE - C&V,2103314484,1000080924
03.09.2021,ADULT SOCIAL CARE,SAGECARE LTD,"1,456.76",PHY LTS 65+,HOMECARE - C&V,2103314686,1000080924
03.09.2021,ADULT SOCIAL CARE,SAGECARE LTD,"1,521.30",PHY LTS 65+,HOMECARE - C&V,2103314478,1000080924
03.09.2021,ADULT SOCIAL CARE,SAGECARE LTD,"1,585.25",PHY LTS 65+,HOMECARE - C&V,2103314650,1000080924
03.09.2021,ADULT SOCIAL CARE,SAGECARE LTD,"1,608.89",PHY LTS 65+,HOMECARE - C&V,2103314646,1000080924
03.09.2021,ADULT SOCIAL CARE,SAGECARE LTD,"1,644.83",PHY LTS 65+,HOMECARE - C&V,2103314670,1000080924
03.09.2021,ADULT SOCIAL CARE,SAGECARE LTD,"1,774.85",PHY LTS 65+,HOMECARE - C&V,2103314613,1000080924
03.09.2021,ADULT SOCIAL CARE,SAGECARE LTD,"1,823.47",PHY LTS 65+,HOMECARE - C&V,2103314596,1000080924
03.09.2021,ADULT SOCIAL CARE,SAGECARE LTD,"1,929.50",PHY LTS 65+,HOMECARE - C&V,2103314621,1000080924
03.09.2021,ADULT SOCIAL CARE,SAGECARE LTD,"1,931.59",PHY LTS 65+,HOMECARE - C&V,2103314482,1000080924
03.09.2021,ADULT SOCIAL CARE,SAGECARE LTD,"1,996.13",PHY LTS 65+,HOMECARE - C&V,2103314625,1000080924
03.09.2021,ADULT SOCIAL CARE,SAGECARE LTD,"2,148.26",PHY LTS 65+,HOMECARE - C&V,2103314454,1000080924
03.09.2021,ADULT SOCIAL CARE,SAGECARE LTD,"2,152.87",PHY LTS 65+,HOMECARE - C&V,2103314663,1000080924
03.09.2021,ADULT SOCIAL CARE,SAGECARE LTD,"2,248.25",PHY LTS 65+,HOMECARE - C&V,2103314567,1000080924
03.09.2021,ADULT SOCIAL CARE,SAGECARE LTD,"2,286.50",PHY LTS 65+,HOMECARE - C&V,2103314672,1000080924
03.09.2021,ADULT SOCIAL CARE,SAGECARE LTD,"2,318.83",PHY LTS 65+,HOMECARE - C&V,2103314586,1000080924
03.09.2021,ADULT SOCIAL CARE,SAGECARE LTD,"2,324.75",PHY LTS 65+,HOMECARE - C&V,2103314647,1000080924
03.09.2021,ADULT SOCIAL CARE,SAGECARE LTD,"2,327.67",PHY LTS 65+,HOMECARE - C&V,2103314545,1000080924
03.09.2021,ADULT SOCIAL CARE,SAGECARE LTD,"2,405.50",PHY LTS 65+,HOMECARE - C&V,2103314597,1000080924
03.09.2021,ADULT SOCIAL CARE,SAGECARE LTD,"2,409.75",PHY LTS 65+,HOMECARE - C&V,2103314677,1000080924
03.09.2021,ADULT SOCIAL CARE,SAGECARE LTD,"2,424.86",PHY LTS 65+,HOMECARE - C&V,2103314634,1000080924
03.09.2021,ADULT SOCIAL CARE,SAGECARE LTD,"2,448.00",PHY LTS 65+,HOMECARE - C&V,2103314449,1000080924
03.09.2021,ADULT SOCIAL CARE,SAGECARE LTD,"2,469.19",PHY LTS 65+,HOMECARE - C&V,2103314619,1000080924
03.09.2021,ADULT SOCIAL CARE,SAGECARE LTD,"2,598.05",PHY LTS 65+,HOMECARE - C&V,2103314575,1000080924
03.09.2021,ADULT SOCIAL CARE,SAGECARE LTD,"2,632.31",PHY LTS 65+,HOMECARE - C&V,2103314669,1000080924
03.09.2021,ADULT SOCIAL CARE,SAGECARE LTD,"2,650.75",PHY LTS 65+,HOMECARE - C&V,2103314658,1000080924
03.09.2021,ADULT SOCIAL CARE,SAGECARE LTD,"3,037.99",PHY LTS 65+,HOMECARE - C&V,2103314626,1000080924
03.09.2021,ADULT SOCIAL CARE,SAGECARE LTD,"3,115.25",PHY LTS 65+,HOMECARE - C&V,2103314689,1000080924
03.09.2021,ADULT SOCIAL CARE,SAGECARE LTD,456.39,PHY LTS 65+,HOMECARE - SPOT,2103314462,1000080924
03.09.2021,ADULT SOCIAL CARE,SERVESOUL LTD,265.04,PHY LTS 65+,HOMECARE - SPOT,2103314431,1000081503
03.09.2021,ADULT SOCIAL CARE,SERVESOUL LTD,265.04,PHY LTS 65+,HOMECARE - SPOT,2103314696,1000081503
03.09.2021,ADULT SOCIAL CARE,SERVESOUL LTD,265.04,PHY LTS 65+,HOMECARE - SPOT,2103314707,1000081503
03.09.2021,ADULT SOCIAL CARE,SERVESOUL LTD,325.46,PHY LTS 65+,HOMECARE - SPOT,2103314439,1000081503
03.09.2021,ADULT SOCIAL CARE,SERVESOUL LTD,325.46,PHY LTS 65+,HOMECARE - SPOT,2103314697,1000081503
03.09.2021,ADULT SOCIAL CARE,SERVESOUL LTD,325.46,PHY LTS 65+,HOMECARE - SPOT,2103314709,1000081503
03.09.2021,ADULT SOCIAL CARE,SERVESOUL LTD,425.6,PHY LTS 65+,HOMECARE - SPOT,2103314430,1000081503
03.09.2021,ADULT SOCIAL CARE,SERVESOUL LTD,425.6,PHY LTS 65+,HOMECARE - SPOT,2103314703,1000081503
03.09.2021,ADULT SOCIAL CARE,SERVESOUL LTD,425.6,PHY LTS 65+,HOMECARE - SPOT,2103314718,1000081503
03.09.2021,ADULT SOCIAL CARE,SERVESOUL LTD,650.91,PHY LTS 65+,HOMECARE - SPOT,2103314434,1000081503
03.09.2021,ADULT SOCIAL CARE,SERVESOUL LTD,650.91,PHY LTS 65+,HOMECARE - SPOT,2103314702,1000081503
03.09.2021,ADULT SOCIAL CARE,SERVESOUL LTD,650.91,PHY LTS 65+,HOMECARE - SPOT,2103314713,1000081503
03.09.2021,ADULT SOCIAL CARE,SERVESOUL LTD,671.77,PHY LTS 65+,HOMECARE - SPOT,2103314440,1000081503
03.09.2021,ADULT SOCIAL CARE,SERVESOUL LTD,671.77,PHY LTS 65+,HOMECARE - SPOT,2103314698,1000081503
03.09.2021,ADULT SOCIAL CARE,SERVESOUL LTD,671.77,PHY LTS 65+,HOMECARE - SPOT,2103314710,1000081503
03.09.2021,ADULT SOCIAL CARE,ELEANOR NURSING AND SOCIAL CARE LTD,"1,090.04",PHY LTS 65+,HOMECARE - SPOT,2103314423,1000081695
03.09.2021,ADULT SOCIAL CARE,CHOICE SUPPORT,293.92,PHY LTS 65+,SUPPORTED LIVING,2103314738,1104183
03.09.2021,ADULT SOCIAL CARE,SAGECARE LTD,292.5,PHY STS 18-64,HOMECARE - IC,2103314458,1000080924
03.09.2021,ADULT SOCIAL CARE,LONDON CARE LTD,"1,032.64",PHY STS 65+,HOMECARE - IC,2103314444,1000003398
03.09.2021,ADULT SOCIAL CARE,SAGECARE LTD,308.02,SOCIAL ISOLATION,HOMECARE - C&V,2103314564,1000080924
03.09.2021,ADULT SOCIAL CARE,SAGECARE LTD,335.75,SOCIAL ISOLATION,HOMECARE - C&V,2103314573,1000080924
03.09.2021,ADULT SOCIAL CARE,SAGECARE LTD,424.71,SOCIAL ISOLATION,HOMECARE - C&V,2103314550,1000080924
03.09.2021,ADULT SOCIAL CARE,SAGECARE LTD,"1,473.88",SOCIAL ISOLATION,HOMECARE - C&V,2103314652,1000080924
03.09.2021,ADULT SOCIAL CARE,SAGECARE LTD,"2,885.75",SOCIAL ISOLATION,HOMECARE - C&V,2103314624,1000080924
03.09.2021,ADULT SOCIAL CARE,SAGECARE LTD,"2,973.45",SOCIAL ISOLATION,HOMECARE - C&V,2103314628,1000080924
03.09.2021,ADULT SOCIAL CARE,CHOICE SUPPORT,367.4,SOCIAL ISOLATION,SUPPORTED LIVING,2103314722,1104183
03.09.2021,ADULT SOCIAL CARE,SAGECARE LTD,"1,106.40",SUB LTS 65+,HOMECARE - C&V,2103314522,1000080924
03.09.2021,ASSET MANAGEMENT,ASHFORDS LLP,416.67,DISREPAIR,PAYMENTS FOR LEGAL SERVICES,2103314222,1000055865
03.09.2021,ASSET MANAGEMENT,ASHFORDS LLP,"2,083.33",DISREPAIR,PAYMENTS FOR LEGAL SERVICES,2103314223,1000055865
03.09.2021,CENTRAL FUNCTIONS,PRB ESTATES LTD,"5,175.00",AYLESBURY,BUILDING R&M,2103314820,3000001691
03.09.2021,CENTRAL FUNCTIONS,KENT COUNTY COUNCIL - LASER,"11,789.99",HEATING ACCOUNT,GAS,5902484358,1000012926
03.09.2021,CENTRAL FUNCTIONS,KENT COUNTY COUNCIL - LASER,"284,788.90",HEATING ACCOUNT,GAS,5902484358,1000012926
03.09.2021,CHIEF EXECUTIVE,SYSTRA LTD,"5,502.00",CAPITAL PS (REGEN),CONSTRUCTION FEES  - EXTERNAL,5902485020,11305109
03.09.2021,CHIEF EXECUTIVE,METIS CONSULTANTS LIMITED,"1,522.00",CAPITAL PS (REGEN),CONSTRUCTION FEES - ENGINEER,5902485054,1000086330
03.09.2021,CHIEF EXECUTIVE,HALE ARCHITECTURE LTD,"18,000.00",CAPITAL PS (REGEN),CONSTRUCTION FEES - QUANTITY SURVEYOR,5902482934,1000081139
03.09.2021,CHIEF EXECUTIVE'S OFFICE,TWIN EMPLOYMENT & TRAINING,"33,515.29",CHIEF EXECUTIVE'S OFFICE,EXTERNAL AGENCIES AND BODIES,5902485031,1000083699
03.09.2021,CHILDREN AND FAMILIES,MARKS & SPENCER ,"1,000.00",ADOPT LONDON SOUTH,EXTERNAL AGENCIES AND BODIES,5902485070,1000031032
03.09.2021,CHILDREN AND FAMILIES,REDACTED PERSONAL DATA,"2,905.00",ADOPTION SUPP FUND,PROFESSIONAL FEES,REDACTED,REDACTED
03.09.2021,CHILDREN AND FAMILIES,ZENITH CARS LTD,280,AI TEAMS A-D,CLIENT TRANSPORT,5902485119,1000070570
03.09.2021,CHILDREN AND FAMILIES,THURROCK BOROUGH COUNCIL,"31,350.00",CHILDREN�S RESID,EXTERNAL AGENCIES AND BODIES,5902484824,1000072673
03.09.2021,CHILDREN AND FAMILIES,LOGICOUS LTD,"1,236.75",FRIENDS &FAMILY FOST,NURSING PLACEMENTS FEES,5902485091,1000073852
03.09.2021,CHILDREN AND FAMILIES,ZENITH CARS LTD,720,P & R CARE TEAM,CLIENT TRANSPORT,5902485114,1000070570
03.09.2021,CHILDREN AND FAMILIES,PURPLE PEBBLES(CHILD CARE) SERVICES,"-1,750.00",SEMI-IND CARELEAVERS,COSTS RECOVERED,2103314823,1000070705
03.09.2021,CHILDREN AND FAMILIES,PURPLE PEBBLES(CHILD CARE) SERVICES,"-1,100.00",SEMI-IND CARELEAVERS,COSTS RECOVERED,2103314824,1000070705
03.09.2021,CHILDREN AND FAMILIES,PURPLE PEBBLES(CHILD CARE) SERVICES,"-1,033.04",SEMI-IND CARELEAVERS,COSTS RECOVERED,2103314829,1000070705
03.09.2021,CHILDREN AND FAMILIES,PURPLE PEBBLES(CHILD CARE) SERVICES,-894.99,SEMI-IND CARELEAVERS,COSTS RECOVERED,2103314826,1000070705
03.09.2021,CHILDREN AND FAMILIES,PURPLE PEBBLES(CHILD CARE) SERVICES,-894.99,SEMI-IND CARELEAVERS,COSTS RECOVERED,2103314828,1000070705
03.09.2021,CHILDREN AND FAMILIES,OWNLIFE LTD,"3,542.86",SEMI-IND CARELEAVERS,EXTERNAL AGENCIES AND BODIES,2103314778,1000056219
03.09.2021,CHILDREN AND FAMILIES,PURPLE PEBBLES(CHILD CARE) SERVICES,257.14,SEMI-IND CARELEAVERS,EXTERNAL AGENCIES AND BODIES,2103314800,1000070705
03.09.2021,CHILDREN AND FAMILIES,PURPLE PEBBLES(CHILD CARE) SERVICES,"1,705.00",SEMI-IND CARELEAVERS,EXTERNAL AGENCIES AND BODIES,2103314785,1000070705
03.09.2021,CHILDREN AND FAMILIES,PURPLE PEBBLES(CHILD CARE) SERVICES,"1,728.57",SEMI-IND CARELEAVERS,EXTERNAL AGENCIES AND BODIES,2103314791,1000070705
03.09.2021,CHILDREN AND FAMILIES,PURPLE PEBBLES(CHILD CARE) SERVICES,"1,882.14",SEMI-IND CARELEAVERS,EXTERNAL AGENCIES AND BODIES,2103314789,1000070705
03.09.2021,CHILDREN AND FAMILIES,PURPLE PEBBLES(CHILD CARE) SERVICES,"1,882.14",SEMI-IND CARELEAVERS,EXTERNAL AGENCIES AND BODIES,2103314802,1000070705
03.09.2021,CHILDREN AND FAMILIES,PURPLE PEBBLES(CHILD CARE) SERVICES,"2,103.57",SEMI-IND CARELEAVERS,EXTERNAL AGENCIES AND BODIES,2103314783,1000070705
03.09.2021,CHILDREN AND FAMILIES,PURPLE PEBBLES(CHILD CARE) SERVICES,"2,103.57",SEMI-IND CARELEAVERS,EXTERNAL AGENCIES AND BODIES,2103314797,1000070705
03.09.2021,CHILDREN AND FAMILIES,PURPLE PEBBLES(CHILD CARE) SERVICES,"2,214.29",SEMI-IND CARELEAVERS,EXTERNAL AGENCIES AND BODIES,2103314774,1000070705
03.09.2021,CHILDREN AND FAMILIES,PURPLE PEBBLES(CHILD CARE) SERVICES,"2,480.00",SEMI-IND CARELEAVERS,EXTERNAL AGENCIES AND BODIES,2103314793,1000070705
03.09.2021,CHILDREN AND FAMILIES,PURPLE PEBBLES(CHILD CARE) SERVICES,"2,590.71",SEMI-IND CARELEAVERS,EXTERNAL AGENCIES AND BODIES,2103314799,1000070705
03.09.2021,CHILDREN AND FAMILIES,HEARTWOOD OUTREACH SERVICES LTD,"1,826.70",SEMI-IND CARELEAVERS,EXTERNAL AGENCIES AND BODIES,2103314831,1000075021
03.09.2021,CHILDREN AND FAMILIES,PURPLE PEBBLES(CHILD CARE) SERVICES,"4,760.71",SEMI-IND LAC 16-17,EXTERNAL AGENCIES AND BODIES,2103314811,1000070705
03.09.2021,CHILDREN AND FAMILIES,PURPLE PEBBLES(CHILD CARE) SERVICES,"5,535.71",SEMI-IND LAC 16-17,EXTERNAL AGENCIES AND BODIES,2103314808,1000070705
03.09.2021,CHILDREN AND FAMILIES,TRANSFORMING LIVES COMPANY LTD,"4,149.35",SEMI-IND LAC 16-17,EXTERNAL AGENCIES AND BODIES,2103314804,1000083352
03.09.2021,CHILDREN AND FAMILIES,TRANSFORMING LIVES COMPANY LTD,310,SEMI-IND LAC 16-17,OTHER PAYMENTS FOR CLIENTS,2103314807,1000083352
03.09.2021,CHILDREN AND FAMILIES,HE SAFEGUARDING LTD,500,SFS MGMT & SUPPORT,PROFESSIONAL FEES,5902485121,1000077530
03.09.2021,CHILDREN AND FAMILIES,ARC COMMUNITY TRUSTEES,650,SPECIAL GUARDIANSHIP,EXTERNAL AGENCIES AND BODIES,5902485138,1000046206
03.09.2021,CHILDREN AND FAMILIES,LONDON BOROUGH OF LEWISHAM,981,STEP UP,TRAINING,5902485117,1000008478
03.09.2021,CHILDREN AND FAMILIES,ZENITH CARS LTD,710,TEAM B,CLIENT TRANSPORT,5902485119,1000070570
03.09.2021,CHILDREN AND FAMILIES,ZENITH CARS LTD,"2,629.00",TEAM C,CLIENT TRANSPORT,5902485119,1000070570
03.09.2021,CHILDREN AND FAMILIES,LONDON EARLY YEARS FOUNDATION,310,TEAM D,OTHER PAYMENTS FOR CLIENTS,5902485123,1000077919
03.09.2021,CHILDREN AND FAMILIES,PURPLE PEBBLES(CHILD CARE) SERVICES,-875,UASC CARELEAVERS,COSTS RECOVERED,2103314827,1000070705
03.09.2021,CHILDREN AND FAMILIES,PURPLE PEBBLES(CHILD CARE) SERVICES,-516.52,UASC CARELEAVERS,COSTS RECOVERED,2103314825,1000070705
03.09.2021,CHILDREN AND FAMILIES,OWNLIFE LTD,"2,790.00",UASC CARELEAVERS,EXTERNAL AGENCIES AND BODIES,2103314781,1000056219
03.09.2021,CHILDREN AND FAMILIES,PURPLE PEBBLES(CHILD CARE) SERVICES,280,UASC CARELEAVERS,EXTERNAL AGENCIES AND BODIES,2103314787,1000070705
03.09.2021,CHILDREN AND FAMILIES,PURPLE PEBBLES(CHILD CARE) SERVICES,"1,594.29",UASC CARELEAVERS,EXTERNAL AGENCIES AND BODIES,2103314786,1000070705
03.09.2021,CHILDREN AND FAMILIES,PURPLE PEBBLES(CHILD CARE) SERVICES,"1,660.71",UASC CARELEAVERS,EXTERNAL AGENCIES AND BODIES,2103314773,1000070705
03.09.2021,CHILDREN AND FAMILIES,PURPLE PEBBLES(CHILD CARE) SERVICES,"1,660.71",UASC CARELEAVERS,EXTERNAL AGENCIES AND BODIES,2103314784,1000070705
03.09.2021,CHILDREN AND FAMILIES,PURPLE PEBBLES(CHILD CARE) SERVICES,"1,660.71",UASC CARELEAVERS,EXTERNAL AGENCIES AND BODIES,2103314790,1000070705
03.09.2021,CHILDREN AND FAMILIES,PURPLE PEBBLES(CHILD CARE) SERVICES,"1,660.71",UASC CARELEAVERS,EXTERNAL AGENCIES AND BODIES,2103314803,1000070705
03.09.2021,CHILDREN AND FAMILIES,PURPLE PEBBLES(CHILD CARE) SERVICES,"1,749.29",UASC CARELEAVERS,EXTERNAL AGENCIES AND BODIES,2103314769,1000070705
03.09.2021,CHILDREN AND FAMILIES,PURPLE PEBBLES(CHILD CARE) SERVICES,"1,771.43",UASC CARELEAVERS,EXTERNAL AGENCIES AND BODIES,2103314796,1000070705
03.09.2021,CHILDREN AND FAMILIES,PURPLE PEBBLES(CHILD CARE) SERVICES,"1,815.71",UASC CARELEAVERS,EXTERNAL AGENCIES AND BODIES,2103314771,1000070705
03.09.2021,CHILDREN AND FAMILIES,PURPLE PEBBLES(CHILD CARE) SERVICES,"1,882.14",UASC CARELEAVERS,EXTERNAL AGENCIES AND BODIES,2103314779,1000070705
03.09.2021,CHILDREN AND FAMILIES,PURPLE PEBBLES(CHILD CARE) SERVICES,"1,904.29",UASC CARELEAVERS,EXTERNAL AGENCIES AND BODIES,2103314775,1000070705
03.09.2021,CHILDREN AND FAMILIES,PURPLE PEBBLES(CHILD CARE) SERVICES,"1,948.57",UASC CARELEAVERS,EXTERNAL AGENCIES AND BODIES,2103314777,1000070705
03.09.2021,CHILDREN AND FAMILIES,PURPLE PEBBLES(CHILD CARE) SERVICES,"1,948.57",UASC CARELEAVERS,EXTERNAL AGENCIES AND BODIES,2103314782,1000070705
03.09.2021,CHILDREN AND FAMILIES,PURPLE PEBBLES(CHILD CARE) SERVICES,"1,948.57",UASC CARELEAVERS,EXTERNAL AGENCIES AND BODIES,2103314788,1000070705
03.09.2021,CHILDREN AND FAMILIES,PURPLE PEBBLES(CHILD CARE) SERVICES,"1,948.57",UASC CARELEAVERS,EXTERNAL AGENCIES AND BODIES,2103314801,1000070705
03.09.2021,CHILDREN AND FAMILIES,PURPLE PEBBLES(CHILD CARE) SERVICES,"1,981.79",UASC CARELEAVERS,EXTERNAL AGENCIES AND BODIES,2103314770,1000070705
03.09.2021,CHILDREN AND FAMILIES,PURPLE PEBBLES(CHILD CARE) SERVICES,"1,992.86",UASC CARELEAVERS,EXTERNAL AGENCIES AND BODIES,2103314794,1000070705
03.09.2021,CHILDREN AND FAMILIES,PURPLE PEBBLES(CHILD CARE) SERVICES,"1,992.86",UASC CARELEAVERS,EXTERNAL AGENCIES AND BODIES,2103314795,1000070705
03.09.2021,CHILDREN AND FAMILIES,PURPLE PEBBLES(CHILD CARE) SERVICES,"2,059.29",UASC CARELEAVERS,EXTERNAL AGENCIES AND BODIES,2103314767,1000070705
03.09.2021,CHILDREN AND FAMILIES,PURPLE PEBBLES(CHILD CARE) SERVICES,"2,092.50",UASC CARELEAVERS,EXTERNAL AGENCIES AND BODIES,2103314792,1000070705
03.09.2021,CHILDREN AND FAMILIES,PURPLE PEBBLES(CHILD CARE) SERVICES,350,UASC CARELEAVERS,OTHER PAYMENTS FOR CLIENTS,2103314766,1000070705
03.09.2021,CHILDREN AND FAMILIES,PURPLE PEBBLES(CHILD CARE) SERVICES,350,UASC CARELEAVERS,OTHER PAYMENTS FOR CLIENTS,2103314768,1000070705
03.09.2021,CHILDREN AND FAMILIES,PURPLE PEBBLES(CHILD CARE) SERVICES,350,UASC CARELEAVERS,OTHER PAYMENTS FOR CLIENTS,2103314772,1000070705
03.09.2021,CHILDREN AND FAMILIES,PURPLE PEBBLES(CHILD CARE) SERVICES,350,UASC CARELEAVERS,OTHER PAYMENTS FOR CLIENTS,2103314776,1000070705
03.09.2021,CHILDREN AND FAMILIES,PURPLE PEBBLES(CHILD CARE) SERVICES,350,UASC CARELEAVERS,OTHER PAYMENTS FOR CLIENTS,2103314798,1000070705
03.09.2021,CHILDREN AND FAMILIES,PURPLE PEBBLES(CHILD CARE) SERVICES,"1,725.00",UASC LAC 16-17,EXTERNAL AGENCIES AND BODIES,2103314815,1000070705
03.09.2021,CHILDREN AND FAMILIES,PURPLE PEBBLES(CHILD CARE) SERVICES,"3,985.71",UASC LAC 16-17,EXTERNAL AGENCIES AND BODIES,2103314810,1000070705
03.09.2021,CHILDREN AND FAMILIES,PURPLE PEBBLES(CHILD CARE) SERVICES,"3,985.71",UASC LAC 16-17,EXTERNAL AGENCIES AND BODIES,2103314814,1000070705
03.09.2021,CHILDREN AND FAMILIES,PURPLE PEBBLES(CHILD CARE) SERVICES,280,UASC LAC 16-17,OTHER PAYMENTS FOR CLIENTS,2103314812,1000070705
03.09.2021,CHILDREN AND FAMILIES,PURPLE PEBBLES(CHILD CARE) SERVICES,280,UASC LAC 16-17,OTHER PAYMENTS FOR CLIENTS,2103314813,1000070705
03.09.2021,CHILDREN AND FAMILIES,PURPLE PEBBLES(CHILD CARE) SERVICES,350,UASC LAC 16-17,OTHER PAYMENTS FOR CLIENTS,2103314805,1000070705
03.09.2021,CHILDREN AND FAMILIES,PARTNERSHIP MEDIA GROUP,295,YOS MGMT & SUPPORT,EXTERNAL AGENCIES AND BODIES,5902485129,1000050132
03.09.2021,CHILDREN AND FAMILIES,YOUTH INK AT THE HEART OF THE COMMUNITY,"39,500.00",YOS MGMT & SUPPORT,EXTERNAL AGENCIES AND BODIES,5902485136,1000079226
03.09.2021,CHILDREN AND FAMILIES,ROADWORKS MEDIA,"2,575.00",YOS MGMT & SUPPORT,RESIDENTIAL CARE,5902485132,1000081375
03.09.2021,COMMUNITIES,THE ERNEST FOUNDATION,"2,000.00",EAST CENTRAL,GRANTS,5902483673,1000055927
03.09.2021,COMMUNITIES,METROPOLITAN HOUSING TRUST LTD,995.56,NO RECOURSE TO PUBLIC FUNDS,ACCOMMODATION CHARGES,5902485011,1000047547
03.09.2021,COMMUNITIES,WILLOW ESTATE AGENTS (LONDON) LTD,"6,770.50",NO RECOURSE TO PUBLIC FUNDS,ACCOMMODATION CHARGES,5902485063,1000060607
03.09.2021,COMMUNITIES,DINARDO SUPPORTS LTD,"1,520.00",NO RECOURSE TO PUBLIC FUNDS,ACCOMMODATION CHARGES,5902485052,1000063093
03.09.2021,COMMUNITIES,DENHAN INTERNATIONAL LIMITED,"1,564.00",NO RECOURSE TO PUBLIC FUNDS,ACCOMMODATION CHARGES,5902485012,1000075567
03.09.2021,COMMUNITIES,MX ESTATES LTD,627,NO RECOURSE TO PUBLIC FUNDS,ACCOMMODATION CHARGES,5902485013,1000083639
03.09.2021,COMMUNITIES,MX ESTATES LTD,"1,710.00",NO RECOURSE TO PUBLIC FUNDS,ACCOMMODATION CHARGES,5902485014,1000083639
03.09.2021,COMMUNITIES,WEBBER AND QUENTIN LTD,"4,330.00",NORTH WEST,GRANTS,5902485171,1000077088
03.09.2021,COMMUNITIES,THEATRE PECKHAM,"2,000.00",VCS GRANTS,OTHER CONTRACTORS,5902485050,1071668
03.09.2021,COMMUNITIES,KINGSWOOD ESTATE T&RA,"1,962.00",VCS GRANTS,OTHER CONTRACTORS,5902485073,11205105
03.09.2021,COMMUNITIES,PECAN LTD,440,VCS GRANTS,OTHER CONTRACTORS,5902485028,11263114
03.09.2021,COMMUNITIES,PAUL CROOKS,498,VCS GRANTS,OTHER CONTRACTORS,5902485044,1000035464
03.09.2021,COMMUNITIES,ST JOHN THE EVANGELIST PCC AND GOOSE GREEN CENTRE,500,VCS GRANTS,OTHER CONTRACTORS,5902485007,1000040822
03.09.2021,COMMUNITIES,PARENT SKILLS2GO,"1,800.00",VCS GRANTS,OTHER CONTRACTORS,5902485027,1000066441
03.09.2021,COMMUNITIES,BIZZY BODIES CIC,"1,700.00",VCS GRANTS,OTHER CONTRACTORS,5902485046,1000076131
03.09.2021,COMMUNITIES,GENERATION SUCCESS,"1,000.00",VCS GRANTS,OTHER CONTRACTORS,5902485048,1000081644
03.09.2021,COMMUNITIES,AFRICOLOGY PRODUCTIONS LTD,"2,000.00",VCS GRANTS,OTHER CONTRACTORS,5902485024,1000085851
03.09.2021,COMMUNITIES,IVYDALE PRIMARY SCHOOL,"1,800.00",VCS GRANTS,OTHER CONTRACTORS,5902485019,5001000038
03.09.2021,EMPLOYEE EXPERIENCE,BLACK GIRL FINANCE LTD.,950,WOMEN�S NETWORK,TRAINING,5902485047,1000087189
03.09.2021,ENVIRONMENT AND LEISURE,APPLEYARD & TREW,"1,150.00",CAPITAL PS (LEISURE),CONSTRUCTION FEES  - EXTERNAL,5902484601,1000029065
03.09.2021,ENVIRONMENT AND LEISURE,ENERGY ASSETS,268.54,CAPITAL PS (LEISURE),CONSTRUCTION FEES  - EXTERNAL,5902484910,1000082461
03.09.2021,ENVIRONMENT DIRECTORATE,ACCESS HIRE NATIONWIDE LTD,"1,432.08",COMMERCIAL VEH CTRL A/C,VEHICLE REPAIRS & MAINTENANCE,5902485033,1000048527
03.09.2021,ENVIRONMENT DIRECTORATE,PUBLIC  ANALYST SCIENTIFIC SERVICES,660,FOOD SAFETY,PROFESSIONAL FEES,5902485172,1000046074
03.09.2021,ENVIRONMENT DIRECTORATE,SOUTHWARK NEWSPAPER LTD,360,HIGHWAYS DEVELOPMENT,MARKETING & PUBLICITY SERVICES,5902484334,1556957
03.09.2021,ENVIRONMENT DIRECTORATE,SOUTHWARK NEWSPAPER LTD,504,HIGHWAYS DEVELOPMENT,MARKETING & PUBLICITY SERVICES,5902484332,1556957
03.09.2021,ENVIRONMENT DIRECTORATE,SOUTHWARK NEWSPAPER LTD,600,HIGHWAYS DEVELOPMENT,MARKETING & PUBLICITY SERVICES,5902484333,1556957
03.09.2021,ENVIRONMENT DIRECTORATE,SOUTHWARK NEWSPAPER LTD,276,SECTION 278 & 38,MARKETING & PUBLICITY SERVICES,5902485085,1556957
03.09.2021,ENVIRONMENT DIRECTORATE,SOUTHWARK NEWSPAPER LTD,288,SECTION 278 & 38,MARKETING & PUBLICITY SERVICES,5902485074,1556957
03.09.2021,ENVIRONMENT DIRECTORATE,SOUTHWARK NEWSPAPER LTD,288,SECTION 278 & 38,MARKETING & PUBLICITY SERVICES,5902485075,1556957
03.09.2021,ENVIRONMENT DIRECTORATE,SOUTHWARK NEWSPAPER LTD,288,SECTION 278 & 38,MARKETING & PUBLICITY SERVICES,5902485077,1556957
03.09.2021,ENVIRONMENT DIRECTORATE,SOUTHWARK NEWSPAPER LTD,288,SECTION 278 & 38,MARKETING & PUBLICITY SERVICES,5902485080,1556957
03.09.2021,ENVIRONMENT DIRECTORATE,SOUTHWARK NEWSPAPER LTD,288,SECTION 278 & 38,MARKETING & PUBLICITY SERVICES,5902485081,1556957
03.09.2021,ENVIRONMENT DIRECTORATE,SOUTHWARK NEWSPAPER LTD,288,SECTION 278 & 38,MARKETING & PUBLICITY SERVICES,5902485082,1556957
03.09.2021,ENVIRONMENT DIRECTORATE,SOUTHWARK NEWSPAPER LTD,288,SECTION 278 & 38,MARKETING & PUBLICITY SERVICES,5902485087,1556957
03.09.2021,ENVIRONMENT DIRECTORATE,SOUTHWARK NEWSPAPER LTD,312,SECTION 278 & 38,MARKETING & PUBLICITY SERVICES,5902485079,1556957
03.09.2021,ENVIRONMENT DIRECTORATE,SOUTHWARK NEWSPAPER LTD,312,SECTION 278 & 38,MARKETING & PUBLICITY SERVICES,5902485088,1556957
03.09.2021,ENVIRONMENT DIRECTORATE,SOUTHWARK NEWSPAPER LTD,312,SECTION 278 & 38,MARKETING & PUBLICITY SERVICES,5902485093,1556957
03.09.2021,ENVIRONMENT DIRECTORATE,SOUTHWARK NEWSPAPER LTD,348,SECTION 278 & 38,MARKETING & PUBLICITY SERVICES,5902485076,1556957
03.09.2021,ENVIRONMENT DIRECTORATE,SOUTHWARK NEWSPAPER LTD,348,SECTION 278 & 38,MARKETING & PUBLICITY SERVICES,5902485084,1556957
03.09.2021,ENVIRONMENT DIRECTORATE,SOUTHWARK NEWSPAPER LTD,432,SECTION 278 & 38,MARKETING & PUBLICITY SERVICES,5902485072,1556957
03.09.2021,ENVIRONMENT DIRECTORATE,WEB LABS LTD,"2,940.00",SUSTAINABLE WASTE OVERHEADS,OP LEASE/HIRE CHARGES:PLANT/EQUIP/FURNIT,5902484422,1000039819
03.09.2021,F & C S EXCLUDING CORPORATE BUDGETS,MRO PEOPLE LTD,850,ADMINISTRATIVE SUPPORT,TRAINING,5902485036,1000083017
03.09.2021,F & C S EXCLUDING CORPORATE BUDGETS,CAPITA SECURE INFORMATION,"9,000.00",GM SAP,SOFTWARE,5902485137,1000070739
03.09.2021,F & C S EXCLUDING CORPORATE BUDGETS,REDACTED PERSONAL DATA,500,SESS,OTHER PAYMENTS FOR CLIENTS,REDACTED,REDACTED
03.09.2021,F & C S EXCLUDING CORPORATE BUDGETS,REDACTED PERSONAL DATA,500,SESS,OTHER PAYMENTS FOR CLIENTS,REDACTED,REDACTED
03.09.2021,F & C S EXCLUDING CORPORATE BUDGETS,REDACTED PERSONAL DATA,500,SESS,OTHER PAYMENTS FOR CLIENTS,REDACTED,REDACTED
03.09.2021,F & C S EXCLUDING CORPORATE BUDGETS,REDACTED PERSONAL DATA,500,SESS,OTHER PAYMENTS FOR CLIENTS,REDACTED,REDACTED
03.09.2021,F & C S EXCLUDING CORPORATE BUDGETS,REDACTED PERSONAL DATA,500,SESS,OTHER PAYMENTS FOR CLIENTS,REDACTED,REDACTED
03.09.2021,F & C S EXCLUDING CORPORATE BUDGETS,REDACTED PERSONAL DATA,500,SESS,OTHER PAYMENTS FOR CLIENTS,REDACTED,REDACTED
03.09.2021,F & C S EXCLUDING CORPORATE BUDGETS,REDACTED PERSONAL DATA,500,SESS,OTHER PAYMENTS FOR CLIENTS,REDACTED,REDACTED
03.09.2021,F & C S EXCLUDING CORPORATE BUDGETS,REDACTED PERSONAL DATA,500,SESS,OTHER PAYMENTS FOR CLIENTS,REDACTED,REDACTED
03.09.2021,F & C S EXCLUDING CORPORATE BUDGETS,REDACTED PERSONAL DATA,500,SESS,OTHER PAYMENTS FOR CLIENTS,REDACTED,REDACTED
03.09.2021,F & C S EXCLUDING CORPORATE BUDGETS,REDACTED PERSONAL DATA,500,SESS,OTHER PAYMENTS FOR CLIENTS,REDACTED,REDACTED
03.09.2021,F & C S EXCLUDING CORPORATE BUDGETS,REDACTED PERSONAL DATA,500,SESS,OTHER PAYMENTS FOR CLIENTS,REDACTED,REDACTED
03.09.2021,F & C S EXCLUDING CORPORATE BUDGETS,REDACTED PERSONAL DATA,500,SESS,OTHER PAYMENTS FOR CLIENTS,REDACTED,REDACTED
03.09.2021,F & C S EXCLUDING CORPORATE BUDGETS,REDACTED PERSONAL DATA,500,SESS,OTHER PAYMENTS FOR CLIENTS,REDACTED,REDACTED
03.09.2021,F & C S EXCLUDING CORPORATE BUDGETS,REDACTED PERSONAL DATA,500,SESS,OTHER PAYMENTS FOR CLIENTS,REDACTED,REDACTED
03.09.2021,HOUSING,A & E ELKINS LTD,"124,148.31",A&E ELKINS,I-WORLD CONTRACTORS HOLDING ACCOUNT,2103314830,4012501
03.09.2021,HOUSING,PRB ESTATES LTD,"15,689.36",PRBE,I-WORLD CONTRACTORS HOLDING ACCOUNT,2103314822,3000001691
03.09.2021,HOUSING HRA,C&C BUILDERS LTD,"3,884.51",CAPITAL PS (HRA),CONST'N MAIN CONTRACT - NON CERTIFICATED,2103314821,3000001986
03.09.2021,HOUSING HRA,DAVID ROGERSON,675,CAPITAL PS (HRA),CONSTRUCTION FEES  - EXTERNAL,5902485029,1753617
03.09.2021,HOUSING HRA,CALFORD SEADEN LLP,"1,000.00",CAPITAL PS (HRA),CONSTRUCTION FEES  - EXTERNAL,5902484554,1061592
03.09.2021,HOUSING HRA,CALFORD SEADEN LLP,"1,520.03",CAPITAL PS (HRA),CONSTRUCTION FEES  - EXTERNAL,5902484550,1061592
03.09.2021,HOUSING HRA,CALFORD SEADEN LLP,"3,359.87",CAPITAL PS (HRA),CONSTRUCTION FEES  - EXTERNAL,5902484591,1061592
03.09.2021,HOUSING HRA,BLOOM PROCUREMENT SERVICES LTD,"13,900.00",CAPITAL PS (REGEN),CONSTRUCTION FEES - QUANTITY SURVEYOR,5902484178,1000082531
03.09.2021,LEISURE DIRECTORATE,CASTLE WATER LTD,-675.24,DULWICH AREA TEAM,WATER,5902485142,1000078867
03.09.2021,LEISURE DIRECTORATE,CASTLE WATER LTD,265.58,DULWICH AREA TEAM,WATER,5902485163,1000078867
03.09.2021,LEISURE DIRECTORATE,CASTLE WATER LTD,272.51,DULWICH AREA TEAM,WATER,5902485130,1000078867
03.09.2021,LEISURE DIRECTORATE,CASTLE WATER LTD,503.91,DULWICH AREA TEAM,WATER,5902485059,1000078867
03.09.2021,LEISURE DIRECTORATE,CASTLE WATER LTD,543.16,DULWICH AREA TEAM,WATER,5902485160,1000078867
03.09.2021,LEISURE DIRECTORATE,CASTLE WATER LTD,580.94,DULWICH AREA TEAM,WATER,5902485159,1000078867
03.09.2021,LEISURE DIRECTORATE,CASTLE WATER LTD,610.92,DULWICH AREA TEAM,WATER,5902485124,1000078867
03.09.2021,LEISURE DIRECTORATE,CASTLE WATER LTD,940.52,DULWICH AREA TEAM,WATER,5902485149,1000078867
03.09.2021,LEISURE DIRECTORATE,CASTLE WATER LTD,952.2,DULWICH AREA TEAM,WATER,5902485109,1000078867
03.09.2021,LEISURE DIRECTORATE,CASTLE WATER LTD,"1,148.10",DULWICH AREA TEAM,WATER,5902485128,1000078867
03.09.2021,LEISURE DIRECTORATE,CASTLE WATER LTD,"1,366.78",DULWICH AREA TEAM,WATER,5902485151,1000078867
03.09.2021,LEISURE DIRECTORATE,CASTLE WATER LTD,"1,566.08",DULWICH AREA TEAM,WATER,5902485134,1000078867
03.09.2021,LEISURE DIRECTORATE,CASTLE WATER LTD,"1,567.40",DULWICH AREA TEAM,WATER,5902485115,1000078867
03.09.2021,LEISURE DIRECTORATE,CASTLE WATER LTD,"2,320.43",DULWICH AREA TEAM,WATER,5902485167,1000078867
03.09.2021,LEISURE DIRECTORATE,CASTLE WATER LTD,"2,321.60",DULWICH AREA TEAM,WATER,5902485156,1000078867
03.09.2021,LEISURE DIRECTORATE,CASTLE WATER LTD,"3,713.50",DULWICH AREA TEAM,WATER,5902485165,1000078867
03.09.2021,LEISURE DIRECTORATE,A B KEY LLP,380,SDM BUDGET,EQUIPMENT PURCHASE & REPAIR,5902484257,1000036348
03.09.2021,PLANNING AND TRANSPORT,SOUTHWARK NEWSPAPER LTD,444,PLANNING POLICY TEAM,COMMS & COMPUTING CONTRACT CHARGES,5902485022,1556957
03.09.2021,PUBLIC HEALTH,REDACTED PERSONAL DATA,500,COVID-19 CONTROL OUTBREAK MGMNT.FUND,OTHER PAYMENTS FOR CLIENTS,REDACTED,REDACTED
03.09.2021,PUBLICHEALTH,ELITE GUARDING (UK) LTD,"49,400.00",COVID-19 MASS RAPID TESTING,EXTERNAL AGENCIES AND BODIES,5902484913,1000086183
03.09.2021,PUBLICHEALTH,ELITE GUARDING (UK) LTD,"49,400.00",COVID-19 MASS RAPID TESTING,EXTERNAL AGENCIES AND BODIES,5902484915,1000086183
03.09.2021,REGENERATION,WORKMAN LLP,815.14,14-20 SHAND STREET,SERVICE CHARGES,2103314290,1000063692
03.09.2021,REGENERATION,WORKMAN LLP,"4,604.88",14-20 SHAND STREET,SERVICE CHARGES,2103314287,1000063692
03.09.2021,RESIDENT SERVICES HGF,MAURICE LAURENT LTD,"2,293.72",HOMELESS PROJECTS,GRANTS,5902485051,1000080165
03.09.2021,RESIDENT SERVICES HGF,BUSHE DEVELOPMENTS (UK) LIMITED,"3,171.30",HOMELESS PROJECTS,GRANTS,5902485040,1000087242
03.09.2021,RESIDENT SERVICES HGF,SOLACE WOMEN'S AID,"12,326.00",NIGHTLY TA (NSC),EXTERNAL AGENCIES AND BODIES,5902485035,1000057231
03.09.2021,RESIDENT SERVICES HGF,TAAKSVALE HOUSING LTD,"66,150.90",NIGHTLY TA (NSC),EXTERNAL AGENCIES AND BODIES,5902485017,1000073665
03.09.2021,RESIDENT SERVICES HGF,MAIER LANG LIMITED,"45,176.12",NIGHTLY TA (NSC),EXTERNAL AGENCIES AND BODIES,5902485025,1000084930
03.09.2021,RESIDENT SERVICES HGF,CHRISTINE PAUL,"2,000.00",PRIVATE SECTOR LEASING,EXTERNAL AGENCIES AND BODIES,2103314279,1000086986
03.09.2021,RESIDENT SERVICES HGF,CHRISTINE PAUL,"2,800.00",PRIVATE SECTOR LEASING,EXTERNAL AGENCIES AND BODIES,2103314278,1000086986
03.09.2021,RESIDENT SERVICES HGF,LETTING INTERNATIONAL LTD,"2,829.60",PSL PLACEMENTS,EXTERNAL AGENCIES AND BODIES,5902485018,1000070102
03.09.2021,RESIDENT SERVICES HGF,SOUTH OF THE RIVER INVESTMENTS LTD,"41,361.98",PSL PLACEMENTS,EXTERNAL AGENCIES AND BODIES,5902485021,1000073638
03.09.2021,RESIDENT SERVICES HGF,SMARTSPACE PROPERTY SOLUTIONS LTD,"10,719.82",PSL PLACEMENTS,EXTERNAL AGENCIES AND BODIES,5902485045,1000082769
03.09.2021,SBS SUPPORT,T4 INTELLIGENT INFRASTRUCTURE,"1,112.87",SBS - HOLDING ACCOUNT,OTHER CONTRACTORS,2103314819,3000001985
03.09.2021,SBS SUPPORT,A STAR DRAIN MASTERS LTD,"3,127.65",SBS - HOLDING ACCOUNT,OTHER CONTRACTORS,2103314818,3000002187
03.09.2021,SOUTHWARK SCHOOL FOR FUTURE,JOHN BURKE ASSOCIATES LIMITED,640,CAPITAL PS (REGEN),CONSTRUCTION MAIN CONTRACT,5902485187,1000026411
03.09.2021,SOUTHWARK SCHOOL FOR FUTURE,JOHN BURKE ASSOCIATES LIMITED,800,CAPITAL PS (REGEN),CONSTRUCTION MAIN CONTRACT,5902485186,1000026411
04.09.2021,ADULT SOCIAL CARE,SIGNIS LTD,570,ASW - PROFESSIONAL DEVELOPMENT,TRAINING,5902484484,1000075765
04.09.2021,COMMUNITIES,PARENT AND FAMILY CONSULTING LTD,"5,000.00",PREVENT,PROFESSIONAL FEES,5902484612,1000079801
04.09.2021,DSG,HUMANWARE EUROPE LTD,"4,595.00",HEARING AND VISUAL IMPAIRMENT TEAM,TRAINING,5902484797,1000068335
04.09.2021,EMPLOYEE EXPERIENCE,IMPROVEMENT AND DEVELOPMENT AGENCY,750,MEMBER DEVELOPMENT,TRAINING,5902484495,1000017731
04.09.2021,ENVIRONMENT AND LEISURE,VINCENTSTOKES LTD,"14,913.95",CAPITAL PS (LEISURE),CONSTRUCTION,5902484586,1000080539
04.09.2021,ENVIRONMENT AND LEISURE,SOILTECHNICS LTD,"2,550.00",CAPITAL PS (LEISURE),CONSTRUCTION FEES,5902484600,1000014274
04.09.2021,ENVIRONMENT AND LEISURE,CONNICK TREE CARE REIGATE LTD,560,CAPITAL PS (LEISURE),CONSTRUCTION FEES,5902484615,1000070069
04.09.2021,ENVIRONMENT DIRECTORATE,THE T P PARTNERSHIP,445,ESTATE CLEANING-GENERAL,OTHER CONTRACTORS,5902484853,1000045906
04.09.2021,HOUSING HRA,CALFORD SEADEN LLP,"9,775.50",CAPITAL PS (HRA),CONSTRUCTION FEES  - EXTERNAL,5902484375,1061592
04.09.2021,HOUSING HRA,CARTER JONAS LLP,"6,000.00",CAPITAL PS (HRA),LAND & BUILDINGS ACQUISITION FEES,5902484611,1000073124
04.09.2021,HOUSING HRA,STANNAH LIFT SERVICES LTD,"5,414.00",CAPITAL PS (HRA),UTILITIES INSTALLATION,5902484921,1063595
04.09.2021,LEISURE DIRECTORATE,VINCENTSTOKES LTD,836.37,FACILITIES MAINTENANCE,BUILDING R&M,5902484588,1000080539
04.09.2021,LEISURE DIRECTORATE,VINCENTSTOKES LTD,"1,705.00",FACILITIES MAINTENANCE,BUILDING R&M,5902484583,1000080539
04.09.2021,LEISURE DIRECTORATE,TACKLESTORE LTD,385.02,SDM BUDGET,MATERIALS,5902484513,1000077906
04.09.2021,SBS SUPPORT,TOTALMOBILE LTD,"8,000.00",ICT & COMMUNICATIONS,SOFTWARE,5902484608,1000085502
05.09.2021,ADULT SOCIAL CARE,SWK DISABLEMENT ASSN,"5,881.49",DIR OF ASC,EXTERNAL AGENCIES AND BODIES,5902485034,1000011698
05.09.2021,ADULT SOCIAL CARE,SWK DISABLEMENT ASSN,"5,964.45",DIR OF ASC,EXTERNAL AGENCIES AND BODIES,5902485032,1000011698
05.09.2021,ASSET MANAGEMENT,BRIDGEWATER LTD,"3,969.00",MAJOR REPAIRS,BUILDING R&M,5902484565,1000065042
05.09.2021,COMMUNITIES HRA,SETCHELL ESTATE T&RA,"1,776.50",RESIDENTS PARTICIPATION FUND,GRANTS,5902484510,1266504
05.09.2021,EDUCATION,HATS GROUP LTD,"12,590.76",SCH TRANS � TRAVEL,HIRED VEHICLES,5902484570,1000042743
05.09.2021,ENVIRONMENT DIRECTORATE,ELLIOT ENVIRONMENTAL LTD,400,STREET CLEANING-GENERAL,OTHER CONTRACTORS,5902484979,1000047392
05.09.2021,F & C S EXCLUDING CORPORATE BUDGETS,BDO LLP,"2,083.33",RISK ADMIN,PROFESSIONAL FEES,5902484780,1000057898
05.09.2021,HOUSING HRA,CALFORD SEADEN LLP,"1,764.00",CAPITAL PS (HRA),CONSTRUCTION FEES  - EXTERNAL,5902484847,1061592
05.09.2021,HOUSING HRA,SUSTAINABLE CONSTRUCTION SERVICES,500,CAPITAL PS (HRA),CONSTRUCTION FEES  - EXTERNAL,5902484965,1000086454
05.09.2021,HOUSING HRA,IMMERSIVE3D LIMITED,"1,540.00",CAPITAL PS (HRA),CONSTRUCTION FEES  - EXTERNAL,5902484631,1000086953
05.09.2021,HOUSING HRA,DJJH CONSULTING LTD,483.18,CAPITAL PS (HRA),CONSTRUCTION FEES - EMPLOYERS AGENT,5902484959,1000085261
05.09.2021,LEISURE DIRECTORATE,FUEL OILS LTD,629.5,CEMETERIES,VEHICLE FUEL,5902484992,1000026670
05.09.2021,LEISURE DIRECTORATE,PHS GROUP PLC,"2,408.64",SDM BUDGET,PREMISES CLEANING,5902484509,1851993
05.09.2021,STRATEGIC FINANCING BUDGETS,TRADITION (UK) LTD,"24,904.10",EXTERNAL INTEREST,DEBT MANAGEMENT EXPENSES,5902484596,1000081340
05.09.2021,STRATEGIC FINANCING BUDGETS,JOHNSON AUSTIN LTD,300,PROPERTY RELATED INSURANCE,PROFESSIONAL FEES,5902484865,1000040202
06.09.2021,ADULT SOCIAL CARE,REDACTED PERSONAL DATA,279.85,APPOINTEESHIPS,OTHER PAYMENTS FOR CLIENTS,REDACTED,REDACTED
06.09.2021,ADULT SOCIAL CARE,SAFFRONLAND HOMES,582.58,DIR OF ASC,EXTERNAL AGENCIES AND BODIES,5902485361,11172608
06.09.2021,ADULT SOCIAL CARE,BRANDON TRUST,"2,234.96",DIR OF ASC,EXTERNAL AGENCIES AND BODIES,5902485263,1000042417
06.09.2021,ADULT SOCIAL CARE,BRANDON TRUST,"6,045.48",DIR OF ASC,EXTERNAL AGENCIES AND BODIES,5902485266,1000042417
06.09.2021,ADULT SOCIAL CARE,METRO HOMECARE LTD,"11,762.96",DIR OF ASC,EXTERNAL AGENCIES AND BODIES,5902485297,1000070695
06.09.2021,ADULT SOCIAL CARE,METRO HOMECARE LTD,"11,928.91",DIR OF ASC,EXTERNAL AGENCIES AND BODIES,5902485294,1000070695
06.09.2021,ADULT SOCIAL CARE,PROFAD CARE AGENCY,"5,293.34",DIR OF ASC,EXTERNAL AGENCIES AND BODIES,5902485276,1000079032
06.09.2021,ADULT SOCIAL CARE,PROFAD CARE AGENCY,"5,368.01",DIR OF ASC,EXTERNAL AGENCIES AND BODIES,5902485265,1000079032
06.09.2021,ADULT SOCIAL CARE,LIRAL VEGET TRAINING & RECRUITMENT,"1,411.56",DIR OF ASC,EXTERNAL AGENCIES AND BODIES,5902485247,1000086193
06.09.2021,ADULT SOCIAL CARE,ACCESS MOBILITY TRANSPORT LTD,"2,578.80",LD LTS 18-64,CLIENT TRANSPORT,2103315203,1000074637
06.09.2021,ADULT SOCIAL CARE,MEDACS HOMECARE,889.98,LD LTS 18-64,HOMECARE - C&V,2103315175,11287415
06.09.2021,ADULT SOCIAL CARE,MEDACS HOMECARE,"1,042.89",LD LTS 18-64,HOMECARE - C&V,2103315014,11287415
06.09.2021,ADULT SOCIAL CARE,MEDACS HOMECARE,"1,047.53",LD LTS 18-64,HOMECARE - C&V,2103315092,11287415
06.09.2021,ADULT SOCIAL CARE,BLISSETT CARE LTD,510.04,LD LTS 18-64,HOMECARE - C&V,2103314942,1000042627
06.09.2021,ADULT SOCIAL CARE,BURNHAM HOUSE,"7,796.30",LD LTS 18-64,RESIDENTIAL CARE,2103314833,1000050697
06.09.2021,ADULT SOCIAL CARE,CARE MANAGEMENT GROUP,396,LD LTS 18-64,SUPPORTED LIVING,2103315202,1000040475
06.09.2021,ADULT SOCIAL CARE,DARETHEALTHCARE UK LTD,318.57,LD LTS 18-64,SUPPORTED LIVING,2103315201,1000059149
06.09.2021,ADULT SOCIAL CARE,ABILITY FOCUS LTD,"2,184.00",LD LTS 18-64,SUPPORTED LIVING,2103315205,1000084199
06.09.2021,ADULT SOCIAL CARE,MEDACS HOMECARE,662.83,MEM LTS 65+,HOMECARE - C&V,2103315145,11287415
06.09.2021,ADULT SOCIAL CARE,MEDACS HOMECARE,764.8,MEM LTS 65+,HOMECARE - C&V,2103314989,11287415
06.09.2021,ADULT SOCIAL CARE,MEDACS HOMECARE,968.8,MEM LTS 65+,HOMECARE - C&V,2103315087,11287415
06.09.2021,ADULT SOCIAL CARE,MEDACS HOMECARE,"1,015.09",MEM LTS 65+,HOMECARE - C&V,2103315170,11287415
06.09.2021,ADULT SOCIAL CARE,MEDACS HOMECARE,"1,047.53",MEM LTS 65+,HOMECARE - C&V,2103315009,11287415
06.09.2021,ADULT SOCIAL CARE,MEDACS HOMECARE,"1,362.86",MEM LTS 65+,HOMECARE - C&V,2103315035,11287415
06.09.2021,ADULT SOCIAL CARE,MEDACS HOMECARE,"1,399.95",MEM LTS 65+,HOMECARE - C&V,2103315113,11287415
06.09.2021,ADULT SOCIAL CARE,MEDACS HOMECARE,"1,418.47",MEM LTS 65+,HOMECARE - C&V,2103315196,11287415
06.09.2021,ADULT SOCIAL CARE,BLISSETT CARE LTD,519.23,MEM LTS 65+,HOMECARE - C&V,2103314948,1000042627
06.09.2021,ADULT SOCIAL CARE,BLISSETT CARE LTD,"2,457.92",MEM LTS 65+,HOMECARE - C&V,2103314940,1000042627
06.09.2021,ADULT SOCIAL CARE,MEDACS HOMECARE,560.87,MH LTS 18-64,HOMECARE - C&V,2103314981,11287415
06.09.2021,ADULT SOCIAL CARE,MEDACS HOMECARE,616.48,MH LTS 18-64,HOMECARE - C&V,2103315060,11287415
06.09.2021,ADULT SOCIAL CARE,MEDACS HOMECARE,690.68,MH LTS 18-64,HOMECARE - C&V,2103315141,11287415
06.09.2021,ADULT SOCIAL CARE,MEDACS HOMECARE,728.95,MH LTS 18-64,HOMECARE - C&V,2103315099,11287415
06.09.2021,ADULT SOCIAL CARE,MEDACS HOMECARE,733.26,MH LTS 18-64,HOMECARE - C&V,2103315021,11287415
06.09.2021,ADULT SOCIAL CARE,MEDACS HOMECARE,741.88,MH LTS 18-64,HOMECARE - C&V,2103315182,11287415
06.09.2021,ADULT SOCIAL CARE,MEDACS HOMECARE,"1,418.85",MH LTS 18-64,HOMECARE - C&V,2103315098,11287415
06.09.2021,ADULT SOCIAL CARE,MEDACS HOMECARE,"1,571.29",MH LTS 18-64,HOMECARE - C&V,2103315054,11287415
06.09.2021,ADULT SOCIAL CARE,MEDACS HOMECARE,"1,578.51",MH LTS 18-64,HOMECARE - C&V,2103315181,11287415
06.09.2021,ADULT SOCIAL CARE,MEDACS HOMECARE,"1,585.18",MH LTS 18-64,HOMECARE - C&V,2103315133,11287415
06.09.2021,ADULT SOCIAL CARE,MEDACS HOMECARE,"1,594.46",MH LTS 18-64,HOMECARE - C&V,2103314970,11287415
06.09.2021,ADULT SOCIAL CARE,MEDACS HOMECARE,"1,617.23",MH LTS 18-64,HOMECARE - C&V,2103315020,11287415
06.09.2021,ADULT SOCIAL CARE,MEDACS HOMECARE,482.04,MH LTS 65+,HOMECARE - C&V,2103315039,11287415
06.09.2021,ADULT SOCIAL CARE,BLISSETT CARE LTD,273.28,MH LTS 65+,HOMECARE - C&V,2103314944,1000042627
06.09.2021,ADULT SOCIAL CARE,BLISSETT CARE LTD,362.96,MH LTS 65+,HOMECARE - C&V,2103314930,1000042627
06.09.2021,ADULT SOCIAL CARE,BLISSETT CARE LTD,482.39,MH LTS 65+,HOMECARE - C&V,2103314918,1000042627
06.09.2021,ADULT SOCIAL CARE,BLISSETT CARE LTD,"3,513.93",MH LTS 65+,HOMECARE - C&V,2103314928,1000042627
06.09.2021,ADULT SOCIAL CARE,MEDACS HOMECARE,250.38,PHY LTS 18-64,HOMECARE - C&V,2103315012,11287415
06.09.2021,ADULT SOCIAL CARE,MEDACS HOMECARE,254.94,PHY LTS 18-64,HOMECARE - C&V,2103315061,11287415
06.09.2021,ADULT SOCIAL CARE,MEDACS HOMECARE,264.2,PHY LTS 18-64,HOMECARE - C&V,2103315011,11287415
06.09.2021,ADULT SOCIAL CARE,MEDACS HOMECARE,273.48,PHY LTS 18-64,HOMECARE - C&V,2103315172,11287415
06.09.2021,ADULT SOCIAL CARE,MEDACS HOMECARE,278.11,PHY LTS 18-64,HOMECARE - C&V,2103315089,11287415
06.09.2021,ADULT SOCIAL CARE,MEDACS HOMECARE,278.15,PHY LTS 18-64,HOMECARE - C&V,2103315137,11287415
06.09.2021,ADULT SOCIAL CARE,MEDACS HOMECARE,278.16,PHY LTS 18-64,HOMECARE - C&V,2103314974,11287415
06.09.2021,ADULT SOCIAL CARE,MEDACS HOMECARE,301.37,PHY LTS 18-64,HOMECARE - C&V,2103315138,11287415
06.09.2021,ADULT SOCIAL CARE,MEDACS HOMECARE,306.25,PHY LTS 18-64,HOMECARE - C&V,2103315085,11287415
06.09.2021,ADULT SOCIAL CARE,MEDACS HOMECARE,307.09,PHY LTS 18-64,HOMECARE - C&V,2103315030,11287415
06.09.2021,ADULT SOCIAL CARE,MEDACS HOMECARE,314.87,PHY LTS 18-64,HOMECARE - C&V,2103315007,11287415
06.09.2021,ADULT SOCIAL CARE,MEDACS HOMECARE,315.24,PHY LTS 18-64,HOMECARE - C&V,2103314953,11287415
06.09.2021,ADULT SOCIAL CARE,MEDACS HOMECARE,315.24,PHY LTS 18-64,HOMECARE - C&V,2103315041,11287415
06.09.2021,ADULT SOCIAL CARE,MEDACS HOMECARE,315.24,PHY LTS 18-64,HOMECARE - C&V,2103315118,11287415
06.09.2021,ADULT SOCIAL CARE,MEDACS HOMECARE,319.91,PHY LTS 18-64,HOMECARE - C&V,2103314975,11287415
06.09.2021,ADULT SOCIAL CARE,MEDACS HOMECARE,327.87,PHY LTS 18-64,HOMECARE - C&V,2103315001,11287415
06.09.2021,ADULT SOCIAL CARE,MEDACS HOMECARE,345.12,PHY LTS 18-64,HOMECARE - C&V,2103315162,11287415
06.09.2021,ADULT SOCIAL CARE,MEDACS HOMECARE,352.38,PHY LTS 18-64,HOMECARE - C&V,2103315090,11287415
06.09.2021,ADULT SOCIAL CARE,MEDACS HOMECARE,353.73,PHY LTS 18-64,HOMECARE - C&V,2103315079,11287415
06.09.2021,ADULT SOCIAL CARE,MEDACS HOMECARE,431.07,PHY LTS 18-64,HOMECARE - C&V,2103315193,11287415
06.09.2021,ADULT SOCIAL CARE,MEDACS HOMECARE,435.72,PHY LTS 18-64,HOMECARE - C&V,2103315110,11287415
06.09.2021,ADULT SOCIAL CARE,MEDACS HOMECARE,440.33,PHY LTS 18-64,HOMECARE - C&V,2103315032,11287415
06.09.2021,ADULT SOCIAL CARE,MEDACS HOMECARE,454.37,PHY LTS 18-64,HOMECARE - C&V,2103315049,11287415
06.09.2021,ADULT SOCIAL CARE,MEDACS HOMECARE,458.87,PHY LTS 18-64,HOMECARE - C&V,2103315153,11287415
06.09.2021,ADULT SOCIAL CARE,MEDACS HOMECARE,472.9,PHY LTS 18-64,HOMECARE - C&V,2103315129,11287415
06.09.2021,ADULT SOCIAL CARE,MEDACS HOMECARE,482.17,PHY LTS 18-64,HOMECARE - C&V,2103314964,11287415
06.09.2021,ADULT SOCIAL CARE,MEDACS HOMECARE,483.14,PHY LTS 18-64,HOMECARE - C&V,2103315178,11287415
06.09.2021,ADULT SOCIAL CARE,MEDACS HOMECARE,504.72,PHY LTS 18-64,HOMECARE - C&V,2103315096,11287415
06.09.2021,ADULT SOCIAL CARE,MEDACS HOMECARE,547.86,PHY LTS 18-64,HOMECARE - C&V,2103315016,11287415
06.09.2021,ADULT SOCIAL CARE,MEDACS HOMECARE,614.17,PHY LTS 18-64,HOMECARE - C&V,2103315191,11287415
06.09.2021,ADULT SOCIAL CARE,MEDACS HOMECARE,653.15,PHY LTS 18-64,HOMECARE - C&V,2103315107,11287415
06.09.2021,ADULT SOCIAL CARE,MEDACS HOMECARE,653.68,PHY LTS 18-64,HOMECARE - C&V,2103314966,11287415
06.09.2021,ADULT SOCIAL CARE,MEDACS HOMECARE,672.18,PHY LTS 18-64,HOMECARE - C&V,2103315130,11287415
06.09.2021,ADULT SOCIAL CARE,MEDACS HOMECARE,672.21,PHY LTS 18-64,HOMECARE - C&V,2103315050,11287415
06.09.2021,ADULT SOCIAL CARE,MEDACS HOMECARE,732.36,PHY LTS 18-64,HOMECARE - C&V,2103315086,11287415
06.09.2021,ADULT SOCIAL CARE,MEDACS HOMECARE,741.7,PHY LTS 18-64,HOMECARE - C&V,2103315131,11287415
06.09.2021,ADULT SOCIAL CARE,MEDACS HOMECARE,746.34,PHY LTS 18-64,HOMECARE - C&V,2103314967,11287415
06.09.2021,ADULT SOCIAL CARE,MEDACS HOMECARE,755.54,PHY LTS 18-64,HOMECARE - C&V,2103315171,11287415
06.09.2021,ADULT SOCIAL CARE,MEDACS HOMECARE,760.25,PHY LTS 18-64,HOMECARE - C&V,2103315051,11287415
06.09.2021,ADULT SOCIAL CARE,MEDACS HOMECARE,778.71,PHY LTS 18-64,HOMECARE - C&V,2103315010,11287415
06.09.2021,ADULT SOCIAL CARE,MEDACS HOMECARE,876.05,PHY LTS 18-64,HOMECARE - C&V,2103314982,11287415
06.09.2021,ADULT SOCIAL CARE,MEDACS HOMECARE,922.64,PHY LTS 18-64,HOMECARE - C&V,2103315134,11287415
06.09.2021,ADULT SOCIAL CARE,MEDACS HOMECARE,968.97,PHY LTS 18-64,HOMECARE - C&V,2103315055,11287415
06.09.2021,ADULT SOCIAL CARE,MEDACS HOMECARE,"1,015.34",PHY LTS 18-64,HOMECARE - C&V,2103314971,11287415
06.09.2021,ADULT SOCIAL CARE,MEDACS HOMECARE,"1,140.37",PHY LTS 18-64,HOMECARE - C&V,2103315101,11287415
06.09.2021,ADULT SOCIAL CARE,MEDACS HOMECARE,"1,145.00",PHY LTS 18-64,HOMECARE - C&V,2103315184,11287415
06.09.2021,ADULT SOCIAL CARE,MEDACS HOMECARE,"1,163.55",PHY LTS 18-64,HOMECARE - C&V,2103315023,11287415
06.09.2021,ADULT SOCIAL CARE,MEDACS HOMECARE,"1,297.84",PHY LTS 18-64,HOMECARE - C&V,2103315043,11287415
06.09.2021,ADULT SOCIAL CARE,MEDACS HOMECARE,"1,307.08",PHY LTS 18-64,HOMECARE - C&V,2103314956,11287415
06.09.2021,ADULT SOCIAL CARE,MEDACS HOMECARE,"1,311.80",PHY LTS 18-64,HOMECARE - C&V,2103315121,11287415
06.09.2021,ADULT SOCIAL CARE,MEDACS HOMECARE,"1,395.39",PHY LTS 18-64,HOMECARE - C&V,2103315104,11287415
06.09.2021,ADULT SOCIAL CARE,MEDACS HOMECARE,"1,404.65",PHY LTS 18-64,HOMECARE - C&V,2103315187,11287415
06.09.2021,ADULT SOCIAL CARE,MEDACS HOMECARE,"1,432.49",PHY LTS 18-64,HOMECARE - C&V,2103315026,11287415
06.09.2021,ADULT SOCIAL CARE,MEDACS HOMECARE,"3,454.63",PHY LTS 18-64,HOMECARE - C&V,2103315174,11287415
06.09.2021,ADULT SOCIAL CARE,MEDACS HOMECARE,"3,489.18",PHY LTS 18-64,HOMECARE - C&V,2103315013,11287415
06.09.2021,ADULT SOCIAL CARE,MEDACS HOMECARE,"3,696.17",PHY LTS 18-64,HOMECARE - C&V,2103315091,11287415
06.09.2021,ADULT SOCIAL CARE,BLISSETT CARE LTD,588.12,PHY LTS 18-64,HOMECARE - C&V,2103314907,1000042627
06.09.2021,ADULT SOCIAL CARE,BLISSETT CARE LTD,602.07,PHY LTS 18-64,HOMECARE - C&V,2103314951,1000042627
06.09.2021,ADULT SOCIAL CARE,BLISSETT CARE LTD,638.56,PHY LTS 18-64,HOMECARE - C&V,2103314912,1000042627
06.09.2021,ADULT SOCIAL CARE,BLISSETT CARE LTD,"1,015.27",PHY LTS 18-64,HOMECARE - C&V,2103314937,1000042627
06.09.2021,ADULT SOCIAL CARE,BLISSETT CARE LTD,"1,130.02",PHY LTS 18-64,HOMECARE - C&V,2103314939,1000042627
06.09.2021,ADULT SOCIAL CARE,MEDACS HOMECARE,259.59,PHY LTS 65+,HOMECARE - C&V,2103315038,11287415
06.09.2021,ADULT SOCIAL CARE,MEDACS HOMECARE,278.18,PHY LTS 65+,HOMECARE - C&V,2103314976,11287415
06.09.2021,ADULT SOCIAL CARE,MEDACS HOMECARE,281.6,PHY LTS 65+,HOMECARE - C&V,2103315019,11287415
06.09.2021,ADULT SOCIAL CARE,MEDACS HOMECARE,287.38,PHY LTS 65+,HOMECARE - C&V,2103314959,11287415
06.09.2021,ADULT SOCIAL CARE,MEDACS HOMECARE,296.68,PHY LTS 65+,HOMECARE - C&V,2103314958,11287415
06.09.2021,ADULT SOCIAL CARE,MEDACS HOMECARE,296.68,PHY LTS 65+,HOMECARE - C&V,2103315045,11287415
06.09.2021,ADULT SOCIAL CARE,MEDACS HOMECARE,296.68,PHY LTS 65+,HOMECARE - C&V,2103315124,11287415
06.09.2021,ADULT SOCIAL CARE,MEDACS HOMECARE,319.83,PHY LTS 65+,HOMECARE - C&V,2103315125,11287415
06.09.2021,ADULT SOCIAL CARE,MEDACS HOMECARE,327.8,PHY LTS 65+,HOMECARE - C&V,2103315158,11287415
06.09.2021,ADULT SOCIAL CARE,MEDACS HOMECARE,353.68,PHY LTS 65+,HOMECARE - C&V,2103314997,11287415
06.09.2021,ADULT SOCIAL CARE,MEDACS HOMECARE,357,PHY LTS 65+,HOMECARE - C&V,2103315152,11287415
06.09.2021,ADULT SOCIAL CARE,MEDACS HOMECARE,366.29,PHY LTS 65+,HOMECARE - C&V,2103315143,11287415
06.09.2021,ADULT SOCIAL CARE,MEDACS HOMECARE,366.63,PHY LTS 65+,HOMECARE - C&V,2103315177,11287415
06.09.2021,ADULT SOCIAL CARE,MEDACS HOMECARE,370.82,PHY LTS 65+,HOMECARE - C&V,2103314994,11287415
06.09.2021,ADULT SOCIAL CARE,MEDACS HOMECARE,370.92,PHY LTS 65+,HOMECARE - C&V,2103315063,11287415
06.09.2021,ADULT SOCIAL CARE,MEDACS HOMECARE,375.24,PHY LTS 65+,HOMECARE - C&V,2103315075,11287415
06.09.2021,ADULT SOCIAL CARE,MEDACS HOMECARE,375.25,PHY LTS 65+,HOMECARE - C&V,2103315018,11287415
06.09.2021,ADULT SOCIAL CARE,MEDACS HOMECARE,379.56,PHY LTS 65+,HOMECARE - C&V,2103315094,11287415
06.09.2021,ADULT SOCIAL CARE,MEDACS HOMECARE,380.16,PHY LTS 65+,HOMECARE - C&V,2103315071,11287415
06.09.2021,ADULT SOCIAL CARE,MEDACS HOMECARE,384.84,PHY LTS 65+,HOMECARE - C&V,2103314984,11287415
06.09.2021,ADULT SOCIAL CARE,MEDACS HOMECARE,389.37,PHY LTS 65+,HOMECARE - C&V,2103314965,11287415
06.09.2021,ADULT SOCIAL CARE,MEDACS HOMECARE,389.46,PHY LTS 65+,HOMECARE - C&V,2103315065,11287415
06.09.2021,ADULT SOCIAL CARE,MEDACS HOMECARE,394.11,PHY LTS 65+,HOMECARE - C&V,2103314986,11287415
06.09.2021,ADULT SOCIAL CARE,MEDACS HOMECARE,398.73,PHY LTS 65+,HOMECARE - C&V,2103315144,11287415
06.09.2021,ADULT SOCIAL CARE,MEDACS HOMECARE,472.87,PHY LTS 65+,HOMECARE - C&V,2103315073,11287415
06.09.2021,ADULT SOCIAL CARE,MEDACS HOMECARE,482.15,PHY LTS 65+,HOMECARE - C&V,2103314995,11287415
06.09.2021,ADULT SOCIAL CARE,MEDACS HOMECARE,486.8,PHY LTS 65+,HOMECARE - C&V,2103315156,11287415
06.09.2021,ADULT SOCIAL CARE,MEDACS HOMECARE,519.12,PHY LTS 65+,HOMECARE - C&V,2103315140,11287415
06.09.2021,ADULT SOCIAL CARE,MEDACS HOMECARE,523.76,PHY LTS 65+,HOMECARE - C&V,2103314980,11287415
06.09.2021,ADULT SOCIAL CARE,MEDACS HOMECARE,537.68,PHY LTS 65+,HOMECARE - C&V,2103315059,11287415
06.09.2021,ADULT SOCIAL CARE,MEDACS HOMECARE,547.88,PHY LTS 65+,HOMECARE - C&V,2103315108,11287415
06.09.2021,ADULT SOCIAL CARE,MEDACS HOMECARE,547.89,PHY LTS 65+,HOMECARE - C&V,2103315027,11287415
06.09.2021,ADULT SOCIAL CARE,MEDACS HOMECARE,556.5,PHY LTS 65+,HOMECARE - C&V,2103315188,11287415
06.09.2021,ADULT SOCIAL CARE,MEDACS HOMECARE,584.13,PHY LTS 65+,HOMECARE - C&V,2103314979,11287415
06.09.2021,ADULT SOCIAL CARE,MEDACS HOMECARE,611.89,PHY LTS 65+,HOMECARE - C&V,2103315064,11287415
06.09.2021,ADULT SOCIAL CARE,MEDACS HOMECARE,649.06,PHY LTS 65+,HOMECARE - C&V,2103314987,11287415
06.09.2021,ADULT SOCIAL CARE,MEDACS HOMECARE,651.37,PHY LTS 65+,HOMECARE - C&V,2103315109,11287415
06.09.2021,ADULT SOCIAL CARE,MEDACS HOMECARE,664.34,PHY LTS 65+,HOMECARE - C&V,2103315031,11287415
06.09.2021,ADULT SOCIAL CARE,MEDACS HOMECARE,681.57,PHY LTS 65+,HOMECARE - C&V,2103315192,11287415
06.09.2021,ADULT SOCIAL CARE,MEDACS HOMECARE,774.27,PHY LTS 65+,HOMECARE - C&V,2103315150,11287415
06.09.2021,ADULT SOCIAL CARE,MEDACS HOMECARE,811.36,PHY LTS 65+,HOMECARE - C&V,2103315069,11287415
06.09.2021,ADULT SOCIAL CARE,MEDACS HOMECARE,839.09,PHY LTS 65+,HOMECARE - C&V,2103315154,11287415
06.09.2021,ADULT SOCIAL CARE,MEDACS HOMECARE,852.91,PHY LTS 65+,HOMECARE - C&V,2103314972,11287415
06.09.2021,ADULT SOCIAL CARE,MEDACS HOMECARE,862.16,PHY LTS 65+,HOMECARE - C&V,2103315056,11287415
06.09.2021,ADULT SOCIAL CARE,MEDACS HOMECARE,876.02,PHY LTS 65+,HOMECARE - C&V,2103315128,11287415
06.09.2021,ADULT SOCIAL CARE,MEDACS HOMECARE,880.67,PHY LTS 65+,HOMECARE - C&V,2103315135,11287415
06.09.2021,ADULT SOCIAL CARE,MEDACS HOMECARE,894.58,PHY LTS 65+,HOMECARE - C&V,2103315025,11287415
06.09.2021,ADULT SOCIAL CARE,MEDACS HOMECARE,894.7,PHY LTS 65+,HOMECARE - C&V,2103315097,11287415
06.09.2021,ADULT SOCIAL CARE,MEDACS HOMECARE,901.66,PHY LTS 65+,HOMECARE - C&V,2103315115,11287415
06.09.2021,ADULT SOCIAL CARE,MEDACS HOMECARE,903.87,PHY LTS 65+,HOMECARE - C&V,2103315102,11287415
06.09.2021,ADULT SOCIAL CARE,MEDACS HOMECARE,914.55,PHY LTS 65+,HOMECARE - C&V,2103315198,11287415
06.09.2021,ADULT SOCIAL CARE,MEDACS HOMECARE,917.89,PHY LTS 65+,HOMECARE - C&V,2103315180,11287415
06.09.2021,ADULT SOCIAL CARE,MEDACS HOMECARE,927.04,PHY LTS 65+,HOMECARE - C&V,2103315185,11287415
06.09.2021,ADULT SOCIAL CARE,MEDACS HOMECARE,931.65,PHY LTS 65+,HOMECARE - C&V,2103315024,11287415
06.09.2021,ADULT SOCIAL CARE,MEDACS HOMECARE,931.84,PHY LTS 65+,HOMECARE - C&V,2103315037,11287415
06.09.2021,ADULT SOCIAL CARE,MEDACS HOMECARE,941.05,PHY LTS 65+,HOMECARE - C&V,2103315015,11287415
06.09.2021,ADULT SOCIAL CARE,MEDACS HOMECARE,992.21,PHY LTS 65+,HOMECARE - C&V,2103315005,11287415
06.09.2021,ADULT SOCIAL CARE,MEDACS HOMECARE,"1,005.83",PHY LTS 65+,HOMECARE - C&V,2103315103,11287415
06.09.2021,ADULT SOCIAL CARE,MEDACS HOMECARE,"1,039.62",PHY LTS 65+,HOMECARE - C&V,2103315083,11287415
06.09.2021,ADULT SOCIAL CARE,MEDACS HOMECARE,"1,048.23",PHY LTS 65+,HOMECARE - C&V,2103315166,11287415
06.09.2021,ADULT SOCIAL CARE,MEDACS HOMECARE,"1,075.47",PHY LTS 65+,HOMECARE - C&V,2103315028,11287415
06.09.2021,ADULT SOCIAL CARE,MEDACS HOMECARE,"1,093.87",PHY LTS 65+,HOMECARE - C&V,2103315048,11287415
06.09.2021,ADULT SOCIAL CARE,MEDACS HOMECARE,"1,093.91",PHY LTS 65+,HOMECARE - C&V,2103315040,11287415
06.09.2021,ADULT SOCIAL CARE,MEDACS HOMECARE,"1,107.82",PHY LTS 65+,HOMECARE - C&V,2103315117,11287415
06.09.2021,ADULT SOCIAL CARE,MEDACS HOMECARE,"1,107.92",PHY LTS 65+,HOMECARE - C&V,2103315105,11287415
06.09.2021,ADULT SOCIAL CARE,MEDACS HOMECARE,"1,112.41",PHY LTS 65+,HOMECARE - C&V,2103314963,11287415
06.09.2021,ADULT SOCIAL CARE,MEDACS HOMECARE,"1,121.82",PHY LTS 65+,HOMECARE - C&V,2103315189,11287415
06.09.2021,ADULT SOCIAL CARE,MEDACS HOMECARE,"1,158.76",PHY LTS 65+,HOMECARE - C&V,2103314985,11287415
06.09.2021,ADULT SOCIAL CARE,MEDACS HOMECARE,"1,163.43",PHY LTS 65+,HOMECARE - C&V,2103315199,11287415
06.09.2021,ADULT SOCIAL CARE,MEDACS HOMECARE,"1,173.04",PHY LTS 65+,HOMECARE - C&V,2103315047,11287415
06.09.2021,ADULT SOCIAL CARE,MEDACS HOMECARE,"1,182.27",PHY LTS 65+,HOMECARE - C&V,2103315127,11287415
06.09.2021,ADULT SOCIAL CARE,MEDACS HOMECARE,"1,186.95",PHY LTS 65+,HOMECARE - C&V,2103314962,11287415
06.09.2021,ADULT SOCIAL CARE,MEDACS HOMECARE,"1,214.40",PHY LTS 65+,HOMECARE - C&V,2103315186,11287415
06.09.2021,ADULT SOCIAL CARE,MEDACS HOMECARE,"1,214.41",PHY LTS 65+,HOMECARE - C&V,2103315194,11287415
06.09.2021,ADULT SOCIAL CARE,MEDACS HOMECARE,"1,219.03",PHY LTS 65+,HOMECARE - C&V,2103315033,11287415
06.09.2021,ADULT SOCIAL CARE,MEDACS HOMECARE,"1,223.70",PHY LTS 65+,HOMECARE - C&V,2103315111,11287415
06.09.2021,ADULT SOCIAL CARE,MEDACS HOMECARE,"1,237.72",PHY LTS 65+,HOMECARE - C&V,2103315057,11287415
06.09.2021,ADULT SOCIAL CARE,MEDACS HOMECARE,"1,246.98",PHY LTS 65+,HOMECARE - C&V,2103314973,11287415
06.09.2021,ADULT SOCIAL CARE,MEDACS HOMECARE,"1,256.27",PHY LTS 65+,HOMECARE - C&V,2103315136,11287415
06.09.2021,ADULT SOCIAL CARE,MEDACS HOMECARE,"1,265.52",PHY LTS 65+,HOMECARE - C&V,2103314960,11287415
06.09.2021,ADULT SOCIAL CARE,MEDACS HOMECARE,"1,316.47",PHY LTS 65+,HOMECARE - C&V,2103315119,11287415
06.09.2021,ADULT SOCIAL CARE,MEDACS HOMECARE,"1,362.56",PHY LTS 65+,HOMECARE - C&V,2103315100,11287415
06.09.2021,ADULT SOCIAL CARE,MEDACS HOMECARE,"1,379.84",PHY LTS 65+,HOMECARE - C&V,2103315022,11287415
06.09.2021,ADULT SOCIAL CARE,MEDACS HOMECARE,"1,379.84",PHY LTS 65+,HOMECARE - C&V,2103315183,11287415
06.09.2021,ADULT SOCIAL CARE,MEDACS HOMECARE,"1,696.68",PHY LTS 65+,HOMECARE - C&V,2103315067,11287415
06.09.2021,ADULT SOCIAL CARE,MEDACS HOMECARE,"1,710.63",PHY LTS 65+,HOMECARE - C&V,2103314990,11287415
06.09.2021,ADULT SOCIAL CARE,MEDACS HOMECARE,"1,738.37",PHY LTS 65+,HOMECARE - C&V,2103315146,11287415
06.09.2021,ADULT SOCIAL CARE,MEDACS HOMECARE,"1,784.84",PHY LTS 65+,HOMECARE - C&V,2103315195,11287415
06.09.2021,ADULT SOCIAL CARE,MEDACS HOMECARE,"1,789.42",PHY LTS 65+,HOMECARE - C&V,2103315112,11287415
06.09.2021,ADULT SOCIAL CARE,MEDACS HOMECARE,"1,798.70",PHY LTS 65+,HOMECARE - C&V,2103315034,11287415
06.09.2021,ADULT SOCIAL CARE,MEDACS HOMECARE,"1,803.10",PHY LTS 65+,HOMECARE - C&V,2103315008,11287415
06.09.2021,ADULT SOCIAL CARE,MEDACS HOMECARE,"1,914.57",PHY LTS 65+,HOMECARE - C&V,2103314992,11287415
06.09.2021,ADULT SOCIAL CARE,MEDACS HOMECARE,"2,333.63",PHY LTS 65+,HOMECARE - C&V,2103315088,11287415
06.09.2021,ADULT SOCIAL CARE,MEDACS HOMECARE,"2,466.02",PHY LTS 65+,HOMECARE - C&V,2103315002,11287415
06.09.2021,ADULT SOCIAL CARE,MEDACS HOMECARE,"2,466.22",PHY LTS 65+,HOMECARE - C&V,2103315149,11287415
06.09.2021,ADULT SOCIAL CARE,MEDACS HOMECARE,"2,494.15",PHY LTS 65+,HOMECARE - C&V,2103315004,11287415
06.09.2021,ADULT SOCIAL CARE,MEDACS HOMECARE,"2,516.92",PHY LTS 65+,HOMECARE - C&V,2103315151,11287415
06.09.2021,ADULT SOCIAL CARE,MEDACS HOMECARE,"2,572.53",PHY LTS 65+,HOMECARE - C&V,2103315070,11287415
06.09.2021,ADULT SOCIAL CARE,MEDACS HOMECARE,"2,577.31",PHY LTS 65+,HOMECARE - C&V,2103315080,11287415
06.09.2021,ADULT SOCIAL CARE,MEDACS HOMECARE,"2,591.19",PHY LTS 65+,HOMECARE - C&V,2103315163,11287415
06.09.2021,ADULT SOCIAL CARE,MEDACS HOMECARE,"2,652.85",PHY LTS 65+,HOMECARE - C&V,2103315169,11287415
06.09.2021,ADULT SOCIAL CARE,MEDACS HOMECARE,"2,693.34",PHY LTS 65+,HOMECARE - C&V,2103314961,11287415
06.09.2021,ADULT SOCIAL CARE,MEDACS HOMECARE,"2,711.89",PHY LTS 65+,HOMECARE - C&V,2103315126,11287415
06.09.2021,ADULT SOCIAL CARE,MEDACS HOMECARE,"2,739.76",PHY LTS 65+,HOMECARE - C&V,2103315122,11287415
06.09.2021,ADULT SOCIAL CARE,MEDACS HOMECARE,"2,758.32",PHY LTS 65+,HOMECARE - C&V,2103314954,11287415
06.09.2021,ADULT SOCIAL CARE,MEDACS HOMECARE,"2,762.88",PHY LTS 65+,HOMECARE - C&V,2103315046,11287415
06.09.2021,ADULT SOCIAL CARE,MEDACS HOMECARE,"2,786.12",PHY LTS 65+,HOMECARE - C&V,2103315165,11287415
06.09.2021,ADULT SOCIAL CARE,MEDACS HOMECARE,"2,809.29",PHY LTS 65+,HOMECARE - C&V,2103315082,11287415
06.09.2021,ADULT SOCIAL CARE,MEDACS HOMECARE,"3,036.55",PHY LTS 65+,HOMECARE - C&V,2103314955,11287415
06.09.2021,ADULT SOCIAL CARE,MEDACS HOMECARE,"3,092.14",PHY LTS 65+,HOMECARE - C&V,2103315120,11287415
06.09.2021,ADULT SOCIAL CARE,MEDACS HOMECARE,"3,124.58",PHY LTS 65+,HOMECARE - C&V,2103315042,11287415
06.09.2021,ADULT SOCIAL CARE,MEDACS HOMECARE,"3,329.83",PHY LTS 65+,HOMECARE - C&V,2103315190,11287415
06.09.2021,ADULT SOCIAL CARE,MEDACS HOMECARE,"3,403.13",PHY LTS 65+,HOMECARE - C&V,2103315106,11287415
06.09.2021,ADULT SOCIAL CARE,MEDACS HOMECARE,"3,459.15",PHY LTS 65+,HOMECARE - C&V,2103315029,11287415
06.09.2021,ADULT SOCIAL CARE,BLISSETT CARE LTD,252.72,PHY LTS 65+,HOMECARE - C&V,2103314929,1000042627
06.09.2021,ADULT SOCIAL CARE,BLISSETT CARE LTD,261.82,PHY LTS 65+,HOMECARE - C&V,2103314927,1000042627
06.09.2021,ADULT SOCIAL CARE,BLISSETT CARE LTD,280.26,PHY LTS 65+,HOMECARE - C&V,2103314909,1000042627
06.09.2021,ADULT SOCIAL CARE,BLISSETT CARE LTD,349.12,PHY LTS 65+,HOMECARE - C&V,2103314935,1000042627
06.09.2021,ADULT SOCIAL CARE,BLISSETT CARE LTD,367.52,PHY LTS 65+,HOMECARE - C&V,2103314933,1000042627
06.09.2021,ADULT SOCIAL CARE,BLISSETT CARE LTD,542.08,PHY LTS 65+,HOMECARE - C&V,2103314922,1000042627
06.09.2021,ADULT SOCIAL CARE,BLISSETT CARE LTD,589.26,PHY LTS 65+,HOMECARE - C&V,2103314934,1000042627
06.09.2021,ADULT SOCIAL CARE,BLISSETT CARE LTD,640.04,PHY LTS 65+,HOMECARE - C&V,2103314931,1000042627
06.09.2021,ADULT SOCIAL CARE,BLISSETT CARE LTD,725.82,PHY LTS 65+,HOMECARE - C&V,2103314913,1000042627
06.09.2021,ADULT SOCIAL CARE,BLISSETT CARE LTD,762.74,PHY LTS 65+,HOMECARE - C&V,2103314920,1000042627
06.09.2021,ADULT SOCIAL CARE,BLISSETT CARE LTD,785.57,PHY LTS 65+,HOMECARE - C&V,2103314938,1000042627
06.09.2021,ADULT SOCIAL CARE,BLISSETT CARE LTD,858.89,PHY LTS 65+,HOMECARE - C&V,2103314908,1000042627
06.09.2021,ADULT SOCIAL CARE,BLISSETT CARE LTD,903.87,PHY LTS 65+,HOMECARE - C&V,2103314914,1000042627
06.09.2021,ADULT SOCIAL CARE,BLISSETT CARE LTD,914.14,PHY LTS 65+,HOMECARE - C&V,2103314936,1000042627
06.09.2021,ADULT SOCIAL CARE,BLISSETT CARE LTD,923.27,PHY LTS 65+,HOMECARE - C&V,2103314950,1000042627
06.09.2021,ADULT SOCIAL CARE,BLISSETT CARE LTD,927.94,PHY LTS 65+,HOMECARE - C&V,2103314906,1000042627
06.09.2021,ADULT SOCIAL CARE,BLISSETT CARE LTD,941.59,PHY LTS 65+,HOMECARE - C&V,2103314941,1000042627
06.09.2021,ADULT SOCIAL CARE,BLISSETT CARE LTD,956.48,PHY LTS 65+,HOMECARE - C&V,2103314946,1000042627
06.09.2021,ADULT SOCIAL CARE,BLISSETT CARE LTD,959.92,PHY LTS 65+,HOMECARE - C&V,2103314926,1000042627
06.09.2021,ADULT SOCIAL CARE,BLISSETT CARE LTD,"1,019.82",PHY LTS 65+,HOMECARE - C&V,2103314911,1000042627
06.09.2021,ADULT SOCIAL CARE,BLISSETT CARE LTD,"1,153.17",PHY LTS 65+,HOMECARE - C&V,2103314947,1000042627
06.09.2021,ADULT SOCIAL CARE,BLISSETT CARE LTD,"1,195.08",PHY LTS 65+,HOMECARE - C&V,2103314921,1000042627
06.09.2021,ADULT SOCIAL CARE,BLISSETT CARE LTD,"1,635.21",PHY LTS 65+,HOMECARE - C&V,2103314925,1000042627
06.09.2021,ADULT SOCIAL CARE,BLISSETT CARE LTD,"1,727.38",PHY LTS 65+,HOMECARE - C&V,2103314910,1000042627
06.09.2021,ADULT SOCIAL CARE,BLISSETT CARE LTD,"1,865.11",PHY LTS 65+,HOMECARE - C&V,2103314943,1000042627
06.09.2021,ADULT SOCIAL CARE,BLISSETT CARE LTD,"2,416.55",PHY LTS 65+,HOMECARE - C&V,2103314949,1000042627
06.09.2021,ADULT SOCIAL CARE,BLISSETT CARE LTD,"2,549.56",PHY LTS 65+,HOMECARE - C&V,2103314915,1000042627
06.09.2021,ADULT SOCIAL CARE,BLISSETT CARE LTD,"2,577.13",PHY LTS 65+,HOMECARE - C&V,2103314945,1000042627
06.09.2021,ADULT SOCIAL CARE,BLISSETT CARE LTD,"2,902.03",PHY LTS 65+,HOMECARE - C&V,2103314917,1000042627
06.09.2021,ADULT SOCIAL CARE,BLISSETT CARE LTD,"3,141.67",PHY LTS 65+,HOMECARE - C&V,2103314923,1000042627
06.09.2021,ADULT SOCIAL CARE,JACQUELINE FEARON LTD,"1,582.80",SAFEGUARDING & DOLS,EXTERNAL AGENCIES AND BODIES,5902485325,1000077775
06.09.2021,ADULT SOCIAL CARE,ROMEDICAL LTD,720,SAFEGUARDING & DOLS,OTHER CONTRACTORS,5902485329,1000076318
06.09.2021,ADULT SOCIAL CARE,MEDACS HOMECARE,751.01,SOCIAL ISOLATION,HOMECARE - C&V,2103314969,11287415
06.09.2021,ADULT SOCIAL CARE,MEDACS HOMECARE,769.55,SOCIAL ISOLATION,HOMECARE - C&V,2103315053,11287415
06.09.2021,ADULT SOCIAL CARE,MEDACS HOMECARE,797.34,SOCIAL ISOLATION,HOMECARE - C&V,2103315132,11287415
06.09.2021,ADULT SOCIAL CARE,ADVANTAGE HEALTHCARE LTD,882.6,SPECIALIST CARE,SECTION 17 PAYMENTS TO AGENCIES/CARERS,2103315223,1000049612
06.09.2021,ADULT SOCIAL CARE,MEDACS HOMECARE,403.35,SUB LTS 18-64,HOMECARE - C&V,2103315017,11287415
06.09.2021,ADULT SOCIAL CARE,MEDACS HOMECARE,412.61,SUB LTS 18-64,HOMECARE - C&V,2103315093,11287415
06.09.2021,ADULT SOCIAL CARE,MEDACS HOMECARE,426.52,SUB LTS 18-64,HOMECARE - C&V,2103315176,11287415
06.09.2021,ADULT SOCIAL CARE,MEDACS HOMECARE,"1,089.37",SUB LTS 18-64,HOMECARE - SPOT,2103314999,11287415
06.09.2021,ADULT SOCIAL CARE,MEDACS HOMECARE,"1,098.62",SUB LTS 18-64,HOMECARE - SPOT,2103315077,11287415
06.09.2021,ADULT SOCIAL CARE,MEDACS HOMECARE,"1,121.79",SUB LTS 18-64,HOMECARE - SPOT,2103315160,11287415
06.09.2021,ASSET MANAGEMENT,CHESHIRE ESTATE AND LEGAL LTD,"8,250.00",DISREPAIR,LEGAL FEES & COURT COSTS,5902485196,1000081488
06.09.2021,CHIEF EXECUTIVE,TRACSIS TRAFFIC DATA LTD,"3,200.00",CAPITAL PS (REGEN),CONSTRUCTION FEES  - EXTERNAL,5902485292,1000079382
06.09.2021,CHIEF EXECUTIVE,LANDOLT & BROWN,"25,000.00",CAPITAL PS (REGEN),CONSTRUCTION FEES - ARCHITECT,5902485253,1000069588
06.09.2021,CHIEF EXECUTIVE,KN NETWORK SERVICES LTD,"177,022.37",CAPITAL PS (REGEN),CONSTRUCTION MAIN CONTRACT -CERTIFICATED,2103315252,3000002134
06.09.2021,CHILDREN AND ADULT,SHARPE PRITCHARD LLP,"1,496.00",CAPITAL PS (EDUCATION),CONSTRUCTION FEES - LEGAL,5902485264,1790085
06.09.2021,CHILDREN AND ADULT,SHARPE PRITCHARD LLP,"3,692.00",CAPITAL PS (EDUCATION),CONSTRUCTION FEES - LEGAL,5902485261,1790085
06.09.2021,CHILDREN AND ADULT,SHARPE PRITCHARD LLP,"4,941.00",CAPITAL PS (EDUCATION),CONSTRUCTION FEES - LEGAL,5902485260,1790085
06.09.2021,CHILDREN AND FAMILIES,FAMILY FUTURES CIC,"2,500.00",ADOPTION SUPP FUND,PROFESSIONAL FEES,5902485322,1000027893
06.09.2021,CHILDREN AND FAMILIES,FAMILY FUTURES CIC,"5,440.00",ADOPTION SUPP FUND,PROFESSIONAL FEES,5902485332,1000027893
06.09.2021,CHILDREN AND FAMILIES,PLAY TOGETHER LIMITED,"1,320.00",ADOPTION SUPP FUND,PROFESSIONAL FEES,5902485334,1000085787
06.09.2021,CHILDREN AND FAMILIES,PLAY TOGETHER LIMITED,"1,800.00",ADOPTION SUPP FUND,PROFESSIONAL FEES,5902485336,1000085787
06.09.2021,CHILDREN AND FAMILIES,PLAY TOGETHER LIMITED,"1,800.00",ADOPTION SUPP FUND,PROFESSIONAL FEES,5902485337,1000085787
06.09.2021,CHILDREN AND FAMILIES,REDACTED PERSONAL DATA,360,ADOPTION SUPP FUND,PROFESSIONAL FEES,REDACTED,REDACTED
06.09.2021,CHILDREN AND FAMILIES,REDACTED PERSONAL DATA,360,ADOPTION SUPP FUND,PROFESSIONAL FEES,REDACTED,REDACTED
06.09.2021,CHILDREN AND FAMILIES,REDACTED PERSONAL DATA,360,ADOPTION SUPP FUND,PROFESSIONAL FEES,REDACTED,REDACTED
06.09.2021,CHILDREN AND FAMILIES,REDACTED PERSONAL DATA,480,ADOPTION SUPP FUND,PROFESSIONAL FEES,REDACTED,REDACTED
06.09.2021,CHILDREN AND FAMILIES,REDACTED PERSONAL DATA,480,ADOPTION SUPP FUND,PROFESSIONAL FEES,REDACTED,REDACTED
06.09.2021,CHILDREN AND FAMILIES,REDACTED PERSONAL DATA,790,ADOPTION SUPP FUND,PROFESSIONAL FEES,REDACTED,REDACTED
06.09.2021,CHILDREN AND FAMILIES,REDACTED PERSONAL DATA,280,ADOPTION SUPP FUND,PROFESSIONAL FEES,REDACTED,REDACTED
06.09.2021,CHILDREN AND FAMILIES,REDACTED PERSONAL DATA,420,ADOPTION SUPP FUND,PROFESSIONAL FEES,REDACTED,REDACTED
06.09.2021,CHILDREN AND FAMILIES,REDACTED PERSONAL DATA,420,ADOPTION SUPP FUND,PROFESSIONAL FEES,REDACTED,REDACTED
06.09.2021,CHILDREN AND FAMILIES,REDACTED PERSONAL DATA,"2,100.00",ADOPTION SUPP FUND,PROFESSIONAL FEES,REDACTED,REDACTED
06.09.2021,CHILDREN AND FAMILIES,REDACTED PERSONAL DATA,640,ADOPTION SUPP FUND,PROFESSIONAL FEES,REDACTED,REDACTED
06.09.2021,CHILDREN AND FAMILIES,CLIFTON CHILDRENS SOCIETY,"32,320.00",ALS INTER AGENCY,EXTERNAL AGENCIES AND BODIES,5902485328,1000049956
06.09.2021,CHILDREN AND FAMILIES,MCRAE RESIDENTIAL CARE SERVICES LTD,"23,051.60",CHILDREN�S RESID,RESIDENTIAL CARE,2103315238,1000050558
06.09.2021,CHILDREN AND FAMILIES,RESTORATION CARE & SERVICES LTD,"17,089.86",CHILDREN�S RESID,RESIDENTIAL CARE,2103315234,1000081085
06.09.2021,CHILDREN AND FAMILIES,RESTORATION CARE & SERVICES LTD,"17,165.36",CHILDREN�S RESID,RESIDENTIAL CARE,2103315237,1000081085
06.09.2021,CHILDREN AND FAMILIES,RESTORATION CARE & SERVICES LTD,"22,949.15",CHILDREN�S RESID,RESIDENTIAL CARE,2103315236,1000081085
06.09.2021,CHILDREN AND FAMILIES,AREA CAMDEN LTD,"16,164.33",CHILDREN�S RESID,RESIDENTIAL CARE,2103315235,1000083221
06.09.2021,CHILDREN AND FAMILIES,OWNLIFE RESIDENTIAL LTD,"26,128.57",CHILDREN�S RESID,RESIDENTIAL CARE,2103315233,1000085398
06.09.2021,CHILDREN AND FAMILIES,SHARPE PRITCHARD LLP,688,DIRECTOR OF C&F,RENTS,5902485273,1790085
06.09.2021,CHILDREN AND FAMILIES,SHARPE PRITCHARD LLP,800,DIRECTOR OF C&F,RENTS,5902485271,1790085
06.09.2021,CHILDREN AND FAMILIES,KASPER FOSTERING,"3,513.23",FRIENDS & FAMILY FOSTERING,EXTERNAL AGENCIES AND BODIES,2103315230,1000036628
06.09.2021,CHILDREN AND FAMILIES,KASPER FOSTERING,"4,640.39",FRIENDS & FAMILY FOSTERING,EXTERNAL AGENCIES AND BODIES,2103315227,1000036628
06.09.2021,CHILDREN AND FAMILIES,SUNBEAM FOSTERING AGENCY LTD,"3,432.14",FRIENDS & FAMILY FOSTERING,EXTERNAL AGENCIES AND BODIES,2103315229,1000041457
06.09.2021,CHILDREN AND FAMILIES,SUNBEAM FOSTERING AGENCY LTD,"5,646.43",FRIENDS & FAMILY FOSTERING,EXTERNAL AGENCIES AND BODIES,2103315232,1000041457
06.09.2021,CHILDREN AND FAMILIES,SWIIS FOSTER CARE LTD,784,FRIENDS & FAMILY FOSTERING,EXTERNAL AGENCIES AND BODIES,2103315225,1000069633
06.09.2021,CHILDREN AND FAMILIES,REGIONAL FOSTERING SERVICES LTD,"4,406.43",FRIENDS & FAMILY FOSTERING,EXTERNAL AGENCIES AND BODIES,2103315228,1000080112
06.09.2021,CHILDREN AND FAMILIES,FAMILY WORKS FOSTERING LTD,"6,275.29",FRIENDS & FAMILY FOSTERING,EXTERNAL AGENCIES AND BODIES,2103315226,1000082529
06.09.2021,CHILDREN AND FAMILIES,PILGRIMS CORNER LIMITED,"4,424.63",FRIENDS & FAMILY FOSTERING,EXTERNAL AGENCIES AND BODIES,2103315231,1000084708
06.09.2021,CHILDREN AND FAMILIES,GOLDSMITHS COLLEGE,670,PRACTICE EDUCATION,TRAINING,5902485360,1000083164
06.09.2021,CHILDREN AND FAMILIES,BARNARDOS SERVICES LTD,664.29,SEMI-IND CARELEAVERS,EXTERNAL AGENCIES AND BODIES,2103315213,1000063730
06.09.2021,CHILDREN AND FAMILIES,NETPEX LTD CORPORATE SERVICES,"1,160.77",SEMI-IND CARELEAVERS,EXTERNAL AGENCIES AND BODIES,2103315215,1000076073
06.09.2021,CHILDREN AND FAMILIES,NETPEX LTD CORPORATE SERVICES,"2,546.40",SEMI-IND CARELEAVERS,EXTERNAL AGENCIES AND BODIES,2103315217,1000076073
06.09.2021,CHILDREN AND FAMILIES,NETPEX LTD CORPORATE SERVICES,"2,635.00",SEMI-IND CARELEAVERS,EXTERNAL AGENCIES AND BODIES,2103315214,1000076073
06.09.2021,CHILDREN AND FAMILIES,NETPEX LTD CORPORATE SERVICES,"2,657.13",SEMI-IND CARELEAVERS,EXTERNAL AGENCIES AND BODIES,2103315216,1000076073
06.09.2021,CHILDREN AND FAMILIES,NETPEX LTD CORPORATE SERVICES,"4,207.32",SEMI-IND CARELEAVERS,EXTERNAL AGENCIES AND BODIES,2103315220,1000076073
06.09.2021,CHILDREN AND FAMILIES,SYDNEY CARE LTD,"5,314.28",SEMI-IND CARELEAVERS,EXTERNAL AGENCIES AND BODIES,2103315212,1000081598
06.09.2021,CHILDREN AND FAMILIES,NETPEX LTD CORPORATE SERVICES,300,SEMI-IND CARELEAVERS,OTHER PAYMENTS FOR CLIENTS,2103315211,1000076073
06.09.2021,CHILDREN AND FAMILIES,STEP AHEAD SERVICES LTD,"20,194.29",SEMI-IND LAC 16-17,EXTERNAL AGENCIES AND BODIES,2103315245,1000036544
06.09.2021,CHILDREN AND FAMILIES,SYDNEY CARE LTD,"7,612.71",SEMI-IND LAC 16-17,EXTERNAL AGENCIES AND BODIES,2103315206,1000081598
06.09.2021,CHILDREN AND FAMILIES,HIGHER LEVEL CARE LTD,"5,336.65",SEMI-IND LAC 16-17,EXTERNAL AGENCIES AND BODIES,2103315210,1000087055
06.09.2021,CHILDREN AND FAMILIES,STEP AHEAD SERVICES LTD,310,SEMI-IND LAC 16-17,OTHER PAYMENTS FOR CLIENTS,2103315246,1000036544
06.09.2021,CHILDREN AND FAMILIES,SYDNEY CARE LTD,310,SEMI-IND LAC 16-17,OTHER PAYMENTS FOR CLIENTS,2103315207,1000081598
06.09.2021,CHILDREN AND FAMILIES,DR SAIMA LATIF LTD,702,SFS MGMT & SUPPORT,LEGAL FEES & COURT COSTS,2103314860,1000086863
06.09.2021,CHILDREN AND FAMILIES,DR SAIMA LATIF LTD,710.9,SFS MGMT & SUPPORT,LEGAL FEES & COURT COSTS,2103314859,1000086863
06.09.2021,CHILDREN AND FAMILIES,DR SAIMA LATIF LTD,780,SFS MGMT & SUPPORT,LEGAL FEES & COURT COSTS,2103314861,1000086863
06.09.2021,CHILDREN AND FAMILIES,EMILY VERITY,500,SFS MGMT & SUPPORT,LEGAL FEES & COURT COSTS,2103314864,1000047317
06.09.2021,CHILDREN AND FAMILIES,OLIVER MILLINGTON,500,SFS MGMT & SUPPORT,LEGAL FEES & COURT COSTS,2103314877,1000051055
06.09.2021,CHILDREN AND FAMILIES,KATE LAMONT,750,SFS MGMT & SUPPORT,LEGAL FEES & COURT COSTS,2103314866,1000064216
06.09.2021,CHILDREN AND FAMILIES,KATE LAMONT,750,SFS MGMT & SUPPORT,LEGAL FEES & COURT COSTS,2103314868,1000064216
06.09.2021,CHILDREN AND FAMILIES,KATE LAMONT,750,SFS MGMT & SUPPORT,LEGAL FEES & COURT COSTS,2103314872,1000064216
06.09.2021,CHILDREN AND FAMILIES,MATTHEW STOTT,465,SFS MGMT & SUPPORT,LEGAL FEES & COURT COSTS,2103314876,1000068749
06.09.2021,CHILDREN AND FAMILIES,BEN ZURAWEL,575,SFS MGMT & SUPPORT,LEGAL FEES & COURT COSTS,2103314857,1000069468
06.09.2021,CHILDREN AND FAMILIES,WILLIAM DEAN,500,SFS MGMT & SUPPORT,LEGAL FEES & COURT COSTS,2103314885,1000070780
06.09.2021,CHILDREN AND FAMILIES,SARAH HUNWICK,575,SFS MGMT & SUPPORT,LEGAL FEES & COURT COSTS,2103314878,1000073789
06.09.2021,CHILDREN AND FAMILIES,LAURA HIBBERD,360,SFS MGMT & SUPPORT,LEGAL FEES & COURT COSTS,2103314873,1000076749
06.09.2021,CHILDREN AND FAMILIES,LAURA HIBBERD,575,SFS MGMT & SUPPORT,LEGAL FEES & COURT COSTS,2103314875,1000076749
06.09.2021,CHILDREN AND FAMILIES,THEODORE BUNCE,350,SFS MGMT & SUPPORT,LEGAL FEES & COURT COSTS,2103314884,1000085585
06.09.2021,CHILDREN AND FAMILIES,THEODORE BUNCE,600,SFS MGMT & SUPPORT,LEGAL FEES & COURT COSTS,2103314883,1000085585
06.09.2021,CHILDREN AND FAMILIES,ANCHOR FOSTERCARE,"3,856.71",STAYPUT- FOST CARERS,EXTERNAL AGENCIES AND BODIES,2103315218,1000065675
06.09.2021,CHILDREN AND FAMILIES,CORAL SUPPORT AND CRISIS INTERVENTION SERVICE,"5,269.80",TEAM C,OTHER PAYMENTS FOR CLIENTS,5902485127,1000081529
06.09.2021,CHILDREN AND FAMILIES,STEP AHEAD SERVICES LTD,"2,125.71",UASC CARELEAVERS,EXTERNAL AGENCIES AND BODIES,2103315241,1000036544
06.09.2021,CHILDREN AND FAMILIES,PURPLE PEBBLES(CHILD CARE) SERVICES,"1,746.43",UASC CARELEAVERS,EXTERNAL AGENCIES AND BODIES,2103315240,1000070705
06.09.2021,CHILDREN AND FAMILIES,NETPEX LTD CORPORATE SERVICES,"2,170.00",UASC CARELEAVERS,EXTERNAL AGENCIES AND BODIES,2103315219,1000076073
06.09.2021,CHILDREN AND FAMILIES,SP HOMES LTD,"2,094.98",UASC CARELEAVERS,EXTERNAL AGENCIES AND BODIES,2103315243,1000080326
06.09.2021,CHILDREN AND FAMILIES,STEP AHEAD SERVICES LTD,350,UASC CARELEAVERS,OTHER PAYMENTS FOR CLIENTS,2103315242,1000036544
06.09.2021,CHILDREN AND FAMILIES,PURPLE PEBBLES(CHILD CARE) SERVICES,280,UASC CARELEAVERS,OTHER PAYMENTS FOR CLIENTS,2103315239,1000070705
06.09.2021,CHILDREN AND FAMILIES,PURPLE PEBBLES(CHILD CARE) SERVICES,280,UASC CARELEAVERS,OTHER PAYMENTS FOR CLIENTS,2103315244,1000070705
06.09.2021,CHILDREN AND FAMILIES,EPIC CARE HOME LTD,"3,808.58",UASC LAC 16-17,EXTERNAL AGENCIES AND BODIES,2103315208,1000084192
06.09.2021,CHILDREN AND FAMILIES,EPIC CARE HOME LTD,265.71,UASC LAC 16-17,OTHER PAYMENTS FOR CLIENTS,2103315209,1000084192
06.09.2021,COMMUNITIES,PECKHAM & NUNHEAD FREE FILM FESTIVAL,"5,200.00",EAST CENTRAL,GRANTS,5902485272,1000077718
06.09.2021,CUSTOMER EXPERIENCE HGF,VALTECH LTD,350.9,BLUE BADGES,MATERIALS,5902485344,1000082245
06.09.2021,CUSTOMER EXPERIENCE HGF,OFFICE DEPOT UK LTD,328,REGISTRARS,STATIONERY,5902485301,1109426
06.09.2021,EDUCATION,BETHLEM & MAUDSLEY HOSPITAL SCHOOL,"2,000.00",MENTAL HEALTH AND RESILIENCE,CONSULTANTS SERVICES,2103315249,5001000010
06.09.2021,EDUCATION,ST JOSEPHS RC JUNIOR  SCHOOL,"2,000.00",MENTAL HEALTH AND RESILIENCE,CONSULTANTS SERVICES,2103315250,5001000017
06.09.2021,ENVIRONMENT AND LEISURE,ROGER MEARS ARCHITECTS LLP,475,CAPITAL PS (LEISURE),CONSTRUCTION FEES  - EXTERNAL,5902485198,1000085548
06.09.2021,ENVIRONMENT AND LEISURE,ROGER MEARS ARCHITECTS LLP,"1,200.00",CAPITAL PS (LEISURE),CONSTRUCTION FEES  - EXTERNAL,5902485198,1000085548
06.09.2021,ENVIRONMENT DIRECTORATE,SOUTHWARK NEWSPAPER LTD,312,SECTION 278 & 38,LEGAL FEES & COURT COSTS,2103314881,1556957
06.09.2021,ENVIRONMENT DIRECTORATE,SOUTHWARK NEWSPAPER LTD,360,SECTION 278 & 38,LEGAL FEES & COURT COSTS,2103314880,1556957
06.09.2021,ENVIRONMENT DIRECTORATE,SOUTHWARK NEWSPAPER LTD,468,SECTION 278 & 38,LEGAL FEES & COURT COSTS,2103314879,1556957
06.09.2021,ENVIRONMENT DIRECTORATE,SOUTHWARK NEWSPAPER LTD,300,SECTION 278 & 38,MARKETING & PUBLICITY SERVICES,5902485228,1556957
06.09.2021,ENVIRONMENT DIRECTORATE,SOUTHWARK NEWSPAPER LTD,336,SECTION 278 & 38,MARKETING & PUBLICITY SERVICES,5902485227,1556957
06.09.2021,ENVIRONMENT DIRECTORATE,SOUTHWARK NEWSPAPER LTD,360,SECTION 278 & 38,MARKETING & PUBLICITY SERVICES,5902485229,1556957
06.09.2021,ENVIRONMENT DIRECTORATE,SOUTHWARK NEWSPAPER LTD,396,SECTION 278 & 38,MARKETING & PUBLICITY SERVICES,5902485230,1556957
06.09.2021,ENVIRONMENT DIRECTORATE,METIS CONSULTANTS LIMITED,"11,645.48",SECTION 278 & 38,OTHER CONTRACTORS,5902485299,1000086330
06.09.2021,ENVIRONMENT DIRECTORATE,GLASDON UK LIMITED,"3,231.72",STREET CLEANING-GENERAL,MATERIALS,5902484827,1024073
06.09.2021,F & C S EXCLUDING CORPORATE BUDGETS,NEC SOFTWARE SOLUTIONS UK LTD,310.59,ADMINISTRATIVE SUPPORT,POSTAGES,5902485219,1000087043
06.09.2021,F & C S EXCLUDING CORPORATE BUDGETS,NEC SOFTWARE SOLUTIONS UK LTD,"9,000.00",ADMINISTRATIVE SUPPORT,POSTAGES,5902485258,1000087043
06.09.2021,F & C S EXCLUDING CORPORATE BUDGETS,NEC SOFTWARE SOLUTIONS UK LTD,"30,000.00",ADMINISTRATIVE SUPPORT,POSTAGES,5902485258,1000087043
06.09.2021,HOUSING,BRIDGEWATER ROOFING CONTRACTORS LTD,"132,681.19",BRC,I-WORLD CONTRACTORS HOLDING ACCOUNT,2103315254,3000001482
06.09.2021,HOUSING,GUIDELINE LIFT SERVICES LTD,"53,148.59",GUIDELINE,I-WORLD CONTRACTORS HOLDING ACCOUNT,5902485303,1000064176
06.09.2021,HOUSING,GUIDELINE LIFT SERVICES LTD,"57,855.72",GUIDELINE,I-WORLD CONTRACTORS HOLDING ACCOUNT,5902485306,1000064176
06.09.2021,HOUSING HRA,C&C BUILDERS LTD,"6,661.25",CAPITAL PS (HRA),CONST'N MAIN CONTRACT - NON CERTIFICATED,2103315255,3000001986
06.09.2021,HOUSING HRA,C&C BUILDERS LTD,"9,385.28",CAPITAL PS (HRA),CONST'N MAIN CONTRACT - NON CERTIFICATED,2103315253,3000001986
06.09.2021,HOUSING HRA,GC CONSTRUCT LTD,"40,632.54",CAPITAL PS (HRA),CONSTRUCTION,2103315256,3000002106
06.09.2021,HOUSING HRA,LANE & FRANKHAM LTD,"4,075.00",CAPITAL PS (HRA),CONSTRUCTION FEES - ARCHITECT,5902485041,1000081512
06.09.2021,HOUSING HRA,GATTI ROUTH RHODES LTD,"14,584.48",CAPITAL PS (HRA),CONSTRUCTION FEES - ARCHITECT,5902485259,1000086968
06.09.2021,HOUSING HRA,GATTI ROUTH RHODES LTD,"16,011.12",CAPITAL PS (HRA),CONSTRUCTION FEES - ARCHITECT,5902485257,1000086968
06.09.2021,HOUSING HRA,GATTI ROUTH RHODES LTD,"22,679.20",CAPITAL PS (HRA),CONSTRUCTION FEES - ARCHITECT,5902485255,1000086968
06.09.2021,HOUSING HRA,MARTIN ARNOLD LTD,"2,695.00",CAPITAL PS (HRA),CONSTRUCTION FEES - EMPLOYERS AGENT,5902484837,1000076993
06.09.2021,HOUSING HRA,VITAL ENERGI UTILITIES LTD,"191,698.44",CAPITAL PS (HRA),CONSTRUCTION MAIN CONTRACT -CERTIFICATED,2103315251,3000001040
06.09.2021,HOUSING HRA,HOARE LEA CONSULTING ENGINEERS,"2,965.82",CAPITAL PS (REGEN),CONSTRUCTION FEES  - EXTERNAL,5902484609,1000056233
06.09.2021,LEISURE DIRECTORATE,ANIMA YOUTH CIC,"2,400.00",GRANTS COMMISSIONING,GRANTS,5902485015,1000083977
06.09.2021,NEW BUILD,WEBB YATES ENGINEERS LTD,"4,050.00",DEVELOPMENT DELIVERY,PROFESSIONAL FEES,5902484819,1000085861
06.09.2021,PLANNING AND TRANSPORT,SOUTHWARK NEWSPAPER LTD,336,DEV MGT ADMIN & INCOME,MARKETING & PUBLICITY SERVICES,5902485237,1556957
06.09.2021,PLANNING AND TRANSPORT,SOUTHWARK NEWSPAPER LTD,504,DEV MGT ADMIN & INCOME,MARKETING & PUBLICITY SERVICES,5902485238,1556957
06.09.2021,PLANNING AND TRANSPORT,SOUTHWARK NEWSPAPER LTD,504,DEV MGT ADMIN & INCOME,MARKETING & PUBLICITY SERVICES,5902485239,1556957
06.09.2021,RESIDENT SERVICES HGF,OMNIA HOUSING LTD,"2,033.72",HOMELESS PROJECTS,GRANTS,5902485236,1000083861
06.09.2021,RESIDENT SERVICES HGF,LONDON ACCOMMODATION 4U LTD,"1,196.50",HOMELESS PROJECTS,GRANTS,5902485231,1000086500
06.09.2021,RESIDENT SERVICES HGF,CYRIL  JONES,"1,940.00",HOMELESS PROJECTS,GRANTS,5902485226,1000086941
06.09.2021,RESIDENT SERVICES HGF,CITYGLEN LTD,270,NIGHTLY TA (NSC),EXTERNAL AGENCIES AND BODIES,5902485295,1000026239
06.09.2021,RESIDENT SERVICES HGF,CITYGLEN LTD,"38,523.00",NIGHTLY TA (NSC),EXTERNAL AGENCIES AND BODIES,5902485256,1000026239
06.09.2021,RESIDENT SERVICES HGF,SHUTTLEWORTH (UK) LTD,"16,785.00",NIGHTLY TA (NSC),EXTERNAL AGENCIES AND BODIES,5902485282,1000056468
06.09.2021,RESIDENT SERVICES HGF,GOLDSTONE ESTATES LTD,"1,015.00",NIGHTLY TA (NSC),EXTERNAL AGENCIES AND BODIES,5902485262,1000076548
06.09.2021,RESIDENT SERVICES HGF,APEX HOUSING SOLUTIONS LTD,603,NIGHTLY TA (NSC),EXTERNAL AGENCIES AND BODIES,5902485241,1000079786
06.09.2021,RESIDENT SERVICES HGF,APEX HOUSING SOLUTIONS LTD,"102,214.90",NIGHTLY TA (NSC),EXTERNAL AGENCIES AND BODIES,5902485240,1000079786
06.09.2021,RESIDENT SERVICES HGF,GOLDSTONE ESTATES LTD,875,RAPID REHOUSING,EXTERNAL AGENCIES AND BODIES,5902485218,1000076548
06.09.2021,RESIDENT SERVICES HGF,AMT PROPERTY LTD,"2,192.28",RAPID REHOUSING,GRANTS,5902485291,1000084257
06.09.2021,RESIDENT SERVICES HGF,AMT PROPERTY LTD,"3,175.12",RAPID REHOUSING,GRANTS,5902485281,1000084257
06.09.2021,RESIDENT SERVICES HGF,CHRIS ANTHONY ESTATES,"3,380.36",RAPID REHOUSING,GRANTS,5902485284,1000086346
07.09.2021,ADULT SOCIAL CARE,BEVAN BRITTAN LLP,329.8, LD MGMT & SUPPORT,LEGAL FEES & COURT COSTS,5902485396,1000047779
07.09.2021,ADULT SOCIAL CARE,BEVAN BRITTAN LLP,"2,905.70", LD MGMT & SUPPORT,LEGAL FEES & COURT COSTS,5902485396,1000047779
07.09.2021,ADULT SOCIAL CARE,SAFFRONLAND HOMES,"1,165.17",DIR OF ASC,EXTERNAL AGENCIES AND BODIES,5902485387,11172608
07.09.2021,ADULT SOCIAL CARE,THAMES HOMECARE SERVICE LTD,379.08,DISCHARGE TO ACCESS,HOMECARE - C&V,2103315403,1000079295
07.09.2021,ADULT SOCIAL CARE,THAMES HOMECARE SERVICE LTD,692.64,DISCHARGE TO ACCESS,HOMECARE - C&V,2103315482,1000079295
07.09.2021,ADULT SOCIAL CARE,THAMES HOMECARE SERVICE LTD,308.88,DISCHARGE TO ACCESS,HOMECARE - SPOT,2103315470,1000079295
07.09.2021,ADULT SOCIAL CARE,THAMES HOMECARE SERVICE LTD,655.2,DISCHARGE TO ACCESS,HOMECARE - SPOT,2103315394,1000079295
07.09.2021,ADULT SOCIAL CARE,THAMES HOMECARE SERVICE LTD,262.08,LD LTS 18-64,HOMECARE - SPOT,2103315406,1000079295
07.09.2021,ADULT SOCIAL CARE,CHOICE SUPPORT,881.76,LD LTS 18-64,SUPPORTED LIVING,2103315521,1104183
07.09.2021,ADULT SOCIAL CARE,CONTACT PROFESSIONALS,684,LD LTS 18-64,SUPPORTED LIVING,2103315513,1000057263
07.09.2021,ADULT SOCIAL CARE,CONTACT PROFESSIONALS,912,LD LTS 18-64,SUPPORTED LIVING,2103315512,1000057263
07.09.2021,ADULT SOCIAL CARE,KEMKARE LTD,280,LD LTS 18-64,SUPPORTED LIVING,2103315510,1000084181
07.09.2021,ADULT SOCIAL CARE,KEMKARE LTD,330,LD LTS 18-64,SUPPORTED LIVING,2103315517,1000084181
07.09.2021,ADULT SOCIAL CARE,KEMKARE LTD,420,LD LTS 18-64,SUPPORTED LIVING,2103315520,1000084181
07.09.2021,ADULT SOCIAL CARE,KEMKARE LTD,490,LD LTS 18-64,SUPPORTED LIVING,2103315509,1000084181
07.09.2021,ADULT SOCIAL CARE,KEMKARE LTD,490,LD LTS 18-64,SUPPORTED LIVING,2103315519,1000084181
07.09.2021,ADULT SOCIAL CARE,KEMKARE LTD,560,LD LTS 18-64,SUPPORTED LIVING,2103315518,1000084181
07.09.2021,ADULT SOCIAL CARE,KEMKARE LTD,714,LD LTS 18-64,SUPPORTED LIVING,2103315516,1000084181
07.09.2021,ADULT SOCIAL CARE,KEMKARE LTD,792,LD LTS 18-64,SUPPORTED LIVING,2103315515,1000084181
07.09.2021,ADULT SOCIAL CARE,REDACTED PERSONAL DATA,"3,682.28",LD LTS 18-64,SUPPORTED LIVING,REDACTED,REDACTED
07.09.2021,ADULT SOCIAL CARE,REDACTED PERSONAL DATA,"3,682.28",LD LTS 18-64,SUPPORTED LIVING,REDACTED,REDACTED
07.09.2021,ADULT SOCIAL CARE,THAMES HOMECARE SERVICE LTD,655.2,LD STS 18-64,HOMECARE - IC,2103315407,1000079295
07.09.2021,ADULT SOCIAL CARE,THAMES HOMECARE SERVICE LTD,655.2,MEM LTS 65+,HOMECARE - SPOT,2103315431,1000079295
07.09.2021,ADULT SOCIAL CARE,THAMES HOMECARE SERVICE LTD,486.72,MH LTS 65+,HOMECARE - SPOT,2103315421,1000079295
07.09.2021,ADULT SOCIAL CARE,KEMKARE LTD,"2,072.00",MH LTS 65+,SUPPORTED LIVING,2103315511,1000084181
07.09.2021,ADULT SOCIAL CARE,BUDDI LTD,594,PHY LTS 18-64,EQUIPMENT PURCHASE & REPAIR,2103315507,1000067243
07.09.2021,ADULT SOCIAL CARE,THAMES HOMECARE SERVICE LTD,266.76,PHY LTS 18-64,HOMECARE - SPOT,2103315434,1000079295
07.09.2021,ADULT SOCIAL CARE,THAMES HOMECARE SERVICE LTD,294.84,PHY LTS 18-64,HOMECARE - SPOT,2103315413,1000079295
07.09.2021,ADULT SOCIAL CARE,THAMES HOMECARE SERVICE LTD,360.36,PHY LTS 18-64,HOMECARE - SPOT,2103315487,1000079295
07.09.2021,ADULT SOCIAL CARE,THAMES HOMECARE SERVICE LTD,374.4,PHY LTS 18-64,HOMECARE - SPOT,2103315433,1000079295
07.09.2021,ADULT SOCIAL CARE,THAMES HOMECARE SERVICE LTD,397.8,PHY LTS 18-64,HOMECARE - SPOT,2103315471,1000079295
07.09.2021,ADULT SOCIAL CARE,THAMES HOMECARE SERVICE LTD,589.68,PHY LTS 18-64,HOMECARE - SPOT,2103315453,1000079295
07.09.2021,ADULT SOCIAL CARE,THAMES HOMECARE SERVICE LTD,589.68,PHY LTS 18-64,HOMECARE - SPOT,2103315476,1000079295
07.09.2021,ADULT SOCIAL CARE,THAMES HOMECARE SERVICE LTD,589.68,PHY LTS 18-64,HOMECARE - SPOT,2103315496,1000079295
07.09.2021,ADULT SOCIAL CARE,THAMES HOMECARE SERVICE LTD,655.2,PHY LTS 18-64,HOMECARE - SPOT,2103315457,1000079295
07.09.2021,ADULT SOCIAL CARE,THAMES HOMECARE SERVICE LTD,669.24,PHY LTS 18-64,HOMECARE - SPOT,2103315440,1000079295
07.09.2021,ADULT SOCIAL CARE,THAMES HOMECARE SERVICE LTD,673.92,PHY LTS 18-64,HOMECARE - SPOT,2103315417,1000079295
07.09.2021,ADULT SOCIAL CARE,THAMES HOMECARE SERVICE LTD,720.72,PHY LTS 18-64,HOMECARE - SPOT,2103315401,1000079295
07.09.2021,ADULT SOCIAL CARE,THAMES HOMECARE SERVICE LTD,851.76,PHY LTS 18-64,HOMECARE - SPOT,2103315429,1000079295
07.09.2021,ADULT SOCIAL CARE,THAMES HOMECARE SERVICE LTD,870.48,PHY LTS 18-64,HOMECARE - SPOT,2103315410,1000079295
07.09.2021,ADULT SOCIAL CARE,THAMES HOMECARE SERVICE LTD,332.28,PHY LTS 65+,HOMECARE - C&V,2103315430,1000079295
07.09.2021,ADULT SOCIAL CARE,THAMES HOMECARE SERVICE LTD,393.12,PHY LTS 65+,HOMECARE - C&V,2103315387,1000079295
07.09.2021,ADULT SOCIAL CARE,THAMES HOMECARE SERVICE LTD,257.4,PHY LTS 65+,HOMECARE - SPOT,2103315395,1000079295
07.09.2021,ADULT SOCIAL CARE,THAMES HOMECARE SERVICE LTD,262.08,PHY LTS 65+,HOMECARE - SPOT,2103315409,1000079295
07.09.2021,ADULT SOCIAL CARE,THAMES HOMECARE SERVICE LTD,262.08,PHY LTS 65+,HOMECARE - SPOT,2103315424,1000079295
07.09.2021,ADULT SOCIAL CARE,THAMES HOMECARE SERVICE LTD,276.12,PHY LTS 65+,HOMECARE - SPOT,2103315414,1000079295
07.09.2021,ADULT SOCIAL CARE,THAMES HOMECARE SERVICE LTD,280.8,PHY LTS 65+,HOMECARE - SPOT,2103315465,1000079295
07.09.2021,ADULT SOCIAL CARE,THAMES HOMECARE SERVICE LTD,280.8,PHY LTS 65+,HOMECARE - SPOT,2103315501,1000079295
07.09.2021,ADULT SOCIAL CARE,THAMES HOMECARE SERVICE LTD,294.84,PHY LTS 65+,HOMECARE - SPOT,2103315385,1000079295
07.09.2021,ADULT SOCIAL CARE,THAMES HOMECARE SERVICE LTD,294.84,PHY LTS 65+,HOMECARE - SPOT,2103315416,1000079295
07.09.2021,ADULT SOCIAL CARE,THAMES HOMECARE SERVICE LTD,294.84,PHY LTS 65+,HOMECARE - SPOT,2103315443,1000079295
07.09.2021,ADULT SOCIAL CARE,THAMES HOMECARE SERVICE LTD,294.84,PHY LTS 65+,HOMECARE - SPOT,2103315505,1000079295
07.09.2021,ADULT SOCIAL CARE,THAMES HOMECARE SERVICE LTD,299.52,PHY LTS 65+,HOMECARE - SPOT,2103315452,1000079295
07.09.2021,ADULT SOCIAL CARE,THAMES HOMECARE SERVICE LTD,313.56,PHY LTS 65+,HOMECARE - SPOT,2103315427,1000079295
07.09.2021,ADULT SOCIAL CARE,THAMES HOMECARE SERVICE LTD,313.56,PHY LTS 65+,HOMECARE - SPOT,2103315469,1000079295
07.09.2021,ADULT SOCIAL CARE,THAMES HOMECARE SERVICE LTD,332.28,PHY LTS 65+,HOMECARE - SPOT,2103315412,1000079295
07.09.2021,ADULT SOCIAL CARE,THAMES HOMECARE SERVICE LTD,332.28,PHY LTS 65+,HOMECARE - SPOT,2103315444,1000079295
07.09.2021,ADULT SOCIAL CARE,THAMES HOMECARE SERVICE LTD,346.32,PHY LTS 65+,HOMECARE - SPOT,2103315426,1000079295
07.09.2021,ADULT SOCIAL CARE,THAMES HOMECARE SERVICE LTD,355.68,PHY LTS 65+,HOMECARE - SPOT,2103315399,1000079295
07.09.2021,ADULT SOCIAL CARE,THAMES HOMECARE SERVICE LTD,360.36,PHY LTS 65+,HOMECARE - SPOT,2103315503,1000079295
07.09.2021,ADULT SOCIAL CARE,THAMES HOMECARE SERVICE LTD,416.52,PHY LTS 65+,HOMECARE - SPOT,2103315467,1000079295
07.09.2021,ADULT SOCIAL CARE,THAMES HOMECARE SERVICE LTD,486.72,PHY LTS 65+,HOMECARE - SPOT,2103315428,1000079295
07.09.2021,ADULT SOCIAL CARE,THAMES HOMECARE SERVICE LTD,505.44,PHY LTS 65+,HOMECARE - SPOT,2103315405,1000079295
07.09.2021,ADULT SOCIAL CARE,THAMES HOMECARE SERVICE LTD,524.16,PHY LTS 65+,HOMECARE - SPOT,2103315423,1000079295
07.09.2021,ADULT SOCIAL CARE,THAMES HOMECARE SERVICE LTD,589.68,PHY LTS 65+,HOMECARE - SPOT,2103315418,1000079295
07.09.2021,ADULT SOCIAL CARE,THAMES HOMECARE SERVICE LTD,589.68,PHY LTS 65+,HOMECARE - SPOT,2103315455,1000079295
07.09.2021,ADULT SOCIAL CARE,THAMES HOMECARE SERVICE LTD,589.68,PHY LTS 65+,HOMECARE - SPOT,2103315493,1000079295
07.09.2021,ADULT SOCIAL CARE,THAMES HOMECARE SERVICE LTD,599.04,PHY LTS 65+,HOMECARE - SPOT,2103315439,1000079295
07.09.2021,ADULT SOCIAL CARE,THAMES HOMECARE SERVICE LTD,617.76,PHY LTS 65+,HOMECARE - SPOT,2103315396,1000079295
07.09.2021,ADULT SOCIAL CARE,THAMES HOMECARE SERVICE LTD,617.76,PHY LTS 65+,HOMECARE - SPOT,2103315473,1000079295
07.09.2021,ADULT SOCIAL CARE,THAMES HOMECARE SERVICE LTD,627.12,PHY LTS 65+,HOMECARE - SPOT,2103315390,1000079295
07.09.2021,ADULT SOCIAL CARE,THAMES HOMECARE SERVICE LTD,655.2,PHY LTS 65+,HOMECARE - SPOT,2103315400,1000079295
07.09.2021,ADULT SOCIAL CARE,THAMES HOMECARE SERVICE LTD,659.88,PHY LTS 65+,HOMECARE - SPOT,2103315506,1000079295
07.09.2021,ADULT SOCIAL CARE,THAMES HOMECARE SERVICE LTD,664.56,PHY LTS 65+,HOMECARE - SPOT,2103315437,1000079295
07.09.2021,ADULT SOCIAL CARE,THAMES HOMECARE SERVICE LTD,683.28,PHY LTS 65+,HOMECARE - SPOT,2103315408,1000079295
07.09.2021,ADULT SOCIAL CARE,THAMES HOMECARE SERVICE LTD,692.64,PHY LTS 65+,HOMECARE - SPOT,2103315461,1000079295
07.09.2021,ADULT SOCIAL CARE,THAMES HOMECARE SERVICE LTD,692.64,PHY LTS 65+,HOMECARE - SPOT,2103315475,1000079295
07.09.2021,ADULT SOCIAL CARE,THAMES HOMECARE SERVICE LTD,720.72,PHY LTS 65+,HOMECARE - SPOT,2103315411,1000079295
07.09.2021,ADULT SOCIAL CARE,THAMES HOMECARE SERVICE LTD,758.16,PHY LTS 65+,HOMECARE - SPOT,2103315502,1000079295
07.09.2021,ADULT SOCIAL CARE,THAMES HOMECARE SERVICE LTD,786.24,PHY LTS 65+,HOMECARE - SPOT,2103315468,1000079295
07.09.2021,ADULT SOCIAL CARE,THAMES HOMECARE SERVICE LTD,786.24,PHY LTS 65+,HOMECARE - SPOT,2103315477,1000079295
07.09.2021,ADULT SOCIAL CARE,THAMES HOMECARE SERVICE LTD,804.96,PHY LTS 65+,HOMECARE - SPOT,2103315474,1000079295
07.09.2021,ADULT SOCIAL CARE,THAMES HOMECARE SERVICE LTD,851.76,PHY LTS 65+,HOMECARE - SPOT,2103315404,1000079295
07.09.2021,ADULT SOCIAL CARE,THAMES HOMECARE SERVICE LTD,865.8,PHY LTS 65+,HOMECARE - SPOT,2103315415,1000079295
07.09.2021,ADULT SOCIAL CARE,THAMES HOMECARE SERVICE LTD,936,PHY LTS 65+,HOMECARE - SPOT,2103315456,1000079295
07.09.2021,ADULT SOCIAL CARE,THAMES HOMECARE SERVICE LTD,"1,076.40",PHY LTS 65+,HOMECARE - SPOT,2103315499,1000079295
07.09.2021,ADULT SOCIAL CARE,SERVESOUL LTD,250.35,PHY LTS 65+,HOMECARE - SPOT,2103315368,1000081503
07.09.2021,ADULT SOCIAL CARE,SERVESOUL LTD,265.04,PHY LTS 65+,HOMECARE - SPOT,2103315373,1000081503
07.09.2021,ADULT SOCIAL CARE,SERVESOUL LTD,325.46,PHY LTS 65+,HOMECARE - SPOT,2103315374,1000081503
07.09.2021,ADULT SOCIAL CARE,SERVESOUL LTD,425.6,PHY LTS 65+,HOMECARE - SPOT,2103315382,1000081503
07.09.2021,ADULT SOCIAL CARE,SERVESOUL LTD,425.6,PHY LTS 65+,HOMECARE - SPOT,2103315383,1000081503
07.09.2021,ADULT SOCIAL CARE,SERVESOUL LTD,650.91,PHY LTS 65+,HOMECARE - SPOT,2103315381,1000081503
07.09.2021,ADULT SOCIAL CARE,SERVESOUL LTD,671.77,PHY LTS 65+,HOMECARE - SPOT,2103315367,1000081503
07.09.2021,ADULT SOCIAL CARE,THAMES HOMECARE SERVICE LTD,332.28,PHY STS 18-64,HOMECARE - IC,2103315449,1000079295
07.09.2021,ADULT SOCIAL CARE,THAMES HOMECARE SERVICE LTD,449.28,PHY STS 18-64,HOMECARE - IC,2103315497,1000079295
07.09.2021,ADULT SOCIAL CARE,THAMES HOMECARE SERVICE LTD,294.84,PHY STS 65+,HOMECARE - IC,2103315451,1000079295
07.09.2021,ADULT SOCIAL CARE,THAMES HOMECARE SERVICE LTD,294.84,PHY STS 65+,HOMECARE - IC,2103315483,1000079295
07.09.2021,ADULT SOCIAL CARE,THAMES HOMECARE SERVICE LTD,294.84,PHY STS 65+,HOMECARE - IC,2103315504,1000079295
07.09.2021,ADULT SOCIAL CARE,THAMES HOMECARE SERVICE LTD,393.12,PHY STS 65+,HOMECARE - IC,2103315489,1000079295
07.09.2021,ADULT SOCIAL CARE,THAMES HOMECARE SERVICE LTD,561.6,PHY STS 65+,HOMECARE - IC,2103315466,1000079295
07.09.2021,ADULT SOCIAL CARE,THAMES HOMECARE SERVICE LTD,589.68,PHY STS 65+,HOMECARE - IC,2103315494,1000079295
07.09.2021,ADULT SOCIAL CARE,THAMES HOMECARE SERVICE LTD,313.56,SEN LTS 65+,HOMECARE - SPOT,2103315436,1000079295
07.09.2021,ADULT SOCIAL CARE,THAMES HOMECARE SERVICE LTD,327.6,SOCIAL ISOLATION,HOMECARE - IC,2103315464,1000079295
07.09.2021,ADULT SOCIAL CARE,CONTACT PROFESSIONALS,380,SPECIALIST CARE,OTHER PAYMENTS FOR CLIENTS,2103315334,1000057263
07.09.2021,ADULT SOCIAL CARE,CONTACT PROFESSIONALS,380,SPECIALIST CARE,OTHER PAYMENTS FOR CLIENTS,2103315361,1000057263
07.09.2021,ADULT SOCIAL CARE,CONTACT PROFESSIONALS,285,SPECIALIST CARE,SECTION 17 PAYMENTS TO AGENCIES/CARERS,2103315340,1000057263
07.09.2021,ADULT SOCIAL CARE,CONTACT PROFESSIONALS,285,SPECIALIST CARE,SECTION 17 PAYMENTS TO AGENCIES/CARERS,2103315351,1000057263
07.09.2021,ADULT SOCIAL CARE,CONTACT PROFESSIONALS,285,SPECIALIST CARE,SECTION 17 PAYMENTS TO AGENCIES/CARERS,2103315359,1000057263
07.09.2021,ADULT SOCIAL CARE,CONTACT PROFESSIONALS,323,SPECIALIST CARE,SECTION 17 PAYMENTS TO AGENCIES/CARERS,2103315348,1000057263
07.09.2021,ADULT SOCIAL CARE,CONTACT PROFESSIONALS,342,SPECIALIST CARE,SECTION 17 PAYMENTS TO AGENCIES/CARERS,2103315310,1000057263
07.09.2021,ADULT SOCIAL CARE,CONTACT PROFESSIONALS,342,SPECIALIST CARE,SECTION 17 PAYMENTS TO AGENCIES/CARERS,2103315330,1000057263
07.09.2021,ADULT SOCIAL CARE,CONTACT PROFESSIONALS,361,SPECIALIST CARE,SECTION 17 PAYMENTS TO AGENCIES/CARERS,2103315328,1000057263
07.09.2021,ADULT SOCIAL CARE,CONTACT PROFESSIONALS,380,SPECIALIST CARE,SECTION 17 PAYMENTS TO AGENCIES/CARERS,2103315320,1000057263
07.09.2021,ADULT SOCIAL CARE,CONTACT PROFESSIONALS,380,SPECIALIST CARE,SECTION 17 PAYMENTS TO AGENCIES/CARERS,2103315349,1000057263
07.09.2021,ADULT SOCIAL CARE,CONTACT PROFESSIONALS,798,SPECIALIST CARE,SECTION 17 PAYMENTS TO AGENCIES/CARERS,2103315319,1000057263
07.09.2021,ADULT SOCIAL CARE,ACHIEVERS CARE SOLUTIONS LIMITED,"1,411.43",SPECIALIST CARE,SECTION 17 PAYMENTS TO AGENCIES/CARERS,2103315304,1000086268
07.09.2021,ADULT SOCIAL CARE,ACHIEVERS CARE SOLUTIONS LIMITED,"1,411.43",SPECIALIST CARE,SECTION 17 PAYMENTS TO AGENCIES/CARERS,2103315358,1000086268
07.09.2021,ASSET MANAGEMENT,ASHFORDS LLP,"1,734.45",DISREPAIR,PAYMENTS FOR LEGAL SERVICES,2103315290,1000055865
07.09.2021,ASSET MANAGEMENT,ASHFORDS LLP,"2,500.00",DISREPAIR,PAYMENTS FOR LEGAL SERVICES,2103315283,1000055865
07.09.2021,ASSET MANAGEMENT,ASHFORDS LLP,"3,750.00",DISREPAIR,PAYMENTS FOR LEGAL SERVICES,2103315284,1000055865
07.09.2021,ASSET MANAGEMENT,CHESHIRE ESTATE AND LEGAL LTD,"1,146.52",DISREPAIR,PAYMENTS FOR LEGAL SERVICES,2103315285,1000081908
07.09.2021,ASSET MANAGEMENT,ANTONY HODARI  SOLICITORS,"6,458.33",DISREPAIR,PAYMENTS FOR LEGAL SERVICES,2103315286,1000031040
07.09.2021,ASSET MANAGEMENT,ANTHONY GOLD SOLICITORS,"3,583.33",DISREPAIR,PAYMENTS FOR LEGAL SERVICES,2103315287,1000050198
07.09.2021,ASSET MANAGEMENT,MLA SOLICITORS,"5,000.00",DISREPAIR,PAYMENTS FOR LEGAL SERVICES,2103315289,1000079716
07.09.2021,ASSET MANAGEMENT,BARNES SOLICITORS LLP,"2,083.33",DISREPAIR,PAYMENTS FOR LEGAL SERVICES,2103315291,1000083820
07.09.2021,ASSET MANAGEMENT,BOND TURNER  SOLICITORS,"1,666.67",DISREPAIR,PAYMENTS FOR LEGAL SERVICES,2103315282,1000085362
07.09.2021,ASSET MANAGEMENT,ASK LEGAL  SOLICITORS,"14,583.33",DISREPAIR,PAYMENTS FOR LEGAL SERVICES,2103315288,1000086317
07.09.2021,CHILDREN AND FAMILIES,AVOCET SOCIAL CARE LTD,"4,200.00",FOSTERING TEAM,PROFESSIONAL FEES,5902485399,1000071940
07.09.2021,CHILDREN AND FAMILIES,REDACTED PERSONAL DATA,"2,000.00",LEAVING CARE GRANT,OTHER PAYMENTS FOR CLIENTS,REDACTED,REDACTED
07.09.2021,CHILDREN AND FAMILIES,GOLDSMITHS COLLEGE,630,PRACTICE EDUCATION,TRAINING,5902485362,1000083164
07.09.2021,CHILDREN AND FAMILIES,GOLDSMITHS COLLEGE,670,PRACTICE EDUCATION,TRAINING,5902485364,1000083164
07.09.2021,CHILDREN AND FAMILIES,GOLDSMITHS COLLEGE,"1,340.00",PRACTICE EDUCATION,TRAINING,5902485366,1000083164
07.09.2021,CHILDREN AND FAMILIES,REDACTED PERSONAL DATA,"-1,089.69",SEMI-IND LAC 16-17,OTHER PAYMENTS FOR CLIENTS,REDACTED,REDACTED
07.09.2021,CHILDREN AND FAMILIES,REDACTED PERSONAL DATA,932.86,SEMI-IND LAC 16-17,OTHER PAYMENTS FOR CLIENTS,REDACTED,REDACTED
07.09.2021,COMMUNITIES,THAMES HOMECARE SERVICE LTD,271.44,NO RECOURSE TO PUBLIC FUNDS,HOMECARE - C&V,2103315397,1000079295
07.09.2021,COMMUNITIES,SOUTHWARK EVERY WOMAN'S CENTRE,"1,292.00",VCS GRANTS,OTHER CONTRACTORS,5902485078,1000042216
07.09.2021,EDUCATION,MIME CONSULTING LTD,"5,000.00",CENTRAL COSTS - SEN,CONSULTANTS SERVICES,5902485371,1000057079
07.09.2021,ENVIRONMENT AND LEISURE,METIS CONSULTANTS LIMITED,"4,373.33",CAPITAL PS (LEISURE),CONSTR'N SUB CONTRACT - NON CERTIFICATED,5902485406,1000086330
07.09.2021,ENVIRONMENT AND LEISURE,WIGNALL AND MOORE LLP,340,CAPITAL PS (REGEN),CONSTRUCTION FEES  - EXTERNAL,5902485363,1000084175
07.09.2021,ENVIRONMENT DIRECTORATE,ACCESS HIRE NATIONWIDE LTD,"1,541.14",COMMERCIAL VEH CTRL A/C,HIRED VEHICLES,5902485443,1000048527
07.09.2021,ENVIRONMENT DIRECTORATE,METIS CONSULTANTS LIMITED,"2,977.36",PARKING ATTENDANTS PCN'S,HIGHWAYS TERM CONTRACT,5902485368,1000086330
07.09.2021,F & C S EXCLUDING CORPORATE BUDGETS,REDACTED PERSONAL DATA,500,SESS,OTHER PAYMENTS FOR CLIENTS,REDACTED,REDACTED
07.09.2021,F & C S EXCLUDING CORPORATE BUDGETS,REDACTED PERSONAL DATA,500,SESS,OTHER PAYMENTS FOR CLIENTS,REDACTED,REDACTED
07.09.2021,F & C S EXCLUDING CORPORATE BUDGETS,REDACTED PERSONAL DATA,500,SESS,OTHER PAYMENTS FOR CLIENTS,REDACTED,REDACTED
07.09.2021,F & C S EXCLUDING CORPORATE BUDGETS,REDACTED PERSONAL DATA,500,SESS,OTHER PAYMENTS FOR CLIENTS,REDACTED,REDACTED
07.09.2021,F & C S EXCLUDING CORPORATE BUDGETS,REDACTED PERSONAL DATA,500,SESS,OTHER PAYMENTS FOR CLIENTS,REDACTED,REDACTED
07.09.2021,F & C S EXCLUDING CORPORATE BUDGETS,REDACTED PERSONAL DATA,500,SESS,OTHER PAYMENTS FOR CLIENTS,REDACTED,REDACTED
07.09.2021,F & C S EXCLUDING CORPORATE BUDGETS,REDACTED PERSONAL DATA,500,SESS,OTHER PAYMENTS FOR CLIENTS,REDACTED,REDACTED
07.09.2021,F & C S EXCLUDING CORPORATE BUDGETS,REDACTED PERSONAL DATA,500,SESS,OTHER PAYMENTS FOR CLIENTS,REDACTED,REDACTED
07.09.2021,F & C S EXCLUDING CORPORATE BUDGETS,REDACTED PERSONAL DATA,500,SESS,OTHER PAYMENTS FOR CLIENTS,REDACTED,REDACTED
07.09.2021,F & C S EXCLUDING CORPORATE BUDGETS,REDACTED PERSONAL DATA,500,SESS,OTHER PAYMENTS FOR CLIENTS,REDACTED,REDACTED
07.09.2021,F & C S EXCLUDING CORPORATE BUDGETS,REDACTED PERSONAL DATA,500,SESS,OTHER PAYMENTS FOR CLIENTS,REDACTED,REDACTED
07.09.2021,F & C S EXCLUDING CORPORATE BUDGETS,REDACTED PERSONAL DATA,500,SESS,OTHER PAYMENTS FOR CLIENTS,REDACTED,REDACTED
07.09.2021,F & C S EXCLUDING CORPORATE BUDGETS,REDACTED PERSONAL DATA,500,SESS,OTHER PAYMENTS FOR CLIENTS,REDACTED,REDACTED
07.09.2021,HOUSING HRA,CALFORD SEADEN LLP,"2,818.21",CAPITAL PS (HRA),CONSTRUCTION FEES  - EXTERNAL,5902485433,1061592
07.09.2021,HOUSING HRA,CALFORD SEADEN LLP,"5,308.50",CAPITAL PS (HRA),CONSTRUCTION FEES  - EXTERNAL,5902485430,1061592
07.09.2021,HOUSING HRA,CALFORD SEADEN LLP,"19,992.00",CAPITAL PS (HRA),CONSTRUCTION FEES  - EXTERNAL,5902485410,1061592
07.09.2021,HOUSING HRA,CALFORD SEADEN LLP,"19,992.00",CAPITAL PS (HRA),CONSTRUCTION FEES  - EXTERNAL,5902485419,1061592
07.09.2021,HOUSING HRA,CALFORD SEADEN LLP,"19,992.00",CAPITAL PS (HRA),CONSTRUCTION FEES  - EXTERNAL,5902485423,1061592
07.09.2021,HOUSING HRA,CALFORD SEADEN LLP,"33,540.94",CAPITAL PS (HRA),CONSTRUCTION FEES  - EXTERNAL,5902485372,1061592
07.09.2021,HOUSING HRA,CALFORD SEADEN LLP,"42,742.40",CAPITAL PS (HRA),CONSTRUCTION FEES  - EXTERNAL,5902485432,1061592
07.09.2021,LEISURE DIRECTORATE,ASKEWS & HOLTS LIBRARY SERVICES LTD,"5,781.17",STOCK SERVICES,BOOKS & PUBLICATIONS,5902485401,1494168
07.09.2021,PUBLIC HEALTH,REDACTED PERSONAL DATA,500,COVID-19 CONTROL OUTBREAK MGMNT.FUND,OTHER PAYMENTS FOR CLIENTS,REDACTED,REDACTED
07.09.2021,PUBLIC HEALTH,REDACTED PERSONAL DATA,500,COVID-19 CONTROL OUTBREAK MGMNT.FUND,OTHER PAYMENTS FOR CLIENTS,REDACTED,REDACTED
07.09.2021,PUBLIC HEALTH,REDACTED PERSONAL DATA,500,COVID-19 CONTROL OUTBREAK MGMNT.FUND,OTHER PAYMENTS FOR CLIENTS,REDACTED,REDACTED
07.09.2021,PUBLIC HEALTH,REDACTED PERSONAL DATA,500,COVID-19 CONTROL OUTBREAK MGMNT.FUND,OTHER PAYMENTS FOR CLIENTS,REDACTED,REDACTED
07.09.2021,RESIDENT SERVICES HGF,LETTING INTERNATIONAL LTD,625,PSL PLACEMENTS,EXTERNAL AGENCIES AND BODIES,5902485010,1000070102
08.09.2021,ADULT SOCIAL CARE,HUNTERSJOY LTD,670,ASW - PROFESSIONAL DEVELOPMENT,TRAINING,5902485446,1000077343
08.09.2021,ADULT SOCIAL CARE,SAFFRONLAND HOMES,572.48,DIR OF ASC,EXTERNAL AGENCIES AND BODIES,5902485304,11172608
08.09.2021,ADULT SOCIAL CARE,FOSTERING SUPPORT GROUP LTD,"5,779.33",DISABILITIES LAC,EXTERNAL AGENCIES AND BODIES,2103316271,1000065830
08.09.2021,ADULT SOCIAL CARE,REDACTED PERSONAL DATA,"1,094.60",DISABILITIES LAC,PAYMENTS TO CARERS,REDACTED,REDACTED
08.09.2021,ADULT SOCIAL CARE,REDACTED PERSONAL DATA,"1,632.00",DISABILITIES LAC,PAYMENTS TO CARERS,REDACTED,REDACTED
08.09.2021,ADULT SOCIAL CARE,REDACTED PERSONAL DATA,756,DISABILITIES LAC,PAYMENTS TO CARERS,REDACTED,REDACTED
08.09.2021,ADULT SOCIAL CARE,REDACTED PERSONAL DATA,862,DISABILITIES LAC,PAYMENTS TO CARERS,REDACTED,REDACTED
08.09.2021,ADULT SOCIAL CARE,SUPREME CARE SERVICES LTD,624.24,DISCHARGE TO ACCESS,HOMECARE - C&V,2103315992,1000059416
08.09.2021,ADULT SOCIAL CARE,SUPREME CARE SERVICES LTD,"2,229.76",DISCHARGE TO ACCESS,HOMECARE - C&V,2103315952,1000059416
08.09.2021,ADULT SOCIAL CARE,REDACTED PERSONAL DATA,725,FAMILY LINK,PAYMENTS TO CARERS,REDACTED,REDACTED
08.09.2021,ADULT SOCIAL CARE,KENT COUNTY COUNCIL - LASER,"1,344.01",FRED FRANCIS CENTRE,GAS,5902485667,1000012926
08.09.2021,ADULT SOCIAL CARE,SURREY DOCKS FARM PROVIDENT SOCIETY,480,LD LTS 18-64,DAYCARE,2103316831,1000000958
08.09.2021,ADULT SOCIAL CARE,SURREY DOCKS FARM PROVIDENT SOCIETY,487.5,LD LTS 18-64,DAYCARE,2103316830,1000000958
08.09.2021,ADULT SOCIAL CARE,SURREY DOCKS FARM PROVIDENT SOCIETY,720,LD LTS 18-64,DAYCARE,2103316832,1000000958
08.09.2021,ADULT SOCIAL CARE,SUPREME CARE SERVICES LTD,431.52,LD LTS 18-64,HOMECARE - C&V,2103316779,1000059416
08.09.2021,ADULT SOCIAL CARE,SUPREME CARE SERVICES LTD,622.35,LD LTS 18-64,HOMECARE - C&V,2103316605,1000059416
08.09.2021,ADULT SOCIAL CARE,CARE DIRECT UK LTD,324,LD LTS 18-64,SUPPORTED LIVING,2103315778,1000066322
08.09.2021,ADULT SOCIAL CARE,CARE DIRECT UK LTD,486,LD LTS 18-64,SUPPORTED LIVING,2103315773,1000066322
08.09.2021,ADULT SOCIAL CARE,REMARK LTD,288,LD LTS 18-64,SUPPORTED LIVING,2103315780,1000081741
08.09.2021,ADULT SOCIAL CARE,REMARK LTD,920,LD LTS 18-64,SUPPORTED LIVING,2103315781,1000081741
08.09.2021,ADULT SOCIAL CARE,REDACTED PERSONAL DATA,306.23,LD LTS 18-64,SUPPORTED LIVING,REDACTED,REDACTED
08.09.2021,ADULT SOCIAL CARE,REDACTED PERSONAL DATA,780,LD LTS 18-64,SUPPORTED LIVING,REDACTED,REDACTED
08.09.2021,ADULT SOCIAL CARE,REDACTED PERSONAL DATA,780,LD LTS 18-64,SUPPORTED LIVING,REDACTED,REDACTED
08.09.2021,ADULT SOCIAL CARE,REDACTED PERSONAL DATA,780,LD LTS 18-64,SUPPORTED LIVING,REDACTED,REDACTED
08.09.2021,ADULT SOCIAL CARE,REDACTED PERSONAL DATA,780,LD LTS 18-64,SUPPORTED LIVING,REDACTED,REDACTED
08.09.2021,ADULT SOCIAL CARE,REDACTED PERSONAL DATA,936,LD LTS 18-64,SUPPORTED LIVING,REDACTED,REDACTED
08.09.2021,ADULT SOCIAL CARE,REDACTED PERSONAL DATA,936,LD LTS 18-64,SUPPORTED LIVING,REDACTED,REDACTED
08.09.2021,ADULT SOCIAL CARE,SUPREME CARE SERVICES LTD,957.46,LD LTS 65+,HOMECARE - C&V,2103316728,1000059416
08.09.2021,ADULT SOCIAL CARE,SUPREME CARE SERVICES LTD,"1,020.38",LD LTS 65+,HOMECARE - C&V,2103316520,1000059416
08.09.2021,ADULT SOCIAL CARE,SUPREME CARE SERVICES LTD,404.68,MEM LTS 18-64,HOMECARE - C&V,2103316077,1000059416
08.09.2021,ADULT SOCIAL CARE,SUPREME CARE SERVICES LTD,430.68,MEM LTS 18-64,HOMECARE - C&V,2103315888,1000059416
08.09.2021,ADULT SOCIAL CARE,INSPIRE SUPPORT WORKERS LTD,808.71,MEM LTS 18-64,HOMECARE - SPOT,2103315745,1000080725
08.09.2021,ADULT SOCIAL CARE,LONDON CARE LTD,645.4,MEM LTS 65+,HOMECARE - C&V,2103316058,1000003398
08.09.2021,ADULT SOCIAL CARE,LONDON CARE LTD,"1,364.58",MEM LTS 65+,HOMECARE - C&V,2103316057,1000003398
08.09.2021,ADULT SOCIAL CARE,SUPREME CARE SERVICES LTD,251.73,MEM LTS 65+,HOMECARE - C&V,2103316074,1000059416
08.09.2021,ADULT SOCIAL CARE,SUPREME CARE SERVICES LTD,430.68,MEM LTS 65+,HOMECARE - C&V,2103315889,1000059416
08.09.2021,ADULT SOCIAL CARE,SUPREME CARE SERVICES LTD,449.52,MEM LTS 65+,HOMECARE - C&V,2103316109,1000059416
08.09.2021,ADULT SOCIAL CARE,SUPREME CARE SERVICES LTD,464.87,MEM LTS 65+,HOMECARE - C&V,2103316739,1000059416
08.09.2021,ADULT SOCIAL CARE,SUPREME CARE SERVICES LTD,525.93,MEM LTS 65+,HOMECARE - C&V,2103315997,1000059416
08.09.2021,ADULT SOCIAL CARE,SUPREME CARE SERVICES LTD,634.73,MEM LTS 65+,HOMECARE - C&V,2103316024,1000059416
08.09.2021,ADULT SOCIAL CARE,SUPREME CARE SERVICES LTD,872.13,MEM LTS 65+,HOMECARE - C&V,2103316378,1000059416
08.09.2021,ADULT SOCIAL CARE,SUPREME CARE SERVICES LTD,"1,078.80",MEM LTS 65+,HOMECARE - C&V,2103316067,1000059416
08.09.2021,ADULT SOCIAL CARE,SUPREME CARE SERVICES LTD,"1,092.41",MEM LTS 65+,HOMECARE - C&V,2103316740,1000059416
08.09.2021,ADULT SOCIAL CARE,SUPREME CARE SERVICES LTD,"2,254.53",MEM LTS 65+,HOMECARE - C&V,2103315945,1000059416
08.09.2021,ADULT SOCIAL CARE,SUPREME CARE SERVICES LTD,"2,323.96",MEM LTS 65+,HOMECARE - C&V,2103316018,1000059416
08.09.2021,ADULT SOCIAL CARE,SUPREME CARE SERVICES LTD,"3,137.63",MEM LTS 65+,HOMECARE - C&V,2103316036,1000059416
08.09.2021,ADULT SOCIAL CARE,SUPREME CARE SERVICES LTD,"1,142.13",MEM STS 65+,HOMECARE - IC,2103316066,1000059416
08.09.2021,ADULT SOCIAL CARE,SUPREME CARE SERVICES LTD,251.72,MH LTS 18-64,HOMECARE - C&V,2103316824,1000059416
08.09.2021,ADULT SOCIAL CARE,SUPREME CARE SERVICES LTD,337.13,MH LTS 18-64,HOMECARE - C&V,2103316087,1000059416
08.09.2021,ADULT SOCIAL CARE,SUPREME CARE SERVICES LTD,431.52,MH LTS 18-64,HOMECARE - C&V,2103316789,1000059416
08.09.2021,ADULT SOCIAL CARE,SUPREME CARE SERVICES LTD,485.48,MH LTS 18-64,HOMECARE - C&V,2103316727,1000059416
08.09.2021,ADULT SOCIAL CARE,SUPREME CARE SERVICES LTD,624.84,MH LTS 18-64,HOMECARE - C&V,2103316034,1000059416
08.09.2021,ADULT SOCIAL CARE,SUPREME CARE SERVICES LTD,652.16,MH LTS 18-64,HOMECARE - C&V,2103316038,1000059416
08.09.2021,ADULT SOCIAL CARE,SUPREME CARE SERVICES LTD,791.17,MH LTS 18-64,HOMECARE - C&V,2103316125,1000059416
08.09.2021,ADULT SOCIAL CARE,SUPREME CARE SERVICES LTD,805.92,MH LTS 18-64,HOMECARE - C&V,2103316033,1000059416
08.09.2021,ADULT SOCIAL CARE,LAMBETH CHINESE COMMUNITY ASSOCIATION,408,MH LTS 18-64,SUPPORTED LIVING,2103316834,11117038
08.09.2021,ADULT SOCIAL CARE,REDACTED PERSONAL DATA,312.3,MH LTS 18-64,SUPPORTED LIVING,REDACTED,REDACTED
08.09.2021,ADULT SOCIAL CARE,BLISSETT CARE LTD,624.24,MH LTS 65+,HOMECARE - C&V,2103316838,1000042627
08.09.2021,ADULT SOCIAL CARE,SUPREME CARE SERVICES LTD,368.65,MH LTS 65+,HOMECARE - C&V,2103316098,1000059416
08.09.2021,ADULT SOCIAL CARE,SUPREME CARE SERVICES LTD,368.7,MH LTS 65+,HOMECARE - C&V,2103316644,1000059416
08.09.2021,ADULT SOCIAL CARE,SUPREME CARE SERVICES LTD,426.25,MH LTS 65+,HOMECARE - C&V,2103316550,1000059416
08.09.2021,ADULT SOCIAL CARE,SUPREME CARE SERVICES LTD,498.71,MH LTS 65+,HOMECARE - C&V,2103316358,1000059416
08.09.2021,ADULT SOCIAL CARE,SUPREME CARE SERVICES LTD,499.89,MH LTS 65+,HOMECARE - C&V,2103316156,1000059416
08.09.2021,ADULT SOCIAL CARE,SUPREME CARE SERVICES LTD,777.77,MH LTS 65+,HOMECARE - C&V,2103316053,1000059416
08.09.2021,ADULT SOCIAL CARE,SUPREME CARE SERVICES LTD,"1,227.25",MH LTS 65+,HOMECARE - C&V,2103316741,1000059416
08.09.2021,ADULT SOCIAL CARE,REDACTED PERSONAL DATA,277.6,MH LTS 65+,SUPPORTED LIVING,REDACTED,REDACTED
08.09.2021,ADULT SOCIAL CARE,LONDON CARE LTD,756.04,PHY LTS 18-64,HOMECARE - C&V,2103316060,1000003398
08.09.2021,ADULT SOCIAL CARE,BLISSETT CARE LTD,881.28,PHY LTS 18-64,HOMECARE - C&V,2103316837,1000042627
